Workbook

Sheet App.2-W_(Resi)
A1: 1 | B1: File Number: | D1: =EBNUMBER ->  | AB1: File Number: | AD1: =EBNUMBER -> 
B2: Exhibit: | AB2: Exhibit:
B3: Tab: | AB3: Tab:
B4: Schedule: | AB4: Schedule:
B5: Page: | AB5: Page:
B7: Date: | AB7: Date:
B10: Appendix 2-W : Bill Impacts | Q10: Residential (i of ii) | AB10: Appendix 2-W : Bill Impacts | AR10: =B15&" (ii of ii)" -> Residential (ii of ii)
B11: Bill Impacts - These will need to be completed once source of rates are determined
B14: Customer Class: | AB14: Customer Class:
B15: Residential | AB15: Residential
B16: TOU / non-TOU: | D16: TOU | AB16: TOU / non-TOU: | AD16: TOU
D18: Consumption | AD18: Consumption
B19: kWh | D19: 800 | AB19: kWh | AD19: 800
F20: 2014 Rates | J20: 2015 Rates | N20: 2015 v 2014 | Q20: 2016 Proposed Rates | U20: 2016 v 2015 | X20: 2017 Proposed Rates | AF20: 2017 v 2016 | AI20: 2018 Proposed Interim Rates | AM20: 2018 v 2017 | AP20: 2019 Proposed Interim Rates | AT20: 2019 v 2018 | AW20: 2019 v 2014 | BA20: CAGR
D21: Charge Unit | F21: Rate | G21: Volume | H21: Charge | J21: Rate | K21: Volume | L21: Charge | N21: $ Change | O21: % Change | Q21: Rate | R21: Volume | S21: Charge | U21: $ Change | V21: % Change | X21: Rate | Y21: Volume | Z21: Charge | AD21: Charge Unit | AF21: $ Change | AG21: % Change | AI21: Rate | AJ21: Volume | AK21: Charge | AM21: $ Change | AN21: % Change | AP21: Rate | AQ21: Volume | AR21: Charge | AT21: $ Change | AU21: % Change | AW21: $ Change | AX21: % Change | AY21: % CAGR | BA21: Before
F22: ($) | H22: ($) | J22: ($) | L22: ($) | Q22: ($) | S22: ($) | X22: ($) | Z22: ($) | AI22: ($) | AK22: ($) | AP22: ($) | AR22: ($) | BA22: Mitigation
B23: Monthly Service Charge | D23: Monthly | F23: 8.47 | G23: 1 | H23: =G23*F23 -> 8.47 | J23: 8.47 | K23: 1 | L23: =K23*J23 -> 8.47 | N23: =L23-H23 -> 0 | O23: =IF((H23)=0,"",(N23/H23)) -> 0 | Q23: 11.21 | R23: 1 | S23: =R23*Q23 -> 11.21 | U23: =S23-L23 -> 2.74 | V23: =IF((L23)=0,"",(U23/L23)) -> 0.3234946871 | X23: 14.22 | Y23: 1 | Z23: =Y23*X23 -> 14.22 | AB23: Monthly Service Charge | AD23: Monthly | AF23: =Z23-S23 -> 3.01 | AG23: =IF((S23)=0,"",(AF23/S23)) -> 0.2685102587 | AI23: 17.93 | AJ23: 1 | AK23: =AJ23*AI23 -> 17.93 | AM23: =AK23-Z23 -> 3.71 | AN23: =IF((Z23)=0,"",(AM23/Z23)) -> 0.2609001406 | AP23: 21.55 | AQ23: 1 | AR23: =AQ23*AP23 -> 21.55 | AT23: =AR23-AK23 -> 3.62 | AU23: =IF((AK23)=0,"",(AT23/AK23)) -> 0.2018962632 | AW23: =AR23-H23 -> 13.08 | AX23: =IFERROR(AW23/H23,1) -> 1.544273908
B24: Smart Meter Rate Rider | D24: Monthly | F24: 0.1 | G24: 1 | H24: =G24*F24 -> 0.1 | J24: 0.1 | K24: 1 | L24: =K24*J24 -> 0.1 | N24: =L24-H24 -> 0 | O24: =IF((H24)=0,"",(N24/H24)) -> 0 | Q24: 0 | R24: 1 | S24: =R24*Q24 -> 0 | U24: =S24-L24 -> -0.1 | V24: -1 | X24: 0 | Y24: 1 | Z24: =Y24*X24 -> 0 | AB24: Smart Meter Rate Rider | AD24: Monthly | AF24: =Z24-S24 -> 0 | AI24: 0 | AJ24: 1 | AK24: =AJ24*AI24 -> 0 | AM24: =AK24-Z24 -> 0 | AP24: 0 | AQ24: 1 | AR24: =AQ24*AP24 -> 0 | AT24: =AR24-AK24 -> 0 | AW24: =AR24-H24 -> -0.1 | AX24: =IFERROR(AW24/H24,1) -> -1
B25: Stranded Meter Rate Rider | D25: Monthly | F25: 0.57 | G25: 1 | H25: 0.57 | J25: 0.57 | K25: 1 | L25: =K25*J25 -> 0.57 | N25: =L25-H25 -> 0 | O25: =IF((H25)=0,"",(N25/H25)) -> 0 | Q25: 0 | R25: 1 | S25: =R25*Q25 -> 0 | U25: -0.57 | V25: -1 | X25: 0 | Y25: 1 | Z25: =Y25*X25 -> 0 | AB25: Stranded Meter Rate Rider | AD25: Monthly | AF25: 0 | AI25: 0 | AJ25: 1 | AK25: =AJ25*AI25 -> 0 | AM25: 0 | AP25: 0 | AQ25: 1 | AR25: =AQ25*AP25 -> 0 | AT25: 0 | AW25: -0.57 | AX25: -1
D26: per kWh | G26: =G27 -> 800 | H26: 0 | K26: =K27 -> 800 | L26: 0 | N26: 0 | R26: =R27 -> 800 | S26: 0 | U26: =S26-L26 -> 0 | Y26: =Y27 -> 800 | Z26: 0 | AB26: =B26 -> 0 | AD26: per kWh | AF26: 0 | AG26: =IF((S26)=0,"",(AF26/S26)) ->  | AJ26: =AJ27 -> 800 | AK26: 0 | AM26: 0 | AQ26: =AQ27 -> 800 | AR26: 0 | AT26: 0 | AW26: 0 | AX26: 1
B27: Distribution Volumetric Rate | D27: per kWh | F27: 0.012 | G27: =$D$19 -> 800 | H27: 9.6 | J27: 0.012 | K27: =$G27 -> 800 | L27: 9.6 | N27: 0 | O27: 0 | Q27: 0.0142 | R27: =$G27 -> 800 | S27: 11.36 | U27: 1.76 | V27: 0.1833333333 | X27: 0.0109 | Y27: =$G27 -> 800 | Z27: 8.72 | AB27: Distribution Volumetric Rate | AD27: per kWh | AF27: -2.64 | AG27: -0.2323943662 | AI27: 0.0078 | AJ27: =$G27 -> 800 | AK27: 6.24 | AM27: -2.48 | AN27: -0.2844036697 | AP27: 0.0041 | AQ27: =$G27 -> 800 | AR27: 3.28 | AT27: -2.96 | AU27: -0.4743589744 | AW27: -6.32 | AX27: -0.6583333333
B28: 2015 Oct-Dec Recovery | D28: Monthly | G28: 1 | H28: 0 | K28: 1 | L28: 0 | N28: =L28-H28 -> 0 | O28: =IF((H28)=0,"",(N28/H28)) ->  | Q28: 0.6 | R28: =$G28 -> 1 | S28: 0.6 | U28: 0.6 | V28: =IF((L28)=0,"",(U28/L28)) ->  | X28: 0 | Y28: =$G28 -> 1 | Z28: 0 | AB28: =B28 -> 2015 Oct-Dec Recovery | AD28: Monthly | AF28: -0.6 | AG28: -1 | AI28: 0 | AJ28: =$G28 -> 1 | AK28: 0 | AM28: 0 | AP28: 0 | AQ28: =$G28 -> 1 | AR28: 0 | AT28: 0 | AW28: 0 | AX28: 1 | BC28: =AP28*AQ28 -> 0
B29: Sub-Total A (excluding pass through) | H29: =SUM(H23:H28) -> 18.74 | L29: =SUM(L23:L28) -> 18.74 | N29: 0 | O29: 0 | S29: =SUM(S23:S28) -> 23.17 | U29: 4.43 | V29: 0.2363927428 | Z29: =SUM(Z23:Z28) -> 22.94 | AB29: Sub-Total A (excluding pass through) | AF29: -0.23 | AG29: -0.009926629262 | AK29: =SUM(AK23:AK28) -> 24.17 | AM29: 1.23 | AN29: 0.05361813426 | AR29: =SUM(AR23:AR28) -> 24.83 | AT29: 0.66 | AU29: 0.0273065784 | AW29: 6.09 | AX29: =IFERROR(AW29/H29,0) -> 0.3249733191 | AY29: =IFERROR((AR29/H29)^(1/(2019-2014))-1,0) -> 0.0578922282 | BA29: 0.04613010747
B30: Deferral & Variance Accounts Disposition Rate Rider (2012) | D30: per kWh | F30: 0.0004 | G30: =$D$19 -> 800 | H30: =G30*F30 -> 0.32 | J30: 0.0004 | K30: =$G30 -> 800 | L30: =K30*J30 -> 0.32 | N30: =L30-H30 -> 0 | O30: =IF((H30)=0,"",(N30/H30)) -> 0 | Q30: 0 | R30: =$G30 -> 800 | S30: =R30*Q30 -> 0 | U30: -0.32 | V30: =IF((L30)=0,"",(U30/L30)) -> -1 | X30: 0 | Y30: =$G30 -> 800 | Z30: =Y30*X30 -> 0 | AB30: Deferral & Variance Accounts Disposition Rate Rider (2012) | AD30: per kWh | AF30: 0 | AI30: 0 | AJ30: =$G30 -> 800 | AK30: =AJ30*AI30 -> 0 | AM30: 0 | AP30: 0 | AQ30: =$G30 -> 800 | AR30: =AQ30*AP30 -> 0 | AT30: 0 | AW30: -0.32 | AX30: =IFERROR(AW30/H30,1) -> -1
B31: Deferral & Variance Accounts Disposition Rate Rider (2015) | D31: per kWh | G31: =$D$19 -> 800 | H31: =G31*F31 -> 0 | J31: 0 | K31: =$G31 -> 800 | L31: =K31*J31 -> 0 | N31: =L31-H31 -> 0 | O31: =IF((H31)=0,"",(N31/H31)) ->  | Q31: 0.0006266869141 | R31: =$G31 -> 800 | S31: =R31*Q31 -> 0.5013495312 | U31: 0.5013495312 | V31: =IF((L31)=0,"",(U31/L31)) ->  | X31: 0.0006266869141 | Y31: =$G31 -> 800 | Z31: =Y31*X31 -> 0.5013495312 | AB31: Deferral & Variance Accounts Disposition Rate Rider (2015) | AD31: per kWh | AF31: 0 | AG31: 0 | AI31: 0.0006266869141 | AJ31: =$G31 -> 800 | AK31: =AJ31*AI31 -> 0.5013495312 | AM31: 0 | AN31: 0 | AP31: 0.0006266869141 | AQ31: =$G31 -> 800 | AR31: =AQ31*AP31 -> 0.5013495312 | AT31: 0 | AU31: 0 | AW31: 0.5013495312 | AX31: 1
B32: Global Adjustment Disposition Rate Rider (2015) | D32: per kWh | G32: =$D$19 -> 800 | H32: 0 | J32: 0 | K32: =$G32 -> 800 | L32: 0 | N32: 0 | Q32: 0.001343866791 | R32: =$G32 -> 800 | S32: 1.075093433 | U32: 1.075093433 | V32: =IF((L32)=0,"",(U32/L32)) ->  | X32: 0.001343866791 | Y32: =$G32 -> 800 | Z32: 1.075093433 | AB32: Global Adjustment Disposition Rate Rider (2015) | AD32: per kWh | AF32: 0 | AG32: 0 | AI32: 0.001343866791 | AJ32: =$G32 -> 800 | AK32: 1.075093433 | AM32: 0 | AN32: 0 | AP32: 0.001343866791 | AQ32: =$G32 -> 800 | AR32: 1.075093433 | AT32: 0 | AU32: 0 | AW32: 1.075093433 | AX32: 1
B33: Deferral & Variance Accounts Disposition Rate Rider for Group 2 DVAs (2015) | D33: Monthly | G33: 1 | H33: 0 | K33: =$G33 -> 1 | L33: 0 | N33: 0 | Q33: 0.05572859535 | R33: =$G33 -> 1 | S33: 0.05572859535 | U33: 0.05572859535 | X33: 0.05572859535 | Y33: =$G33 -> 1 | Z33: 0.05572859535 | AB33: =B33 -> Deferral & Variance Accounts Disposition Rate Rider for Group 2 DVAs (2015) | AD33: Monthly | AF33: 0 | AG33: 0 | AI33: 0.05572859535 | AJ33: =$G33 -> 1 | AK33: 0.05572859535 | AM33: 0 | AN33: 0 | AP33: 0.05572859535 | AQ33: =$G33 -> 1 | AR33: 0.05572859535 | AT33: 0 | AU33: 0 | AW33: 0.05572859535 | AX33: 1
B34: Low Voltage Service Charge | D34: per kWh | G34: =$D$19 -> 800 | H34: =G34*F34 -> 0 | K34: =$G34 -> 800 | L34: =K34*J34 -> 0 | N34: =L34-H34 -> 0 | R34: =$G34 -> 800 | S34: =R34*Q34 -> 0 | U34: 0 | Y34: =$G34 -> 800 | Z34: =Y34*X34 -> 0 | AB34: Low Voltage Service Charge | AD34: per kWh | AF34: 0 | AJ34: =$G34 -> 800 | AK34: =AJ34*AI34 -> 0 | AM34: 0 | AQ34: =$G34 -> 800 | AR34: =AQ34*AP34 -> 0 | AT34: 0 | AW34: 0 | AX34: 1
B35: Line Losses on Cost of Power | D35: per kWh | F35: 0.09246 | G35: =$D$19*(1+F65)-$D$19 -> 34.4 | H35: =G35*F35 -> 3.180624 | J35: 0.09246 | K35: =$D$19*(1+J65)-$D$19 -> 34.4 | L35: 3.180624 | N35: 0 | O35: =IF((H35)=0,"",(N35/H35)) -> 0 | Q35: 0.09246 | R35: =$D$19*(1+Q65)-$D$19 -> 38.91906568 | S35: =R35*Q35 -> 3.598456813 | U35: 0.4178328127 | V35: 0.1313681883 | X35: 0.11184 | Y35: =$D$19*(1+X65)-$D$19 -> 38.91906568 | Z35: =Y35*X35 -> 4.352708306 | AB35: Line Losses on Cost of Power | AD35: per kWh | AF35: 0.7542514929 | AG35: 0.2096041531 | AI35: 0.09246 | AJ35: =$D$19*(1+AI65)-$D$19 -> 38.91906568 | AK35: =AJ35*AI35 -> 3.598456813 | AM35: -0.7542514929 | AN35: -0.1732832618 | AP35: 0.09246 | AQ35: =$D$19*(1+AP65)-$D$19 -> 38.91906568 | AR35: =AQ35*AP35 -> 3.598456813 | AT35: 0 | AU35: 0 | AW35: 0.4178328127 | AX35: 0.1313681883
B36: Smart Meter Entity Charge | D36: Monthly | F36: 0.79 | G36: 1 | H36: =G36*F36 -> 0.79 | J36: 0.79 | K36: 1 | L36: =K36*J36 -> 0.79 | N36: =L36-H36 -> 0 | O36: =IF((H36)=0,"",(N36/H36)) -> 0 | Q36: 0.79 | R36: 1 | S36: =R36*Q36 -> 0.79 | U36: 0 | V36: 0 | X36: 0.79 | Y36: 1 | Z36: =Y36*X36 -> 0.79 | AB36: Smart Meter Entity Charge | AD36: Monthly | AF36: 0 | AG36: 0 | AI36: 0.79 | AJ36: 1 | AK36: =AJ36*AI36 -> 0.79 | AM36: 0 | AN36: 0 | AP36: 0.79 | AQ36: 1 | AR36: =AQ36*AP36 -> 0.79 | AT36: 0 | AU36: 0 | AW36: 0 | AX36: 0
B37: Sub-Total B - Distribution (includes Sub-Total A) | H37: =SUM(H30:H36)+H29 -> 23.030624 | L37: =SUM(L30:L36)+L29 -> 23.030624 | N37: =L37-H37 -> 0 | O37: =IF((H37)=0,"",(N37/H37)) -> 0 | S37: =SUM(S30:S36)+S29 -> 29.19062837 | U37: 6.160004372 | V37: =IF((L37)=0,"",(U37/L37)) -> 0.2674701464 | Z37: =SUM(Z30:Z36)+Z29 -> 29.71487986 | AB37: Sub-Total B - Distribution (includes Sub-Total A) | AF37: 0.5242514929 | AG37: 0.01795958231 | AK37: =SUM(AK30:AK36)+AK29 -> 30.19062837 | AM37: 0.4757485071 | AN37: 0.01601044693 | AR37: =SUM(AR30:AR36)+AR29 -> 30.85062837 | AT37: 0.66 | AU37: 0.02186108854 | AW37: 7.820004372 | AX37: =IFERROR(AW37/H37,0) -> 0.3395480892 | AY37: =IFERROR((AR37/H37)^(1/(2019-2014))-1,0) -> 0.06020942784 | BA37: 0.04708967767
B38: RTSR - Network | D38: per kWh | F38: 0.0074 | G38: =$D$19*(1+F65) -> 834.4 | H38: =G38*F38 -> 6.17456 | J38: 0.0074 | K38: =$D$19*(1+J65) -> 834.4 | L38: =K38*J38 -> 6.17456 | N38: 0 | O38: 0 | Q38: 0.007828861431 | R38: =$D$19*(1+Q65) -> 838.9190657 | S38: =R38*Q38 -> 6.567781117 | U38: 0.393221117 | V38: 0.06368407094 | X38: 0.0074 | Y38: =$D$19*(1+X65) -> 838.9190657 | Z38: =Y38*X38 -> 6.208001086 | AB38: RTSR - Network | AD38: per kWh | AF38: -0.359780031 | AG38: -0.0547795404 | AI38: 0.007828861431 | AJ38: =$D$19*(1+AI65) -> 838.9190657 | AK38: =AJ38*AI38 -> 6.567781117 | AM38: 0.359780031 | AN38: 0.05795424744 | AP38: 0.007828861431 | AQ38: =$D$19*(1+AP65) -> 838.9190657 | AR38: =AQ38*AP38 -> 6.567781117 | AT38: 0 | AU38: 0 | AW38: 0.393221117 | AX38: 0.06368407094
B39: RTSR - Line and Transformation Connection | D39: per kWh | F39: 0.0057 | G39: =G38 -> 834.4 | H39: =G39*F39 -> 4.75608 | J39: 0.0057 | K39: =K38 -> 834.4 | L39: =K39*J39 -> 4.75608 | N39: 0 | O39: 0 | Q39: 0.00619356308 | R39: =R38 -> 838.9190657 | S39: =R39*Q39 -> 5.195898153 | U39: 0.4398181527 | V39: 0.0924749274 | X39: 0.00619356308 | Y39: =Y38 -> 838.9190657 | Z39: =Y39*X39 -> 5.195898153 | AB39: RTSR - Line and Transformation Connection | AD39: per kWh | AF39: 0 | AG39: 0 | AI39: 0.00619356308 | AJ39: =AJ38 -> 838.9190657 | AK39: =AJ39*AI39 -> 5.195898153 | AM39: 0 | AN39: 0 | AP39: 0.00619356308 | AQ39: =AQ38 -> 838.9190657 | AR39: =AQ39*AP39 -> 5.195898153 | AT39: 0 | AU39: 0 | AW39: 0.4398181527 | AX39: 0.0924749274
B40: Sub-Total C - Delivery (including Sub-Total B) | H40: =SUM(H37:H39) -> 33.961264 | L40: =SUM(L37:L39) -> 33.961264 | N40: 0 | O40: =IF((H40)=0,"",(N40/H40)) -> 0 | S40: =SUM(S37:S39) -> 40.95430764 | U40: 6.993043642 | V40: 0.2059123489 | Z40: =SUM(Z37:Z39) -> 41.1187791 | AB40: Sub-Total C - Delivery (including Sub-Total B) | AF40: 0.1644714618 | AG40: 0.004015974663 | AK40: =SUM(AK37:AK39) -> 41.95430764 | AM40: 0.8355285382 | AN40: 0.02031987711 | AR40: =SUM(AR37:AR39) -> 42.61430764 | AT40: 0.66 | AU40: 0.01573140011 | AW40: 8.653043642 | AX40: 0.2547915661 | AY40: =IFERROR((AR40/H40)^(1/(2019-2014))-1,0) -> 0.04643996642 | BA40: 0.03703449018
B41: Wholesale Market Service Charge (WMSC) | D41: per kWh | F41: 0.0044 | G41: =G39 -> 834.4 | H41: =G41*F41 -> 3.67136 | J41: 0.0044 | K41: =K38 -> 834.4 | L41: =K41*J41 -> 3.67136 | N41: 0 | O41: 0 | Q41: 0.0036 | R41: =R38 -> 838.9190657 | S41: =R41*Q41 -> 3.020108636 | U41: =S41-L41 -> -0.6512513636 | V41: -0.1773869529 | X41: 0.0036 | Y41: =Y38 -> 838.9190657 | Z41: =Y41*X41 -> 3.020108636 | AB41: Wholesale Market Service Charge (WMSC) | AD41: per kWh | AF41: =Z41-S41 -> 0 | AG41: 0 | AI41: =X41 -> 0.0036 | AJ41: =AJ38 -> 838.9190657 | AK41: =AJ41*AI41 -> 3.020108636 | AM41: =AK41-Z41 -> 0 | AN41: 0 | AP41: =AI41 -> 0.0036 | AQ41: =AQ38 -> 838.9190657 | AR41: =AQ41*AP41 -> 3.020108636 | AT41: =AR41-AK41 -> 0 | AU41: 0 | AW41: -0.6512513636 | AX41: =IF((AN41)=0,"",(AW41/AN41)) -> 
B42: Rural and Remote Rate Protection (RRRP) | D42: per kWh | F42: 0.0013 | G42: =G39 -> 834.4 | H42: 1.08472 | J42: 0.0013 | K42: =K38 -> 834.4 | L42: 1.08472 | N42: 0 | O42: 0 | Q42: 0.0013 | R42: =R38 -> 838.9190657 | S42: 1.090594785 | U42: 0.005874785382 | V42: 0.005415946403 | X42: 0.0021 | Y42: =Y38 -> 838.9190657 | Z42: 1.761730038 | AB42: Rural and Remote Rate Protection (RRRP) | AD42: per kWh | AF42: 0.6711352525 | AG42: 0.6153846154 | AI42: =X42 -> 0.0021 | AJ42: =AJ38 -> 838.9190657 | AK42: 1.761730038 | AM42: 0 | AN42: 0 | AP42: =AI42 -> 0.0021 | AQ42: =AQ38 -> 838.9190657 | AR42: 1.761730038 | AT42: 0 | AU42: 0 | AW42: 0.6770100379
B43: Ontario Electricity Support Program (OESP) | D43: per kWh | Q43: 0.0011 | R43: =R39 -> 838.9190657 | S43: =R43*Q43 -> 0.9228109722 | U43: =S43-L43 -> 0.9228109722 | V43: =IF((L43)=0,"",(U43/L43)) ->  | X43: 0.0011 | Y43: =Y39 -> 838.9190657 | Z43: =Y43*X43 -> 0.9228109722 | AB43: =B43 -> Ontario Electricity Support Program (OESP) | AD43: per kWh | AF43: =Z43-S43 -> 0 | AG43: =IF((S43)=0,"",(AF43/S43)) -> 0 | AI43: 0.0011 | AJ43: =AJ39 -> 838.9190657 | AK43: =AJ43*AI43 -> 0.9228109722 | AM43: =AK43-Z43 -> 0 | AN43: =IF((Z43)=0,"",(AM43/Z43)) -> 0 | AP43: 0.0011 | AQ43: =AQ39 -> 838.9190657 | AR43: =AQ43*AP43 -> 0.9228109722 | AT43: =AR43-AK43 -> 0 | AU43: =IF((AK43)=0,"",(AT43/AK43)) -> 0 | AW43: =AR43-H43 -> 0.9228109722 | AX43: =IF((AN43)=0,"",(AW43/AN43)) -> 
B44: Standard Supply Service Charge | D44: Monthly | F44: 0.25 | G44: 1 | H44: 0.25 | J44: 0.25 | K44: =$G44 -> 1 | L44: 0.25 | N44: 0 | O44: 0 | Q44: 0.25 | R44: =$G44 -> 1 | S44: 0.25 | U44: 0 | V44: 0 | X44: 0.25 | Y44: =$G44 -> 1 | Z44: 0.25 | AB44: Standard Supply Service Charge | AD44: Monthly | AF44: 0 | AG44: 0 | AI44: 0.25 | AJ44: =$G44 -> 1 | AK44: 0.25 | AM44: 0 | AN44: 0 | AP44: 0.25 | AQ44: =$G44 -> 1 | AR44: 0.25 | AT44: 0 | AU44: 0 | AW44: 0
B45: Debt Retirement Charge (DRC) | D45: per kWh | F45: 0.007 | G45: =$D$19 -> 800 | H45: 5.6 | J45: 0.007 | K45: =$G45 -> 800 | L45: 5.6 | N45: 0 | O45: 0 | R45: =$G45 -> 800 | S45: 0 | U45: -5.6 | V45: -1 | Y45: =$G45 -> 800 | Z45: 0 | AB45: Debt Retirement Charge (DRC) | AD45: per kWh | AF45: 0 | AI45: 0 | AJ45: =$G45 -> 800 | AK45: 0 | AM45: 0 | AP45: 0 | AQ45: =$G45 -> 800 | AR45: 0 | AT45: 0 | AW45: -5.6
B46: TOU - Off Peak | D46: per kWh | F46: 0.075 | G46: =0.64*$D$19 -> 512 | H46: 38.4 | J46: 0.075 | K46: 512 | L46: 38.4 | N46: 0 | O46: 0 | Q46: 0.087 | R46: 512 | S46: 44.544 | U46: 6.144 | V46: 0.16 | X46: 0.087 | Y46: 512 | Z46: 44.544 | AB46: TOU - Off Peak | AD46: per kWh | AF46: 0 | AG46: 0 | AI46: 0.087 | AJ46: 512 | AK46: 44.544 | AM46: 0 | AN46: 0 | AP46: 0.087 | AQ46: 512 | AR46: 44.544 | AT46: 0 | AU46: 0 | AW46: 6.144
B47: TOU - Mid Peak | D47: per kWh | F47: 0.112 | G47: =0.18*$D$19 -> 144 | H47: 16.128 | J47: 0.112 | K47: 144 | L47: 16.128 | N47: 0 | O47: 0 | Q47: 0.132 | R47: 144 | S47: 19.008 | U47: 2.88 | V47: 0.1785714286 | X47: 0.132 | Y47: 144 | Z47: 19.008 | AB47: TOU - Mid Peak | AD47: per kWh | AF47: 0 | AG47: 0 | AI47: 0.132 | AJ47: 144 | AK47: 19.008 | AM47: 0 | AN47: 0 | AP47: 0.132 | AQ47: 144 | AR47: 19.008 | AT47: 0 | AU47: 0 | AW47: 2.88
B48: TOU - On Peak | D48: per kWh | F48: 0.135 | G48: =0.18*$D$19 -> 144 | H48: 19.44 | J48: 0.135 | K48: 144 | L48: 19.44 | N48: 0 | O48: 0 | Q48: 0.18 | R48: 144 | S48: 25.92 | U48: 6.48 | V48: 0.3333333333 | X48: 0.18 | Y48: 144 | Z48: 25.92 | AB48: TOU - On Peak | AD48: per kWh | AF48: 0 | AG48: 0 | AI48: 0.18 | AJ48: 144 | AK48: 25.92 | AM48: 0 | AN48: 0 | AP48: 0.18 | AQ48: 144 | AR48: 25.92 | AT48: 0 | AU48: 0 | AW48: 6.48
B49: Energy - RPP - Tier 1 | D49: per kWh | F49: 0.083 | G49: =IF(AND($A$1=1, D19>=600), 600, IF(AND($A$1=1, AND(D19<600, D19>=0)), D19, IF(AND($A$1=2, D19>=1000), 1000, IF(AND($A$1=2, AND(D19<1000, D19>=0)), D19)))) -> 600 | H49: =G49*F49 -> 49.8 | J49: 0.083 | K49: 600 | L49: =K49*J49 -> 49.8 | N49: 0 | O49: 0 | Q49: 0.103 | R49: 600 | S49: =R49*Q49 -> 61.8 | U49: 12 | V49: 0.2409638554 | X49: 0.103 | Y49: 600 | Z49: =Y49*X49 -> 61.8 | AB49: Energy - RPP - Tier 1 | AD49: per kWh | AF49: 0 | AG49: 0 | AI49: 0.103 | AJ49: 600 | AK49: =AJ49*AI49 -> 61.8 | AM49: 0 | AN49: 0 | AP49: 0.103 | AQ49: 600 | AR49: =AQ49*AP49 -> 61.8 | AT49: 0 | AU49: 0 | AW49: 12
B50: Energy - RPP - Tier 2 | D50: per kWh | F50: 0.097 | G50: =IF(AND($A$1=1, D19>=600), D19-600, IF(AND($A$1=1, AND(D19<600, D19>=0)), 0, IF(AND($A$1=2, D19>=1000), D19-1000, IF(AND($A$1=2, AND(D19<1000, D19>=0)), 0)))) -> 200 | H50: =G50*F50 -> 19.4 | J50: 0.097 | K50: 200 | L50: =K50*J50 -> 19.4 | N50: 0 | O50: 0 | Q50: 0.121 | R50: 200 | S50: =R50*Q50 -> 24.2 | U50: 4.8 | V50: 0.2474226804 | X50: 0.121 | Y50: 200 | Z50: =Y50*X50 -> 24.2 | AB50: Energy - RPP - Tier 2 | AD50: per kWh | AF50: 0 | AG50: 0 | AI50: 0.121 | AJ50: 200 | AK50: =AJ50*AI50 -> 24.2 | AM50: 0 | AN50: 0 | AP50: 0.121 | AQ50: 200 | AR50: =AQ50*AP50 -> 24.2 | AT50: 0 | AU50: 0 | AW50: 4.8
B52: Total Bill on TOU (before Taxes) | H52: =SUM(H41:H48,H40) -> 118.535344 | L52: =SUM(L41:L48,L40) -> 118.535344 | N52: =L52-H52 -> 0 | O52: =IF((H52)=0,"",(N52/H52)) -> 0 | S52: =SUM(S41:S48,S40) -> 135.709822 | U52: =S52-L52 -> 17.17447804 | V52: =IF((L52)=0,"",(U52/L52)) -> 0.1448890892 | Z52: =SUM(Z41:Z48,Z40) -> 136.5454288 | AB52: Total Bill on TOU (before Taxes) | AF52: =Z52-S52 -> 0.8356067144 | AG52: =IF((S52)=0,"",(AF52/S52)) -> 0.006157304621 | AK52: =SUM(AK41:AK48,AK40) -> 137.3809573 | AM52: =AK52-Z52 -> 0.8355285382 | AN52: =IF((Z52)=0,"",(AM52/Z52)) -> 0.006119051702 | AR52: =SUM(AR41:AR48,AR40) -> 138.0409573 | AT52: =AR52-AK52 -> 0.66 | AU52: =IF((AK52)=0,"",(AT52/AK52)) -> 0.004804159274 | AW52: 19.50561329 | AX52: =IFERROR(AW52/H52,1) -> 0.164555251 | AY52: =IFERROR((AR52/H52)^(1/(2019-2014))-1,0) -> 0.030936746 | BA52: 0.01121528768
B53: HST | F53: 0.13 | H53: =H52*F53 -> 15.40959472 | J53: 0.13 | L53: =L52*J53 -> 15.40959472 | N53: 0 | O53: 0 | Q53: 0.13 | S53: =S52*Q53 -> 17.64227686 | U53: =S53-L53 -> 2.232682145 | V53: =IF((L53)=0,"",(U53/L53)) -> 0.1448890892 | X53: 0.13 | Z53: =Z52*X53 -> 17.75090574 | AB53: HST | AF53: =Z53-S53 -> 0.1086288729 | AG53: =IF((S53)=0,"",(AF53/S53)) -> 0.006157304621 | AI53: 0.13 | AK53: =AK52*AI53 -> 17.85952445 | AM53: =AK53-Z53 -> 0.10861871 | AN53: =IF((Z53)=0,"",(AM53/Z53)) -> 0.006119051702 | AP53: 0.13 | AR53: =AR52*AP53 -> 17.94532445 | AT53: =AR53-AK53 -> 0.0858 | AU53: =IF((AK53)=0,"",(AT53/AK53)) -> 0.004804159274 | AW53: 2.535729727 | AX53: 0.164555251 | AY53: 0.030936746 | BA53: 0.01121528768
B54: Total Bill (including HST) | H54: =H52+H53 -> 133.9449387 | L54: =L52+L53 -> 133.9449387 | N54: 0 | O54: 0 | S54: =S52+S53 -> 153.3520989 | U54: =S54-L54 -> 19.40716018 | V54: =IF((L54)=0,"",(U54/L54)) -> 0.1448890892 | Z54: =Z52+Z53 -> 154.2963345 | AB54: Total Bill (including HST) | AF54: =Z54-S54 -> 0.9442355872 | AG54: =IF((S54)=0,"",(AF54/S54)) -> 0.006157304621 | AK54: =AK52+AK53 -> 155.2404817 | AM54: =AK54-Z54 -> 0.9441472481 | AN54: =IF((Z54)=0,"",(AM54/Z54)) -> 0.006119051702 | AR54: =AR52+AR53 -> 155.9862817 | AT54: =AR54-AK54 -> 0.7458 | AU54: =IF((AK54)=0,"",(AT54/AK54)) -> 0.004804159274 | AW54: 22.04134302 | AX54: 0.164555251 | AY54: 0.030936746 | BA54: 0.01121528768
B55: Ontario Clean Energy Benefit 1 | H55: =ROUND(-H54*10%,2) -> -13.39 | L55: =ROUND(-L54*10%,2) -> -13.39 | N55: 0 | O55: 0 | U55: =S55-L55 -> 13.39 | V55: =IF((L55)=0,"",(U55/L55)) -> -1 | AB55: Ontario Clean Energy Benefit 1 | AF55: =Z55-S55 -> 0 | AG55: =IF((S55)=0,"",(AF55/S55)) ->  | AM55: =AK55-Z55 -> 0 | AN55: =IF((Z55)=0,"",(AM55/Z55)) ->  | AT55: =AR55-AK55 -> 0 | AU55: =IF((AK55)=0,"",(AT55/AK55)) ->  | AW55: =AR55-H55 -> 13.39 | AX55: -1 | AY55: -1 | BA55: 0.01124534454
B56: Total Bill on TOU (including OCEB) | H56: =H54+H55 -> 120.5549387 | L56: =L54+L55 -> 120.5549387 | N56: 0 | O56: 0 | S56: =S54+S55 -> 153.3520989 | U56: =S56-L56 -> 32.79716018 | V56: =IF((L56)=0,"",(U56/L56)) -> 0.2720515686 | Z56: =Z54+Z55 -> 154.2963345 | AB56: Total Bill on TOU (including OCEB) | AF56: =Z56-S56 -> 0.9442355872 | AG56: =IF((S56)=0,"",(AF56/S56)) -> 0.006157304621 | AK56: =AK54+AK55 -> 155.2404817 | AM56: =AK56-Z56 -> 0.9441472481 | AN56: =IF((Z56)=0,"",(AM56/Z56)) -> 0.006119051702 | AR56: =AR54+AR55 -> 155.9862817 | AT56: =AR56-AK56 -> 0.7458 | AU56: =IF((AK56)=0,"",(AT56/AK56)) -> 0.004804159274 | AW56: 35.43134302 | AX56: 0.2939020449 | AY56: 0.05288340314 | BA56: 0.01121194905
B58: Total Bill on RPP (before Taxes) | H58: =SUM(H49:H50,H40,H41:H45) -> 113.767344 | L58: =SUM(L49:L50,L40,L41:L45) -> 113.767344 | N58: =L58-H58 -> 0 | O58: =IF((H58)=0,"",(N58/H58)) -> 0 | S58: =SUM(S49:S50,S40,S41:S45) -> 132.237822 | U58: =S58-L58 -> 18.47047804 | V58: =IF((L58)=0,"",(U58/L58)) -> 0.1623530741 | Z58: =SUM(Z49:Z50,Z40,Z41:Z45) -> 133.0734288 | AB58: Total Bill on RPP (before Taxes) | AF58: =Z58-S58 -> 0.8356067144 | AG58: =IF((S58)=0,"",(AF58/S58)) -> 0.006318969123 | AK58: =SUM(AK49:AK50,AK40,AK41:AK45) -> 133.9089573 | AM58: =AK58-Z58 -> 0.8355285382 | AN58: =IF((Z58)=0,"",(AM58/Z58)) -> 0.006278703014 | AR58: =SUM(AR49:AR50,AR40,AR41:AR45) -> 134.5689573 | AT58: =AR58-AK58 -> 0.66 | AU58: =IF((AK58)=0,"",(AT58/AK58)) -> 0.004928721822 | AW58: 20.80161329 | AX58: =IFERROR(AW58/H58,1) -> 0.1828434466 | AY58: =IFERROR((AR58/H58)^(1/(2019-2014))-1,0) -> 0.03415456558 | BA58: 0.0116745928
B59: HST | F59: 0.13 | H59: =H58*F59 -> 14.78975472 | J59: 0.13 | L59: =L58*J59 -> 14.78975472 | N59: 0 | O59: 0 | Q59: 0.13 | S59: =S58*Q59 -> 17.19091686 | U59: =S59-L59 -> 2.401162145 | V59: =IF((L59)=0,"",(U59/L59)) -> 0.1623530741 | X59: 0.13 | Z59: =Z58*X59 -> 17.29954574 | AB59: HST | AF59: =Z59-S59 -> 0.1086288729 | AG59: =IF((S59)=0,"",(AF59/S59)) -> 0.006318969123 | AI59: 0.13 | AK59: =AK58*AI59 -> 17.40816445 | AM59: =AK59-Z59 -> 0.10861871 | AN59: =IF((Z59)=0,"",(AM59/Z59)) -> 0.006278703014 | AP59: 0.13 | AR59: =AR58*AP59 -> 17.49396445 | AT59: =AR59-AK59 -> 0.0858 | AU59: =IF((AK59)=0,"",(AT59/AK59)) -> 0.004928721822 | AW59: 2.704209727 | AX59: 0.1828434466 | AY59: 0.03415456558 | BA59: 0.0116745928
B60: Total Bill (including HST) | H60: =H58+H59 -> 128.5570987 | L60: =L58+L59 -> 128.5570987 | N60: 0 | O60: 0 | S60: =S58+S59 -> 149.4287389 | U60: =S60-L60 -> 20.87164018 | V60: =IF((L60)=0,"",(U60/L60)) -> 0.1623530741 | Z60: =Z58+Z59 -> 150.3729745 | AB60: Total Bill (including HST) | AF60: =Z60-S60 -> 0.9442355872 | AG60: =IF((S60)=0,"",(AF60/S60)) -> 0.006318969123 | AK60: =AK58+AK59 -> 151.3171217 | AM60: =AK60-Z60 -> 0.9441472481 | AN60: =IF((Z60)=0,"",(AM60/Z60)) -> 0.006278703014 | AR60: =AR58+AR59 -> 152.0629217 | AT60: =AR60-AK60 -> 0.7458 | AU60: =IF((AK60)=0,"",(AT60/AK60)) -> 0.004928721822 | AW60: 23.50582302 | AX60: 0.1828434466 | AY60: 0.03415456558 | BA60: 0.0116745928
B61: Ontario Clean Energy Benefit 1 | H61: =ROUND(-H60*10%,2) -> -12.86 | L61: =ROUND(-L60*10%,2) -> -12.86 | N61: 0 | O61: 0 | U61: =S61-L61 -> 12.86 | V61: =IF((L61)=0,"",(U61/L61)) -> -1 | AB61: Ontario Clean Energy Benefit 1 | AF61: =Z61-S61 -> 0 | AG61: =IF((S61)=0,"",(AF61/S61)) ->  | AM61: =AK61-Z61 -> 0 | AN61: =IF((Z61)=0,"",(AM61/Z61)) ->  | AT61: =AR61-AK61 -> 0 | AU61: =IF((AK61)=0,"",(AT61/AK61)) ->  | AW61: 12.86 | AX61: -1 | AY61: -1 | BA61: 0.01154970507
B62: Total Bill on RPP (including OCEB) | H62: =SUM(H60:H61) -> 115.6970987 | L62: =SUM(L60:L61) -> 115.6970987 | N62: 0 | O62: 0 | S62: =SUM(S60:S61) -> 149.4287389 | U62: =S62-L62 -> 33.73164018 | V62: =IF((L62)=0,"",(U62/L62)) -> 0.2915513056 | Z62: =SUM(Z60:Z61) -> 150.3729745 | AB62: Total Bill on RPP (including OCEB) | AF62: =Z62-S62 -> 0.9442355872 | AG62: =IF((S62)=0,"",(AF62/S62)) -> 0.006318969123 | AK62: =SUM(AK60:AK61) -> 151.3171217 | AM62: =AK62-Z62 -> 0.9441472481 | AN62: =IF((Z62)=0,"",(AM62/Z62)) -> 0.006278703014 | AR62: =SUM(AR60:AR61) -> 152.0629217 | AT62: =AR62-AK62 -> 0.7458 | AU62: =IF((AK62)=0,"",(AT62/AK62)) -> 0.004928721822 | AW62: 36.36582302 | AX62: 0.3143192303 | AY62: 0.05618543078 | BA62: 0.01168847055
B65: Loss Factor (%) | F65: 0.043 | J65: 0.043 | Q65: 0.0486488321 | X65: 0.0486488321 | AB65: Loss Factor (%) | AI65: 0.0486488321 | AP65: 0.0486488321
B66: Effective cost of Line Loss per kWh | H66: =H35/D19 -> 0.00397578 | L66: =L35/D19 -> 0.00397578 | AB66: Effective cost of Line Loss per kWh
B67: Distribution excluding Rate Riders | AB67: Distribution excluding Rate Riders
B68: Monthly Service Charge | D68: Monthly | F68: 8.47 | G68: =G23 -> 1 | H68: =G68*F68 -> 8.47 | J68: 8.47 | K68: =K23 -> 1 | L68: =K68*J68 -> 8.47 | N68: =L68-H68 -> 0 | O68: =IF((H68)=0,"",(N68/H68)) -> 0 | Q68: 11.21 | R68: =R23 -> 1 | S68: =R68*Q68 -> 11.21 | U68: =S68-L68 -> 2.74 | V68: =IF((L68)=0,"",(U68/L68)) -> 0.3234946871 | X68: 14.22 | Y68: =Y23 -> 1 | Z68: =Y68*X68 -> 14.22 | AB68: Monthly Service Charge | AD68: Monthly | AF68: =Z68-S68 -> 3.01 | AG68: =IF((S68)=0,"",(AF68/S68)) -> 0.2685102587 | AI68: 17.93 | AJ68: =AJ23 -> 1 | AK68: =AJ68*AI68 -> 17.93 | AM68: =AK68-Z68 -> 3.71 | AN68: =IF((Z68)=0,"",(AM68/Z68)) -> 0.2609001406 | AP68: 21.55 | AQ68: =AQ23 -> 1 | AR68: =AQ68*AP68 -> 21.55 | AT68: =AR68-AK68 -> 3.62 | AU68: =IF((AK68)=0,"",(AT68/AK68)) -> 0.2018962632 | AW68: =AR68-H68 -> 13.08 | AX68: =IFERROR(AW68/H68,1) -> 1.544273908 | AY68: =IFERROR((AR68/H68)^(1/(2019-2014))-1,0) -> 0.2053488915 | BA68: 0.05366330364
B69: Distribution Volumetric Rate | D69: per kWh | F69: 0.012 | G69: =$D$19 -> 800 | H69: =G69*F69 -> 9.6 | J69: 0.012 | K69: =$D$19 -> 800 | L69: =K69*J69 -> 9.6 | N69: =L69-H69 -> 0 | O69: =IF((H69)=0,"",(N69/H69)) -> 0 | Q69: 0.0142 | R69: =$D$19 -> 800 | S69: =R69*Q69 -> 11.36 | U69: =S69-L69 -> 1.76 | V69: =IF((L69)=0,"",(U69/L69)) -> 0.1833333333 | X69: 0.0109 | Y69: =$D$19 -> 800 | Z69: =Y69*X69 -> 8.72 | AB69: Distribution Volumetric Rate | AD69: per kWh | AF69: =Z69-S69 -> -2.64 | AG69: =IF((S69)=0,"",(AF69/S69)) -> -0.2323943662 | AI69: 0.0078 | AJ69: =$D$19 -> 800 | AK69: =AJ69*AI69 -> 6.24 | AM69: =AK69-Z69 -> -2.48 | AN69: =IF((Z69)=0,"",(AM69/Z69)) -> -0.2844036697 | AP69: 0.0041 | AQ69: =$D$19 -> 800 | AR69: =AQ69*AP69 -> 3.28 | AT69: =AR69-AK69 -> -2.96 | AU69: =IF((AK69)=0,"",(AT69/AK69)) -> -0.4743589744 | AW69: =AR69-H69 -> -6.32 | AX69: =IFERROR(AW69/H69,1) -> -0.6583333333 | AY69: =IFERROR((AR69/H69)^(1/(2019-2014))-1,0) -> -0.1932842758 | BA69: 0.05387395206
B70: "Regular" Distribution Rates only | H70: =SUM(H68:H69) -> 18.07 | L70: =SUM(L68:L69) -> 18.07 | N70: =L70-H70 -> 0 | O70: =IF((H70)=0,"",(N70/H70)) -> 0 | S70: =SUM(S68:S69) -> 22.57 | U70: =S70-L70 -> 4.5 | V70: =IF((L70)=0,"",(U70/L70)) -> 0.249031544 | Z70: =SUM(Z68:Z69) -> 22.94 | AB70: "Regular" Distribution Rates only | AF70: =Z70-S70 -> 0.37 | AG70: =IF((S70)=0,"",(AF70/S70)) -> 0.01639344262 | AK70: =SUM(AK68:AK69) -> 24.17 | AM70: =AK70-Z70 -> 1.23 | AN70: =IF((Z70)=0,"",(AM70/Z70)) -> 0.05361813426 | AR70: =SUM(AR68:AR69) -> 24.83 | AT70: =AR70-AK70 -> 0.66 | AU70: =IF((AK70)=0,"",(AT70/AK70)) -> 0.0273065784 | AW70: =AR70-H70 -> 6.76 | AX70: =IFERROR(AW70/H70,0) -> 0.3741007194 | AY70: 0.06562331364 | BA70: 0.05377523523
A72: 1 Applicable to eligible customers only. Refer to the Ontario Clean Energy Benefit Act, 2010.
A74: Note that the "Charge $" columns provide breakdowns of the amounts that each bill component contributes to the total monthly bill at the referenced
A75: consumption level at existing and proposed rates.
A77: Applicants must provide bill impacts for residential at 800 kWh and GS<50kW at 2000 kWh. In addition, their filing must cover the range that is relevant
A78: to their service territory, class by class. A general guideline of consumption levels follows:
A80: Residential (kWh) - 100, 250, 500, 800, 1000, 1500, 2000
A81: GS<50kW (kWh) - 1000, 2000, 5000, 10000, 15000
A82: GS>50kW (kW) - 60, 100, 500, 1000
A83: Large User - range appropriate for utility
A84: Lighting Classes and USL - 150 kWh and 1 kW, range appropriate for utility.
B86: Note that cells with the highlighted color shown to the left indicate quantities that are loss adjusted. | AB86: Note that cells with the highlighted color shown to the left indicate quantities that are loss adjusted.
B90: Loss Factor Volume | F90: 34.4 | J90: 34.4 | Q90: 38.91906568 | X90: 38.91906568 | AB90: Loss Factor Volume | AI90: 38.91906568 | AP90: 38.91906568
D91: =F91&"/"&J91 -> 34/34 | F91: 34 | J91: 34 | AD91: =AF91&"/"&AJ91 -> /
D92: =F92&"/"&J92 -> 834/834 | F92: 834 | J92: 834 | AD92: =AF92&"/"&AJ92 -> /

Sheet App.2-W_(GS<50 KW)
A1: 1 | B1: File Number: | D1: =EBNUMBER ->  | AB1: File Number: | AD1: =EBNUMBER -> 
B2: Exhibit: | AB2: Exhibit:
B3: Tab: | AB3: Tab:
B4: Schedule: | AB4: Schedule:
B5: Page: | AB5: Page:
B7: Date: | AB7: Date:
B10: Appendix 2-W : Bill Impacts | Q10: GS < 50 KW (i of ii) | AB10: Appendix 2-W : Bill Impacts | AR10: =B15&" (ii of ii)" -> GS < 50 KW (ii of ii)
B11: Bill Impacts - These will need to be completed once source of rates are determined
B14: Customer Class: | AB14: Customer Class:
B15: GS < 50 KW | AB15: GS < 50 KW
B16: TOU / non-TOU: | D16: TOU | AB16: TOU / non-TOU: | AD16: TOU
D18: Consumption | AD18: Consumption
B19: kWh | D19: 2000 | AB19: kWh | AD19: 2000
F20: 2014 Rates | J20: 2015 Rates | N20: 2015 v 2014 | Q20: 2016 Proposed Rates | U20: 2016 v 2015 | X20: 2017 Proposed Rates | AF20: 2017 v 2016 | AI20: 2018 Proposed Interim Rates | AM20: 2018 v 2017 | AP20: 2019 Proposed Interim Rates | AT20: 2019 v 2018 | AW20: 2019 v 2014
D21: Charge Unit | F21: Rate | G21: Volume | H21: Charge | J21: Rate | K21: Volume | L21: Charge | N21: $ Change | O21: % Change | Q21: Rate | R21: Volume | S21: Charge | U21: $ Change | V21: % Change | X21: Rate | Y21: Volume | Z21: Charge | AD21: Charge Unit | AF21: $ Change | AG21: % Change | AI21: Rate | AJ21: Volume | AK21: Charge | AM21: $ Change | AN21: % Change | AP21: Rate | AQ21: Volume | AR21: Charge | AT21: $ Change | AU21: % Change | AW21: $ Change | AX21: % Change | AY21: % CAGR
F22: ($) | H22: ($) | J22: ($) | L22: ($) | Q22: ($) | S22: ($) | X22: ($) | Z22: ($) | AI22: ($) | AK22: ($) | AP22: ($) | AR22: ($)
B23: Monthly Service Charge | D23: Monthly | F23: 8.38 | G23: 1 | H23: =G23*F23 -> 8.38 | J23: 8.38 | K23: 1 | L23: =K23*J23 -> 8.38 | N23: =L23-H23 -> 0 | O23: =IF((H23)=0,"",(N23/H23)) -> 0 | Q23: 16.02 | R23: 1 | S23: =R23*Q23 -> 16.02 | U23: =S23-L23 -> 7.64 | V23: =IF((L23)=0,"",(U23/L23)) -> 0.9116945107 | X23: 16.24 | Y23: 1 | Z23: =Y23*X23 -> 16.24 | AB23: Monthly Service Charge | AD23: Monthly | AF23: =Z23-S23 -> 0.22 | AG23: =IF((S23)=0,"",(AF23/S23)) -> 0.01373283396 | AI23: 17 | AJ23: 1 | AK23: =AJ23*AI23 -> 17 | AM23: =AK23-Z23 -> 0.76 | AN23: =IF((Z23)=0,"",(AM23/Z23)) -> 0.04679802956 | AP23: 17.37 | AQ23: 1 | AR23: =AQ23*AP23 -> 17.37 | AT23: =AR23-AK23 -> 0.37 | AU23: =IF((AK23)=0,"",(AT23/AK23)) -> 0.02176470588 | AW23: =AR23-H23 -> 8.99 | AX23: =IFERROR(AW23/H23,1) -> 1.072792363
B24: Smart Meter Rate Rider | D24: Monthly | F24: 0.43 | G24: 1 | H24: =G24*F24 -> 0.43 | J24: 0.43 | K24: 1 | L24: =K24*J24 -> 0.43 | N24: =L24-H24 -> 0 | O24: =IF((H24)=0,"",(N24/H24)) -> 0 | Q24: 0 | R24: 1 | S24: =R24*Q24 -> 0 | U24: =S24-L24 -> -0.43 | V24: -1 | X24: 0 | Y24: 1 | Z24: =Y24*X24 -> 0 | AB24: Smart Meter Rate Rider | AD24: Monthly | AF24: =Z24-S24 -> 0 | AI24: 0 | AJ24: 1 | AK24: =AJ24*AI24 -> 0 | AM24: =AK24-Z24 -> 0 | AP24: 0 | AQ24: 1 | AR24: =AQ24*AP24 -> 0 | AT24: =AR24-AK24 -> 0 | AW24: =AR24-H24 -> -0.43 | AX24: =IFERROR(AW24/H24,1) -> -1
B25: Stranded Meter Rate Rider | D25: Monthly | F25: 2.49 | G25: 1 | H25: 2.49 | J25: 2.49 | K25: 1 | L25: =K25*J25 -> 2.49 | N25: =L25-H25 -> 0 | O25: =IF((H25)=0,"",(N25/H25)) -> 0 | Q25: 0 | R25: 1 | S25: =R25*Q25 -> 0 | U25: -2.49 | V25: -1 | X25: 0 | Y25: 1 | Z25: =Y25*X25 -> 0 | AB25: Stranded Meter Rate Rider | AD25: Monthly | AF25: 0 | AI25: 0 | AJ25: 1 | AK25: =AJ25*AI25 -> 0 | AM25: 0 | AP25: 0 | AQ25: 1 | AR25: =AQ25*AP25 -> 0 | AT25: 0 | AW25: -2.49 | AX25: -1
D26: per kWh | G26: =$D$19 -> 2000 | H26: 0 | K26: =$D$19 -> 2000 | L26: 0 | N26: 0 | R26: =$D$19 -> 2000 | S26: 0 | U26: 0 | Y26: =$D$19 -> 2000 | Z26: 0 | AB26: =B26 -> 0 | AD26: per kWh | AF26: 0 | AJ26: =$D$19 -> 2000 | AK26: 0 | AM26: 0 | AQ26: =$D$19 -> 2000 | AR26: 0 | AT26: 0 | AW26: 0 | AX26: 1
B27: Distribution Volumetric Rate | D27: per kWh | F27: 0.017 | G27: =$D$19 -> 2000 | H27: 34 | J27: 0.017 | K27: =$G27 -> 2000 | L27: 34 | N27: 0 | O27: 0 | Q27: 0.0157 | R27: =$G27 -> 2000 | S27: 31.4 | U27: -2.6 | V27: -0.07647058824 | X27: 0.0161 | Y27: =$G27 -> 2000 | Z27: 32.2 | AB27: Distribution Volumetric Rate | AD27: per kWh | AF27: 0.8 | AG27: 0.02547770701 | AI27: 0.0171 | AJ27: =$G27 -> 2000 | AK27: 34.2 | AM27: 2 | AN27: 0.06211180124 | AP27: 0.0177 | AQ27: =$G27 -> 2000 | AR27: 35.4 | AT27: 1.2 | AU27: 0.0350877193 | AW27: 1.4 | AX27: 0.04117647059
B28: ='App.2-W_(Resi)'!B28 -> 2015 Oct-Dec Recovery | D28: Monthly | G28: 1 | H28: 0 | J28: 0 | K28: =$G28 -> 1 | L28: 0 | N28: 0 | Q28: 1.6 | R28: =$G28 -> 1 | S28: 1.6 | U28: 1.6 | X28: 0 | Y28: =$G28 -> 1 | Z28: 0 | AB28: =B28 -> 2015 Oct-Dec Recovery | AD28: Monthly | AF28: -1.6 | AG28: -1 | AI28: 0 | AJ28: =$G28 -> 1 | AK28: 0 | AM28: 0 | AP28: 0 | AQ28: =$G28 -> 1 | AR28: 0 | AT28: 0 | AW28: 0 | AX28: 1
B29: Sub-Total A (excluding pass through) | H29: =SUM(H23:H28) -> 45.3 | L29: =SUM(L23:L28) -> 45.3 | N29: 0 | O29: 0 | S29: =SUM(S23:S28) -> 49.02 | U29: 3.72 | V29: 0.0821192053 | Z29: =SUM(Z23:Z28) -> 48.44 | AB29: Sub-Total A (excluding pass through) | AF29: -0.58 | AG29: -0.01183190534 | AK29: =SUM(AK23:AK28) -> 51.2 | AM29: 2.76 | AN29: 0.05697770438 | AR29: =SUM(AR23:AR28) -> 52.77 | AT29: 1.57 | AU29: 0.0306640625 | AW29: 7.47 | AX29: =IFERROR(AW29/H29,0) -> 0.1649006623 | AY29: =IFERROR((AR29/H29)^(1/(2019-2014))-1,0) -> 0.03099789465
B30: Deferral & Variance Accounts Disposition Rate Rider (2012) | D30: per kWh | F30: 0.0003 | G30: =$D$19 -> 2000 | H30: =G30*F30 -> 0.6 | J30: 0.0003 | K30: =$G30 -> 2000 | L30: =K30*J30 -> 0.6 | N30: =L30-H30 -> 0 | O30: =IF((H30)=0,"",(N30/H30)) -> 0 | Q30: 0 | R30: =$G30 -> 2000 | S30: =R30*Q30 -> 0 | U30: -0.6 | V30: -1 | X30: 0 | Y30: =$G30 -> 2000 | Z30: =Y30*X30 -> 0 | AB30: Deferral & Variance Accounts Disposition Rate Rider (2012) | AD30: per kWh | AF30: 0 | AI30: 0 | AJ30: =$G30 -> 2000 | AK30: =AJ30*AI30 -> 0 | AM30: 0 | AP30: 0 | AQ30: =$G30 -> 2000 | AR30: =AQ30*AP30 -> 0 | AT30: 0 | AW30: -0.6 | AX30: =IFERROR(AW30/H30,1) -> -1
B31: Deferral & Variance Accounts Disposition Rate Rider (2015) | D31: per kWh | G31: =$D$19 -> 2000 | H31: =G31*F31 -> 0 | K31: =$G31 -> 2000 | L31: =K31*J31 -> 0 | N31: =L31-H31 -> 0 | O31: =IF((H31)=0,"",(N31/H31)) ->  | Q31: 0.0006266869141 | R31: =$G31 -> 2000 | S31: =R31*Q31 -> 1.253373828 | U31: 1.253373828 | X31: 0.0006266869141 | Y31: =$G31 -> 2000 | Z31: =Y31*X31 -> 1.253373828 | AB31: Deferral & Variance Accounts Disposition Rate Rider (2015) | AD31: per kWh | AF31: 0 | AG31: 0 | AI31: 0.0006266869141 | AJ31: =$G31 -> 2000 | AK31: =AJ31*AI31 -> 1.253373828 | AM31: 0 | AN31: 0 | AP31: 0.0006266869141 | AQ31: =$G31 -> 2000 | AR31: =AQ31*AP31 -> 1.253373828 | AT31: 0 | AU31: 0 | AW31: 1.253373828 | AX31: 1
B32: Global Adjustment Disposition Rate Rider (2015) | D32: per kWh | G32: =$D$19 -> 2000 | H32: 0 | K32: =$G32 -> 2000 | L32: 0 | N32: 0 | Q32: 0.001343866791 | R32: =$G32 -> 2000 | S32: 2.687733582 | U32: 2.687733582 | X32: 0.001343866791 | Y32: =$G32 -> 2000 | Z32: 2.687733582 | AB32: Global Adjustment Disposition Rate Rider (2015) | AD32: per kWh | AF32: 0 | AG32: 0 | AI32: 0.001343866791 | AJ32: =$G32 -> 2000 | AK32: 2.687733582 | AM32: 0 | AN32: 0 | AP32: 0.001343866791 | AQ32: =$G32 -> 2000 | AR32: 2.687733582 | AT32: 0 | AU32: 0 | AW32: 2.687733582 | AX32: 1
B33: ='App.2-W_(Resi)'!B33 -> Deferral & Variance Accounts Disposition Rate Rider for Group 2 DVAs (2015) | D33: per kWh | G33: =$D$19 -> 2000 | H33: 0 | J33: 0 | K33: =$G33 -> 2000 | L33: 0 | N33: 0 | Q33: 7.224072457e-05 | R33: =$G33 -> 2000 | S33: 0.1444814491 | U33: 0.1444814491 | X33: 7.224072457e-05 | Y33: =$G33 -> 2000 | Z33: 0.1444814491 | AB33: =B33 -> Deferral & Variance Accounts Disposition Rate Rider for Group 2 DVAs (2015) | AD33: per kWh | AF33: 0 | AG33: 0 | AI33: 7.224072457e-05 | AJ33: =$G33 -> 2000 | AK33: 0.1444814491 | AM33: 0 | AN33: 0 | AP33: 7.224072457e-05 | AQ33: =$G33 -> 2000 | AR33: 0.1444814491 | AT33: 0 | AU33: 0 | AW33: 0.1444814491 | AX33: 1
B34: Low Voltage Service Charge | D34: per kWh | G34: =$D$19 -> 2000 | H34: =G34*F34 -> 0 | K34: =$G34 -> 2000 | L34: =K34*J34 -> 0 | N34: =L34-H34 -> 0 | R34: =$G34 -> 2000 | S34: =R34*Q34 -> 0 | U34: 0 | Y34: =$G34 -> 2000 | Z34: =Y34*X34 -> 0 | AB34: Low Voltage Service Charge | AD34: per kWh | AF34: 0 | AJ34: =$G34 -> 2000 | AK34: =AJ34*AI34 -> 0 | AM34: 0 | AQ34: =$G34 -> 2000 | AR34: =AQ34*AP34 -> 0 | AT34: 0 | AW34: 0 | AX34: 1
B35: Line Losses on Cost of Power | D35: per kWh | F35: 0.09246 | G35: =$D$19*(1+F65)-$D$19 -> 86 | H35: 7.95156 | J35: 0.09246 | K35: =$D$19*(1+J65)-$D$19 -> 86 | L35: 7.95156 | N35: 0 | O35: 0 | Q35: 0.09246 | R35: =$D$19*(1+Q65)-$D$19 -> 97.2976642 | S35: =R35*Q35 -> 8.996142032 | U35: 1.044582032 | V35: 0.1313681883 | X35: 0.11184 | Y35: =$D$19*(1+X65)-$D$19 -> 97.2976642 | Z35: =Y35*X35 -> 10.88177076 | AB35: Line Losses on Cost of Power | AD35: per kWh | AF35: 1.885628732 | AG35: 0.2096041531 | AI35: 0.09246 | AJ35: =$D$19*(1+AI65)-$D$19 -> 97.2976642 | AK35: =AJ35*AI35 -> 8.996142032 | AM35: -1.885628732 | AN35: -0.1732832618 | AP35: 0.09246 | AQ35: =$D$19*(1+AP65)-$D$19 -> 97.2976642 | AR35: =AQ35*AP35 -> 8.996142032 | AT35: 0 | AU35: 0 | AW35: 1.044582032 | AX35: 0.1313681883
B36: Smart Meter Entity Charge | D36: Monthly | F36: 0.79 | G36: 1 | H36: =G36*F36 -> 0.79 | J36: 0.79 | K36: 1 | L36: =K36*J36 -> 0.79 | N36: =L36-H36 -> 0 | O36: =IF((H36)=0,"",(N36/H36)) -> 0 | Q36: 0.79 | R36: 1 | S36: =R36*Q36 -> 0.79 | U36: 0 | V36: 0 | X36: 0.79 | Y36: 1 | Z36: =Y36*X36 -> 0.79 | AB36: Smart Meter Entity Charge | AD36: Monthly | AF36: 0 | AG36: 0 | AI36: 0.79 | AJ36: 1 | AK36: =AJ36*AI36 -> 0.79 | AM36: 0 | AN36: 0 | AP36: 0.79 | AQ36: 1 | AR36: =AQ36*AP36 -> 0.79 | AT36: 0 | AU36: 0 | AW36: 0 | AX36: 0
B37: Sub-Total B - Distribution (includes Sub-Total A) | H37: =SUM(H30:H36)+H29 -> 54.64156 | L37: =SUM(L30:L36)+L29 -> 54.64156 | N37: =L37-H37 -> 0 | O37: =IF((H37)=0,"",(N37/H37)) -> 0 | S37: =SUM(S30:S36)+S29 -> 62.89173089 | U37: 8.25017089 | V37: 0.1509871038 | Z37: =SUM(Z30:Z36)+Z29 -> 64.19735962 | AB37: Sub-Total B - Distribution (includes Sub-Total A) | AF37: 1.305628732 | AG37: 0.02075994274 | AK37: =SUM(AK30:AK36)+AK29 -> 65.07173089 | AM37: 0.8743712679 | AN37: 0.01362005031 | AR37: =SUM(AR30:AR36)+AR29 -> 66.64173089 | AT37: 1.57 | AU37: 0.02412722051 | AW37: 12.00017089 | AX37: =IFERROR(AW37/H37,0) -> 0.2196161839 | AY37: =IFERROR((AR37/H37)^(1/(2019-2014))-1,0) -> 0.04050611226
B38: RTSR - Network | D38: per kWh | F38: 0.0068 | G38: =$D$19*(1+F65) -> 2086 | H38: =G38*F38 -> 14.1848 | J38: 0.0068 | K38: =$D$19*(1+J65) -> 2086 | L38: =K38*J38 -> 14.1848 | N38: 0 | O38: 0 | Q38: 0.007194088883 | R38: =$D$19*(1+Q65) -> 2097.297664 | S38: =R38*Q38 -> 15.08814581 | U38: 0.9033458094 | V38: 0.06368407094 | X38: 0.0069 | Y38: =$D$19*(1+X65) -> 2097.297664 | Z38: =Y38*X38 -> 14.47135388 | AB38: RTSR - Network | AD38: per kWh | AF38: -0.6167919265 | AG38: -0.04087923952 | AI38: 0.007194088883 | AJ38: =$D$19*(1+AI65) -> 2097.297664 | AK38: =AJ38*AI38 -> 15.08814581 | AM38: 0.6167919265 | AN38: 0.04262157718 | AP38: 0.007194088883 | AQ38: =$D$19*(1+AP65) -> 2097.297664 | AR38: =AQ38*AP38 -> 15.08814581 | AT38: 0 | AU38: 0 | AW38: 0.9033458094 | AX38: 0.06368407094
B39: RTSR - Line and Transformation Connection | D39: per kWh | F39: 0.0052 | G39: =G38 -> 2086 | H39: =G39*F39 -> 10.8472 | J39: 0.0052 | K39: =K38 -> 2086 | L39: =K39*J39 -> 10.8472 | N39: 0 | O39: 0 | Q39: 0.005650268073 | R39: =R38 -> 2097.297664 | S39: =R39*Q39 -> 11.85029403 | U39: 1.003094032 | V39: 0.0924749274 | X39: 0.005650268073 | Y39: =Y38 -> 2097.297664 | Z39: =Y39*X39 -> 11.85029403 | AB39: RTSR - Line and Transformation Connection | AD39: per kWh | AF39: 0 | AG39: 0 | AI39: 0.005650268073 | AJ39: =AJ38 -> 2097.297664 | AK39: =AJ39*AI39 -> 11.85029403 | AM39: 0 | AN39: 0 | AP39: 0.005650268073 | AQ39: =AQ38 -> 2097.297664 | AR39: =AQ39*AP39 -> 11.85029403 | AT39: 0 | AU39: 0 | AW39: 1.003094032 | AX39: 0.0924749274
B40: Sub-Total C - Delivery (including Sub-Total B) | H40: =SUM(H37:H39) -> 79.67356 | L40: =SUM(L37:L39) -> 79.67356 | N40: 0 | O40: =IF((H40)=0,"",(N40/H40)) -> 0 | S40: =SUM(S37:S39) -> 89.83017073 | U40: 10.15661073 | V40: 0.1274778073 | Z40: =SUM(Z37:Z39) -> 90.51900754 | AB40: Sub-Total C - Delivery (including Sub-Total B) | AF40: 0.6888368057 | AG40: 0.007668212139 | AK40: =SUM(AK37:AK39) -> 92.01017073 | AM40: 1.491163194 | AN40: 0.01647348148 | AR40: =SUM(AR37:AR39) -> 93.58017073 | AT40: 1.57 | AU40: 0.01706333102 | AW40: 13.90661073 | AX40: 0.1745448645 | AY40: =IFERROR((AR40/H40)^(1/(2019-2014))-1,0) -> 0.03269939374
B41: Wholesale Market Service Charge (WMSC) | D41: per kWh | F41: 0.0044 | G41: =G39 -> 2086 | H41: =G41*F41 -> 9.1784 | J41: 0.0044 | K41: =K39 -> 2086 | L41: =K41*J41 -> 9.1784 | N41: 0 | O41: 0 | Q41: 0.0036 | R41: =R39 -> 2097.297664 | S41: =R41*Q41 -> 7.550271591 | U41: =S41-L41 -> -1.628128409 | V41: -0.1773869529 | X41: 0.0036 | Y41: =Y39 -> 2097.297664 | Z41: =Y41*X41 -> 7.550271591 | AB41: Wholesale Market Service Charge (WMSC) | AD41: per kWh | AF41: =Z41-S41 -> 0 | AG41: 0 | AI41: =X41 -> 0.0036 | AJ41: =AJ39 -> 2097.297664 | AK41: =AJ41*AI41 -> 7.550271591 | AM41: =AK41-Z41 -> 0 | AN41: 0 | AP41: =AI41 -> 0.0036 | AQ41: =AQ39 -> 2097.297664 | AR41: =AQ41*AP41 -> 7.550271591 | AT41: =AR41-AK41 -> 0 | AU41: 0 | AW41: -1.628128409 | AX41: =IF((AN41)=0,"",(AW41/AN41)) -> 
B42: Rural and Remote Rate Protection (RRRP) | D42: per kWh | F42: 0.0013 | G42: =G39 -> 2086 | H42: 2.7118 | J42: 0.0013 | K42: =K39 -> 2086 | L42: 2.7118 | N42: 0 | O42: 0 | Q42: 0.0013 | R42: =R39 -> 2097.297664 | S42: 2.726486963 | U42: 0.01468696346 | V42: 0.005415946403 | X42: 0.0021 | Y42: =Y39 -> 2097.297664 | Z42: 4.404325095 | AB42: Rural and Remote Rate Protection (RRRP) | AD42: per kWh | AF42: 1.677838131 | AG42: 0.6153846154 | AI42: =X42 -> 0.0021 | AJ42: =AJ39 -> 2097.297664 | AK42: 4.404325095 | AM42: 0 | AN42: 0 | AP42: =AI42 -> 0.0021 | AQ42: =AQ39 -> 2097.297664 | AR42: 4.404325095 | AT42: 0 | AU42: 0 | AW42: 1.692525095
B43: ='App.2-W_(Resi)'!B43 -> Ontario Electricity Support Program (OESP) | D43: per kWh | Q43: 0.0011 | R43: =R42 -> 2097.297664 | S43: =R43*Q43 -> 2.307027431 | U43: =S43-L43 -> 2.307027431 | V43: =IF((L43)=0,"",(U43/L43)) ->  | X43: 0.0011 | Y43: =Y42 -> 2097.297664 | Z43: =Y43*X43 -> 2.307027431 | AB43: =B43 -> Ontario Electricity Support Program (OESP) | AD43: per kWh | AF43: =Z43-S43 -> 0 | AG43: =IF((S43)=0,"",(AF43/S43)) -> 0 | AI43: 0.0011 | AJ43: =AJ42 -> 2097.297664 | AK43: =AJ43*AI43 -> 2.307027431 | AM43: =AK43-Z43 -> 0 | AN43: =IF((Z43)=0,"",(AM43/Z43)) -> 0 | AP43: 0.0011 | AQ43: =AQ42 -> 2097.297664 | AR43: =AQ43*AP43 -> 2.307027431 | AT43: =AR43-AK43 -> 0 | AU43: =IF((AK43)=0,"",(AT43/AK43)) -> 0 | AW43: =AR43-H43 -> 2.307027431
B44: Standard Supply Service Charge | D44: Monthly | F44: 0.25 | G44: 1 | H44: 0.25 | J44: 0.25 | K44: =$G44 -> 1 | L44: 0.25 | N44: 0 | O44: 0 | Q44: 0.25 | R44: =$G44 -> 1 | S44: 0.25 | U44: 0 | V44: 0 | X44: 0.25 | Y44: =$G44 -> 1 | Z44: 0.25 | AB44: Standard Supply Service Charge | AD44: Monthly | AF44: 0 | AG44: 0 | AI44: 0.25 | AJ44: =$G44 -> 1 | AK44: 0.25 | AM44: 0 | AN44: 0 | AP44: 0.25 | AQ44: =$G44 -> 1 | AR44: 0.25 | AT44: 0 | AU44: 0 | AW44: 0
B45: Debt Retirement Charge (DRC) | D45: per kWh | F45: 0.007 | G45: =$D$19 -> 2000 | H45: 14 | J45: 0.007 | K45: =$G45 -> 2000 | L45: 14 | N45: 0 | O45: 0 | Q45: 0.007 | R45: =$G45 -> 2000 | S45: 14 | U45: 0 | V45: 0 | X45: 0.007 | Y45: =$G45 -> 2000 | Z45: 14 | AB45: Debt Retirement Charge (DRC) | AD45: per kWh | AF45: 0 | AG45: 0 | AI45: 0.007 | AJ45: =$G45 -> 2000 | AK45: 14 | AM45: 0 | AN45: 0 | AP45: 0.007 | AQ45: =$G45 -> 2000 | AR45: 14 | AT45: 0 | AU45: 0 | AW45: 0
B46: TOU - Off Peak | D46: per kWh | F46: 0.075 | G46: =0.64*$D$19 -> 1280 | H46: 96 | J46: 0.075 | K46: 1280 | L46: 96 | N46: 0 | O46: 0 | Q46: 0.087 | R46: 1280 | S46: 111.36 | U46: 15.36 | V46: 0.16 | X46: 0.087 | Y46: 1280 | Z46: 111.36 | AB46: TOU - Off Peak | AD46: per kWh | AF46: 0 | AG46: 0 | AI46: 0.087 | AJ46: 1280 | AK46: 111.36 | AM46: 0 | AN46: 0 | AP46: 0.087 | AQ46: 1280 | AR46: 111.36 | AT46: 0 | AU46: 0 | AW46: 15.36
B47: TOU - Mid Peak | D47: per kWh | F47: 0.112 | G47: =0.18*$D$19 -> 360 | H47: 40.32 | J47: 0.112 | K47: 360 | L47: 40.32 | N47: 0 | O47: 0 | Q47: 0.132 | R47: 360 | S47: 47.52 | U47: 7.2 | V47: 0.1785714286 | X47: 0.132 | Y47: 360 | Z47: 47.52 | AB47: TOU - Mid Peak | AD47: per kWh | AF47: 0 | AG47: 0 | AI47: 0.132 | AJ47: 360 | AK47: 47.52 | AM47: 0 | AN47: 0 | AP47: 0.132 | AQ47: 360 | AR47: 47.52 | AT47: 0 | AU47: 0 | AW47: 7.2
B48: TOU - On Peak | D48: per kWh | F48: 0.135 | G48: =0.18*$D$19 -> 360 | H48: 48.6 | J48: 0.135 | K48: 360 | L48: 48.6 | N48: 0 | O48: 0 | Q48: 0.18 | R48: 360 | S48: 64.8 | U48: 16.2 | V48: 0.3333333333 | X48: 0.18 | Y48: 360 | Z48: 64.8 | AB48: TOU - On Peak | AD48: per kWh | AF48: 0 | AG48: 0 | AI48: 0.18 | AJ48: 360 | AK48: 64.8 | AM48: 0 | AN48: 0 | AP48: 0.18 | AQ48: 360 | AR48: 64.8 | AT48: 0 | AU48: 0 | AW48: 16.2
B49: Energy - RPP - Tier 1 | D49: per kWh | F49: 0.083 | G49: =IF(AND($A$1=1, D19>=600), 600, IF(AND($A$1=1, AND(D19<600, D19>=0)), D19, IF(AND($A$1=2, D19>=1000), 1000, IF(AND($A$1=2, AND(D19<1000, D19>=0)), D19)))) -> 600 | H49: =G49*F49 -> 49.8 | J49: 0.083 | K49: 600 | L49: =K49*J49 -> 49.8 | N49: 0 | O49: 0 | Q49: 0.103 | R49: 600 | S49: =R49*Q49 -> 61.8 | U49: 12 | V49: 0.2409638554 | X49: 0.103 | Y49: 600 | Z49: =Y49*X49 -> 61.8 | AB49: Energy - RPP - Tier 1 | AD49: per kWh | AF49: 0 | AG49: 0 | AI49: 0.103 | AJ49: 600 | AK49: =AJ49*AI49 -> 61.8 | AM49: 0 | AN49: 0 | AP49: 0.103 | AQ49: 600 | AR49: =AQ49*AP49 -> 61.8 | AT49: 0 | AU49: 0 | AW49: 12
B50: Energy - RPP - Tier 2 | D50: per kWh | F50: 0.097 | G50: =IF(AND($A$1=1, D19>=600), D19-600, IF(AND($A$1=1, AND(D19<600, D19>=0)), 0, IF(AND($A$1=2, D19>=1000), D19-1000, IF(AND($A$1=2, AND(D19<1000, D19>=0)), 0)))) -> 1400 | H50: =G50*F50 -> 135.8 | J50: 0.097 | K50: 1400 | L50: =K50*J50 -> 135.8 | N50: 0 | O50: 0 | Q50: 0.121 | R50: 1400 | S50: =R50*Q50 -> 169.4 | U50: 33.6 | V50: 0.2474226804 | X50: 0.121 | Y50: 1400 | Z50: =Y50*X50 -> 169.4 | AB50: Energy - RPP - Tier 2 | AD50: per kWh | AF50: 0 | AG50: 0 | AI50: 0.121 | AJ50: 1400 | AK50: =AJ50*AI50 -> 169.4 | AM50: 0 | AN50: 0 | AP50: 0.121 | AQ50: 1400 | AR50: =AQ50*AP50 -> 169.4 | AT50: 0 | AU50: 0 | AW50: 33.6
B52: Total Bill on TOU (before Taxes) | H52: =SUM(H41:H48,H40) -> 290.73376 | L52: =SUM(L41:L48,L40) -> 290.73376 | N52: =L52-H52 -> 0 | O52: =IF((H52)=0,"",(N52/H52)) -> 0 | S52: =SUM(S41:S48,S40) -> 340.3439567 | U52: =S52-L52 -> 49.61019672 | V52: =IF((L52)=0,"",(U52/L52)) -> 0.1706378947 | Z52: =SUM(Z41:Z48,Z40) -> 342.7106317 | AB52: Total Bill on TOU (before Taxes) | AF52: =Z52-S52 -> 2.366674937 | AG52: =IF((S52)=0,"",(AF52/S52)) -> 0.00695377394 | AK52: =SUM(AK41:AK48,AK40) -> 344.2017948 | AM52: =AK52-Z52 -> 1.491163194 | AN52: =IF((Z52)=0,"",(AM52/Z52)) -> 0.004351085308 | AR52: =SUM(AR41:AR48,AR40) -> 345.7717948 | AT52: =AR52-AK52 -> 1.57 | AU52: =IF((AK52)=0,"",(AT52/AK52)) -> 0.004561277784 | AW52: 55.03803485 | AX52: =IFERROR(AW52/H52,1) -> 0.1893073403 | AY52: =IFERROR((AR52/H52)^(1/(2019-2014))-1,0) -> 0.0352823735
B53: HST | F53: 0.13 | H53: =H52*F53 -> 37.7953888 | J53: 0.13 | L53: =L52*J53 -> 37.7953888 | N53: 0 | O53: 0 | Q53: 0.13 | S53: =S52*Q53 -> 44.24471437 | U53: =S53-L53 -> 6.449325573 | V53: =IF((L53)=0,"",(U53/L53)) -> 0.1706378947 | X53: 0.13 | Z53: =Z52*X53 -> 44.55238212 | AB53: HST | AF53: =Z53-S53 -> 0.3076677418 | AG53: =IF((S53)=0,"",(AF53/S53)) -> 0.00695377394 | AI53: 0.13 | AK53: =AK52*AI53 -> 44.74623333 | AM53: =AK53-Z53 -> 0.1938512153 | AN53: =IF((Z53)=0,"",(AM53/Z53)) -> 0.004351085308 | AP53: 0.13 | AR53: =AR52*AP53 -> 44.95033333 | AT53: =AR53-AK53 -> 0.2041 | AU53: =IF((AK53)=0,"",(AT53/AK53)) -> 0.004561277784 | AW53: 7.15494453 | AX53: 0.1893073403 | AY53: 0.0352823735
B54: Total Bill (including HST) | H54: =H52+H53 -> 328.5291488 | L54: =L52+L53 -> 328.5291488 | N54: 0 | O54: 0 | S54: =S52+S53 -> 384.5886711 | U54: =S54-L54 -> 56.05952229 | V54: =IF((L54)=0,"",(U54/L54)) -> 0.1706378947 | Z54: =Z52+Z53 -> 387.2630138 | AB54: Total Bill (including HST) | AF54: =Z54-S54 -> 2.674342679 | AG54: =IF((S54)=0,"",(AF54/S54)) -> 0.00695377394 | AK54: =AK52+AK53 -> 388.9480282 | AM54: =AK54-Z54 -> 1.68501441 | AN54: =IF((Z54)=0,"",(AM54/Z54)) -> 0.004351085308 | AR54: =AR52+AR53 -> 390.7221282 | AT54: =AR54-AK54 -> 1.7741 | AU54: =IF((AK54)=0,"",(AT54/AK54)) -> 0.004561277784 | AW54: 62.19297938 | AX54: 0.1893073403 | AY54: 0.0352823735
B55: Ontario Clean Energy Benefit 1 | H55: =ROUND(-H54*10%,2) -> -32.85 | L55: =ROUND(-L54*10%,2) -> -32.85 | N55: 0 | O55: 0 | V55: =IF((L55)=0,"",(U55/L55)) -> 0 | AB55: Ontario Clean Energy Benefit 1 | AF55: =Z55-S55 -> 0 | AG55: =IF((S55)=0,"",(AF55/S55)) ->  | AM55: =AK55-Z55 -> 0 | AN55: =IF((Z55)=0,"",(AM55/Z55)) ->  | AT55: =AR55-AK55 -> 0 | AU55: =IF((AK55)=0,"",(AT55/AK55)) ->  | AW55: 32.85 | AX55: -1 | AY55: -1
B56: Total Bill on TOU (including OCEB) | H56: =H54+H55 -> 295.6791488 | L56: =L54+L55 -> 295.6791488 | N56: 0 | O56: 0 | S56: =S54+S55 -> 384.5886711 | U56: =S56-L56 -> 88.90952229 | V56: =IF((L56)=0,"",(U56/L56)) -> 0.3006959491 | Z56: =Z54+Z55 -> 387.2630138 | AB56: Total Bill on TOU (including OCEB) | AF56: =Z56-S56 -> 2.674342679 | AG56: =IF((S56)=0,"",(AF56/S56)) -> 0.00695377394 | AK56: =AK54+AK55 -> 388.9480282 | AM56: =AK56-Z56 -> 1.68501441 | AN56: =IF((Z56)=0,"",(AM56/Z56)) -> 0.004351085308 | AR56: =AR54+AR55 -> 390.7221282 | AT56: =AR56-AK56 -> 1.7741 | AU56: =IF((AK56)=0,"",(AT56/AK56)) -> 0.004561277784 | AW56: 95.04297938 | AX56: 0.3214395731 | AY56: 0.05732733881
B58: Total Bill on RPP (before Taxes) | H58: =SUM(H49:H50,H40,H41:H45) -> 291.41376 | L58: =SUM(L49:L50,L40,L41:L45) -> 291.41376 | N58: =L58-H58 -> 0 | O58: =IF((H58)=0,"",(N58/H58)) -> 0 | S58: =SUM(S49:S50,S40,S41:S45) -> 347.8639567 | U58: =S58-L58 -> 56.45019672 | V58: =IF((L58)=0,"",(U58/L58)) -> 0.1937115005 | Z58: =SUM(Z49:Z50,Z40,Z41:Z45) -> 350.2306317 | AB58: Total Bill on RPP (before Taxes) | AF58: =Z58-S58 -> 2.366674937 | AG58: =IF((S58)=0,"",(AF58/S58)) -> 0.006803449715 | AK58: =SUM(AK49:AK50,AK40,AK41:AK45) -> 351.7217948 | AM58: =AK58-Z58 -> 1.491163194 | AN58: =IF((Z58)=0,"",(AM58/Z58)) -> 0.004257660694 | AR58: =SUM(AR49:AR50,AR40,AR41:AR45) -> 353.2917948 | AT58: =AR58-AK58 -> 1.57 | AU58: =IF((AK58)=0,"",(AT58/AK58)) -> 0.004463755226 | AW58: 61.87803485 | AX58: =IFERROR(AW58/H58,1) -> 0.2123373819 | AY58: =IFERROR((AR58/H58)^(1/(2019-2014))-1,0) -> 0.03926116598
B59: HST | F59: 0.13 | H59: =H58*F59 -> 37.8837888 | J59: 0.13 | L59: =L58*J59 -> 37.8837888 | N59: 0 | O59: 0 | Q59: 0.13 | S59: =S58*Q59 -> 45.22231437 | U59: =S59-L59 -> 7.338525573 | V59: =IF((L59)=0,"",(U59/L59)) -> 0.1937115005 | X59: 0.13 | Z59: =Z58*X59 -> 45.52998212 | AB59: HST | AF59: =Z59-S59 -> 0.3076677418 | AG59: =IF((S59)=0,"",(AF59/S59)) -> 0.006803449715 | AI59: 0.13 | AK59: =AK58*AI59 -> 45.72383333 | AM59: =AK59-Z59 -> 0.1938512153 | AN59: =IF((Z59)=0,"",(AM59/Z59)) -> 0.004257660694 | AP59: 0.13 | AR59: =AR58*AP59 -> 45.92793333 | AT59: =AR59-AK59 -> 0.2041 | AU59: =IF((AK59)=0,"",(AT59/AK59)) -> 0.004463755226 | AW59: 8.04414453 | AX59: 0.2123373819 | AY59: 0.03926116598
B60: Total Bill (including HST) | H60: =H58+H59 -> 329.2975488 | L60: =L58+L59 -> 329.2975488 | N60: 0 | O60: 0 | S60: =S58+S59 -> 393.0862711 | U60: =S60-L60 -> 63.78872229 | V60: =IF((L60)=0,"",(U60/L60)) -> 0.1937115005 | Z60: =Z58+Z59 -> 395.7606138 | AB60: Total Bill (including HST) | AF60: =Z60-S60 -> 2.674342679 | AG60: =IF((S60)=0,"",(AF60/S60)) -> 0.006803449715 | AK60: =AK58+AK59 -> 397.4456282 | AM60: =AK60-Z60 -> 1.68501441 | AN60: =IF((Z60)=0,"",(AM60/Z60)) -> 0.004257660694 | AR60: =AR58+AR59 -> 399.2197282 | AT60: =AR60-AK60 -> 1.7741 | AU60: =IF((AK60)=0,"",(AT60/AK60)) -> 0.004463755226 | AW60: 69.92217938 | AX60: 0.2123373819 | AY60: 0.03926116598
B61: Ontario Clean Energy Benefit 1 | H61: =ROUND(-H60*10%,2) -> -32.93 | L61: =ROUND(-L60*10%,2) -> -32.93 | N61: 0 | O61: 0 | V61: =IF((L61)=0,"",(U61/L61)) -> 0 | AB61: Ontario Clean Energy Benefit 1 | AF61: =Z61-S61 -> 0 | AG61: =IF((S61)=0,"",(AF61/S61)) ->  | AM61: =AK61-Z61 -> 0 | AN61: =IF((Z61)=0,"",(AM61/Z61)) ->  | AT61: =AR61-AK61 -> 0 | AU61: =IF((AK61)=0,"",(AT61/AK61)) ->  | AW61: 32.93 | AX61: -1 | AY61: -1
B62: Total Bill on RPP (including OCEB) | H62: =SUM(H60:H61) -> 296.3675488 | L62: =SUM(L60:L61) -> 296.3675488 | N62: 0 | O62: 0 | S62: =SUM(S60:S61) -> 393.0862711 | U62: =S62-L62 -> 96.71872229 | V62: =IF((L62)=0,"",(U62/L62)) -> 0.3263472087 | Z62: =SUM(Z60:Z61) -> 395.7606138 | AB62: Total Bill on RPP (including OCEB) | AF62: =Z62-S62 -> 2.674342679 | AG62: =IF((S62)=0,"",(AF62/S62)) -> 0.006803449715 | AK62: =SUM(AK60:AK61) -> 397.4456282 | AM62: =AK62-Z62 -> 1.68501441 | AN62: =IF((Z62)=0,"",(AM62/Z62)) -> 0.004257660694 | AR62: =SUM(AR60:AR61) -> 399.2197282 | AT62: =AR62-AK62 -> 1.7741 | AU62: =IF((AK62)=0,"",(AT62/AK62)) -> 0.004463755226 | AW62: 102.8521794 | AX62: 0.3470426496 | AY62: 0.06139312268
B65: Loss Factor (%) | F65: 0.043 | J65: 0.043 | Q65: 0.0486488321 | X65: 0.0486488321 | AB65: Loss Factor (%) | AI65: 0.0486488321 | AP65: 0.0486488321
B66: Effective cost of Line Loss per kWh | H66: =H35/D19 -> 0.00397578 | L66: =L35/D19 -> 0.00397578 | AB66: Effective cost of Line Loss per kWh
B67: Distribution excluding Rate Riders | AB67: Distribution excluding Rate Riders
B68: Monthly Service Charge | D68: Monthly | F68: 8.38 | G68: =G23 -> 1 | H68: =G68*F68 -> 8.38 | J68: 8.38 | K68: =K23 -> 1 | L68: =K68*J68 -> 8.38 | N68: =L68-H68 -> 0 | O68: =IF((H68)=0,"",(N68/H68)) -> 0 | Q68: 16.02 | R68: =R23 -> 1 | S68: =R68*Q68 -> 16.02 | U68: =S68-L68 -> 7.64 | V68: =IF((L68)=0,"",(U68/L68)) -> 0.9116945107 | X68: 16.24 | Y68: =Y23 -> 1 | Z68: =Y68*X68 -> 16.24 | AB68: Monthly Service Charge | AD68: Monthly | AF68: =Z68-S68 -> 0.22 | AG68: =IF((S68)=0,"",(AF68/S68)) -> 0.01373283396 | AI68: 17 | AJ68: =AJ23 -> 1 | AK68: =AJ68*AI68 -> 17 | AM68: =AK68-Z68 -> 0.76 | AN68: =IF((Z68)=0,"",(AM68/Z68)) -> 0.04679802956 | AP68: 17.37 | AQ68: =AQ23 -> 1 | AR68: =AQ68*AP68 -> 17.37 | AT68: =AR68-AK68 -> 0.37 | AU68: =IF((AK68)=0,"",(AT68/AK68)) -> 0.02176470588 | AW68: =AR68-H68 -> 8.99 | AX68: =IFERROR(AW68/H68,1) -> 1.072792363 | AY68: =IFERROR((AR68/H68)^(1/(2019-2014))-1,0) -> 0.1569408614
B69: Distribution Volumetric Rate | D69: per kWh | F69: 0.017 | G69: =$D$19 -> 2000 | H69: =G69*F69 -> 34 | J69: 0.017 | K69: =$D$19 -> 2000 | L69: =K69*J69 -> 34 | N69: =L69-H69 -> 0 | O69: =IF((H69)=0,"",(N69/H69)) -> 0 | Q69: 0.0157 | R69: =$D$19 -> 2000 | S69: =R69*Q69 -> 31.4 | U69: =S69-L69 -> -2.6 | V69: =IF((L69)=0,"",(U69/L69)) -> -0.07647058824 | X69: 0.0161 | Y69: =$D$19 -> 2000 | Z69: =Y69*X69 -> 32.2 | AB69: Distribution Volumetric Rate | AD69: per kWh | AF69: =Z69-S69 -> 0.8 | AG69: =IF((S69)=0,"",(AF69/S69)) -> 0.02547770701 | AI69: 0.0171 | AJ69: =$D$19 -> 2000 | AK69: =AJ69*AI69 -> 34.2 | AM69: =AK69-Z69 -> 2 | AN69: =IF((Z69)=0,"",(AM69/Z69)) -> 0.06211180124 | AP69: 0.0177 | AQ69: =$D$19 -> 2000 | AR69: =AQ69*AP69 -> 35.4 | AT69: =AR69-AK69 -> 1.2 | AU69: =IF((AK69)=0,"",(AT69/AK69)) -> 0.0350877193 | AW69: =AR69-H69 -> 1.4 | AX69: =IFERROR(AW69/H69,1) -> 0.04117647059 | AY69: =IFERROR((AR69/H69)^(1/(2019-2014))-1,0) -> 0.008102911424
B70: "Regular" Distribution Rates only | H70: =SUM(H68:H69) -> 42.38 | L70: =SUM(L68:L69) -> 42.38 | N70: =L70-H70 -> 0 | O70: =IF((H70)=0,"",(N70/H70)) -> 0 | S70: =SUM(S68:S69) -> 47.42 | U70: =S70-L70 -> 5.04 | V70: =IF((L70)=0,"",(U70/L70)) -> 0.1189240208 | Z70: =SUM(Z68:Z69) -> 48.44 | AB70: "Regular" Distribution Rates only | AF70: =Z70-S70 -> 1.02 | AG70: =IF((S70)=0,"",(AF70/S70)) -> 0.02150991143 | AK70: =SUM(AK68:AK69) -> 51.2 | AM70: =AK70-Z70 -> 2.76 | AN70: =IF((Z70)=0,"",(AM70/Z70)) -> 0.05697770438 | AR70: =SUM(AR68:AR69) -> 52.77 | AT70: =AR70-AK70 -> 1.57 | AU70: =IF((AK70)=0,"",(AT70/AK70)) -> 0.0306640625 | AW70: 10.39 | AX70: =IFERROR(AW70/H70,0) -> 0.2451628126 | AY70: 0.04482902429
A72: 1 Applicable to eligible customers only. Refer to the Ontario Clean Energy Benefit Act, 2010.
A74: Note that the "Charge $" columns provide breakdowns of the amounts that each bill component contributes to the total monthly bill at the referenced
A75: consumption level at existing and proposed rates.
A77: Applicants must provide bill impacts for residential at 800 kWh and GS<50kW at 2000 kWh. In addition, their filing must cover the range that is relevant
A78: to their service territory, class by class. A general guideline of consumption levels follows:
A80: Residential (kWh) - 100, 250, 500, 800, 1000, 1500, 2000
A81: GS<50kW (kWh) - 1000, 2000, 5000, 10000, 15000
A82: GS>50kW (kW) - 60, 100, 500, 1000
A83: Large User - range appropriate for utility
A84: Lighting Classes and USL - 150 kWh and 1 kW, range appropriate for utility.
B86: Note that cells with the highlighted color shown to the left indicate quantities that are loss adjusted. | AB86: Note that cells with the highlighted color shown to the left indicate quantities that are loss adjusted.
B90: Loss Factor Volume | F90: 86 | J90: 86 | Q90: 97.2976642 | X90: 97.2976642 | AB90: Loss Factor Volume | AI90: 97.2976642 | AP90: 97.2976642
D91: =F91&"/"&J91 -> 86/86 | F91: 86 | J91: 86 | AD91: =AF91&"/"&AJ91 -> /
D92: =F92&"/"&J92 -> 2086/2086 | F92: 2086 | J92: 2086 | AD92: =AF92&"/"&AJ92 -> /

Sheet App.2-W_GS 50-999 KW
A1: 1 | B1: File Number: | D1: =EBNUMBER ->  | AB1: File Number: | AD1: =EBNUMBER -> 
B2: Exhibit: | AB2: Exhibit:
B3: Tab: | AB3: Tab:
B4: Schedule: | AB4: Schedule:
B5: Page: | AB5: Page:
B7: Date: | AB7: Date:
B10: Appendix 2-W : Bill Impacts | L10: =B15&" (i of ii)" -> GS 50 To 999 KW (i of ii) | AB10: Appendix 2-W : Bill Impacts | AK10: =B15&" (ii of ii)" -> GS 50 To 999 KW (ii of ii)
B11: Bill Impacts - These will need to be completed once source of rates are determined
B14: Customer Class: | AB14: Customer Class:
B15: GS 50 To 999 KW | AB15: GS 50 To 999 KW
B16: TOU / non-TOU: | D16: TOU | AB16: TOU / non-TOU: | AD16: TOU
D18: Consumption | AD18: Consumption
B19: kWh | D19: 140000 | AB19: kWh | AD19: 140000
B20: KW | D20: 480 | F20: 2014 Rates | J20: 2015 Rates | N20: 2015 v 2014 | Q20: 2016 Proposed Rates | U20: 2016 v 2015 | X20: 2017 Proposed Rates | AB20: KW | AD20: 480 | AF20: 2017 v 2016 | AI20: 2018 Proposed Interim Rates | AM20: 2018 v 2017 | AP20: 2019 Proposed Interim Rates | AT20: 2019 v 2018 | AW20: 2019 v 2014
D21: Charge Unit | F21: Rate | G21: Volume | H21: Charge | J21: Rate | K21: Volume | L21: Charge | N21: $ Change | O21: % Change | Q21: Rate | R21: Volume | S21: Charge | U21: $ Change | V21: % Change | X21: Rate | Y21: Volume | Z21: Charge | AD21: Charge Unit | AF21: $ Change | AG21: % Change | AI21: Rate | AJ21: Volume | AK21: Charge | AM21: $ Change | AN21: % Change | AP21: Rate | AQ21: Volume | AR21: Charge | AT21: $ Change | AU21: % Change | AW21: $ Change | AX21: % Change | AY21: % CAGR
F22: ($) | H22: ($) | J22: ($) | L22: ($) | Q22: ($) | S22: ($) | X22: ($) | Z22: ($) | AI22: ($) | AK22: ($) | AP22: ($) | AR22: ($)
B23: Monthly Service Charge | D23: Monthly | F23: 43.13 | G23: 1 | H23: =G23*F23 -> 43.13 | J23: 43.13 | K23: 1 | L23: =K23*J23 -> 43.13 | N23: =L23-H23 -> 0 | O23: =IF((H23)=0,"",(N23/H23)) -> 0 | Q23: 52.2 | R23: 1 | S23: =R23*Q23 -> 52.2 | U23: =S23-L23 -> 9.07 | V23: =IF((L23)=0,"",(U23/L23)) -> 0.2102944586 | X23: 53.33 | Y23: 1 | Z23: =Y23*X23 -> 53.33 | AB23: Monthly Service Charge | AD23: Monthly | AF23: =Z23-S23 -> 1.13 | AG23: =IF((S23)=0,"",(AF23/S23)) -> 0.02164750958 | AI23: 56.43 | AJ23: 1 | AK23: =AJ23*AI23 -> 56.43 | AM23: =AK23-Z23 -> 3.1 | AN23: =IF((Z23)=0,"",(AM23/Z23)) -> 0.05812863304 | AP23: 58.29 | AQ23: 1 | AR23: =AQ23*AP23 -> 58.29 | AT23: =AR23-AK23 -> 1.86 | AU23: =IF((AK23)=0,"",(AT23/AK23)) -> 0.03296119086 | AW23: =AR23-H23 -> 15.16 | AX23: =IFERROR(AW23/H23,1) -> 0.3514954788
D24: per kW | H24: =G24*F24 -> 0 | K24: =K25 -> 480 | L24: =K24*J24 -> 0 | N24: =L24-H24 -> 0 | O24: =IF((H24)=0,"",(N24/H24)) ->  | R24: =R25 -> 480 | S24: =R24*Q24 -> 0 | U24: =S24-L24 -> 0 | Y24: =Y25 -> 480 | Z24: =Y24*X24 -> 0 | AB24: =B24 -> 0 | AD24: per kW | AF24: =Z24-S24 -> 0 | AJ24: =AJ25 -> 480 | AK24: =AJ24*AI24 -> 0 | AM24: =AK24-Z24 -> 0 | AQ24: =AQ25 -> 480 | AR24: =AQ24*AP24 -> 0 | AT24: =AR24-AK24 -> 0 | AW24: =AR24-H24 -> 0 | AX24: =IFERROR(AW24/H24,1) -> 1
B25: Distribution Volumetric Rate | D25: per kW | F25: 3.7097 | G25: =$D$20 -> 480 | H25: =G25*F25 -> 1780.656 | J25: 3.7097 | K25: =$G25 -> 480 | L25: 1780.656 | N25: 0 | O25: 0 | Q25: 4.474 | R25: =$G25 -> 480 | S25: 2147.52 | U25: 366.864 | V25: 0.2060274416 | X25: 4.5691 | Y25: =$G25 -> 480 | Z25: 2193.168 | AB25: Distribution Volumetric Rate | AD25: per kW | AF25: 45.648 | AG25: 0.02125614662 | AI25: 4.8301 | AJ25: =$G25 -> 480 | AK25: 2318.448 | AM25: 125.28 | AN25: 0.05712284695 | AP25: 4.9867 | AQ25: =$G25 -> 480 | AR25: 2393.616 | AT25: 75.168 | AU25: 0.03242168899 | AW25: 612.96 | AX25: 0.3442326873
B26: ='App.2-W_(Resi)'!B28 -> 2015 Oct-Dec Recovery | D26: Monthly | G26: 1 | H26: 0 | J26: 0 | K26: 1 | L26: 0 | N26: 0 | Q26: 17.74 | R26: 1 | S26: 17.74 | U26: 17.74 | X26: 0 | Y26: 1 | Z26: 0 | AB26: =B26 -> 2015 Oct-Dec Recovery | AD26: Monthly | AF26: -17.74 | AG26: -1 | AI26: 0 | AJ26: 1 | AK26: 0 | AM26: 0 | AP26: 0 | AQ26: 1 | AR26: 0 | AT26: 0 | AW26: 0 | AX26: 1
B27: Sub-Total A (excluding pass through) | H27: =SUM(H23:H26) -> 1823.786 | L27: =SUM(L23:L26) -> 1823.786 | N27: 0 | O27: 0 | S27: =SUM(S23:S26) -> 2217.46 | U27: 393.674 | V27: 0.215855369 | Z27: =SUM(Z23:Z26) -> 2246.498 | AB27: Sub-Total A (excluding pass through) | AF27: 29.038 | AG27: 0.01309516293 | AK27: =SUM(AK23:AK26) -> 2374.878 | AM27: 128.38 | AN27: 0.05714672348 | AR27: =SUM(AR23:AR26) -> 2451.906 | AT27: 77.028 | AU27: 0.03243450821 | AW27: 628.12 | AX27: =IFERROR(AW27/H27,0) -> 0.3444044422 | AY27: =IFERROR((AR27/H27)^(1/(2019-2014))-1,0) -> 0.06097704507
B28: Deferral & Variance Accounts Disposition Rate Rider (2012) | D28: per kW | F28: 0.0073 | G28: =$D$20 -> 480 | H28: =G28*F28 -> 3.504 | J28: 0.0073 | K28: =$G28 -> 480 | L28: =K28*J28 -> 3.504 | N28: =L28-H28 -> 0 | O28: =IF((H28)=0,"",(N28/H28)) -> 0 | Q28: 0 | R28: =$D$20 -> 480 | S28: =R28*Q28 -> 0 | U28: -3.504 | V28: -1 | X28: 0 | Y28: =$D$20 -> 480 | Z28: =Y28*X28 -> 0 | AB28: Deferral & Variance Accounts Disposition Rate Rider (2012) | AD28: per kW | AF28: 0 | AI28: 0 | AJ28: =$D$20 -> 480 | AK28: =AJ28*AI28 -> 0 | AM28: 0 | AP28: 0 | AQ28: =$D$20 -> 480 | AR28: =AQ28*AP28 -> 0 | AT28: 0 | AW28: -3.504 | AX28: =IFERROR(AW28/H28,1) -> -1
B29: Deferral & Variance Accounts Disposition Rate Rider (2015) | D29: per kW | H29: =G29*F29 -> 0 | K29: =K28 -> 480 | L29: =K29*J29 -> 0 | N29: =L29-H29 -> 0 | O29: =IF((H29)=0,"",(N29/H29)) ->  | Q29: 0.2490579562 | R29: =R28 -> 480 | S29: =R29*Q29 -> 119.547819 | U29: 119.547819 | X29: 0.2490579562 | Y29: =Y28 -> 480 | Z29: =Y29*X29 -> 119.547819 | AB29: Deferral & Variance Accounts Disposition Rate Rider (2015) | AD29: per kW | AF29: 0 | AG29: 0 | AI29: 0.2490579562 | AJ29: =AJ28 -> 480 | AK29: =AJ29*AI29 -> 119.547819 | AM29: 0 | AN29: 0 | AP29: 0.2490579562 | AQ29: =AQ28 -> 480 | AR29: =AQ29*AP29 -> 119.547819 | AT29: 0 | AU29: 0 | AW29: 119.547819 | AX29: 1
B30: Global Adjustment Disposition Rate Rider (2015) | D30: per kW | H30: 0 | K30: =K28 -> 480 | L30: 0 | N30: 0 | Q30: 0.5269674236 | R30: =R29 -> 480 | S30: 252.9443633 | U30: 252.9443633 | X30: 0.5269674236 | Y30: =Y29 -> 480 | Z30: 252.9443633 | AB30: Global Adjustment Disposition Rate Rider (2015) | AD30: per kW | AF30: 0 | AG30: 0 | AI30: 0.5269674236 | AJ30: =AJ29 -> 480 | AK30: 252.9443633 | AM30: 0 | AN30: 0 | AP30: 0.5269674236 | AQ30: =AQ29 -> 480 | AR30: 252.9443633 | AT30: 0 | AU30: 0 | AW30: 252.9443633 | AX30: 1
B31: ='App.2-W_(Resi)'!B33 -> Deferral & Variance Accounts Disposition Rate Rider for Group 2 DVAs (2015) | D31: per kW | G31: =$D$20 -> 480 | H31: 0 | J31: 0 | K31: =$G31 -> 480 | L31: 0 | N31: 0 | Q31: 0.02875491097 | R31: =$G31 -> 480 | S31: 13.80235726 | U31: 13.80235726 | X31: 0.02875491097 | Y31: =$G31 -> 480 | Z31: 13.80235726 | AB31: =B31 -> Deferral & Variance Accounts Disposition Rate Rider for Group 2 DVAs (2015) | AD31: per kW | AF31: 0 | AG31: 0 | AI31: 0.02875491097 | AJ31: =$G31 -> 480 | AK31: 13.80235726 | AM31: 0 | AN31: 0 | AP31: 0.02875491097 | AQ31: =$G31 -> 480 | AR31: 13.80235726 | AT31: 0 | AU31: 0 | AW31: 13.80235726 | AX31: 1
B32: Line Losses on Cost of Power | D32: per kWh | F32: 0.09246 | G32: =$D$19*(1+F61)-$D$19 -> 6020 | H32: 556.6092 | J32: 0.09246 | K32: =$D$19*(1+J61)-$D$19 -> 6020 | L32: 556.6092 | N32: 0 | O32: 0 | Q32: 0.09246 | R32: =$D$19*(1+Q61)-$D$19 -> 6810.836494 | S32: =R32*Q32 -> 629.7299422 | U32: 73.12074222 | V32: 0.1313681883 | X32: 0.11184 | Y32: =$D$19*(1+X61)-$D$19 -> 6810.836494 | Z32: =Y32*X32 -> 761.7239535 | AB32: Line Losses on Cost of Power | AD32: per kWh | AF32: 131.9940112 | AG32: 0.2096041531 | AI32: 0.09246 | AJ32: =$D$19*(1+AI61)-$D$19 -> 6810.836494 | AK32: =AJ32*AI32 -> 629.7299422 | AM32: -131.9940112 | AN32: -0.1732832618 | AP32: 0.09246 | AQ32: =$D$19*(1+AP61)-$D$19 -> 6810.836494 | AR32: =AQ32*AP32 -> 629.7299422 | AT32: 0 | AU32: 0 | AW32: 73.12074222 | AX32: 0.1313681883
B33: Sub-Total B - Distribution (includes Sub-Total A) | H33: =SUM(H28:H32)+H27 -> 2383.8992 | L33: =SUM(L28:L32)+L27 -> 2383.8992 | N33: =L33-H33 -> 0 | O33: =IF((H33)=0,"",(N33/H33)) -> 0 | S33: =SUM(S28:S32)+S27 -> 3233.484482 | U33: 849.5852818 | V33: 0.3563847338 | Z33: =SUM(Z28:Z32)+Z27 -> 3394.516493 | AB33: Sub-Total B - Distribution (includes Sub-Total A) | AF33: 161.0320112 | AG33: 0.04980138676 | AK33: =SUM(AK28:AK32)+AK27 -> 3390.902482 | AM33: -3.61401125 | AN33: -0.001064661567 | AR33: =SUM(AR28:AR32)+AR27 -> 3467.930482 | AT33: 77.028 | AU33: 0.02271607645 | AW33: 1084.031282 | AX33: =IFERROR(AW33/H33,0) -> 0.454730335 | AY33: =IFERROR((AR33/H33)^(1/(2019-2014))-1,0) -> 0.0778454656
B34: RTSR - Network | D34: per kW | F34: 2.4708 | G34: =$D$20 -> 480 | H34: =G34*F34 -> 1185.984 | J34: 2.4708 | K34: =$G34 -> 480 | L34: =K34*J34 -> 1185.984 | N34: 0 | O34: 0 | Q34: 2.613993355 | R34: =$G34 -> 480 | S34: =R34*Q34 -> 1254.71681 | U34: 68.73281019 | V34: 0.05795424744 | X34: 2.4961 | Y34: =$G34 -> 480 | Z34: =Y34*X34 -> 1198.128 | AB34: RTSR - Network | AD34: per kW | AF34: -56.58881019 | AG34: -0.04510086239 | AI34: 2.613993355 | AJ34: =$G34 -> 480 | AK34: =AJ34*AI34 -> 1254.71681 | AM34: 56.58881019 | AN34: 0.04723102222 | AP34: 2.613993355 | AQ34: =$G34 -> 480 | AR34: =AQ34*AP34 -> 1254.71681 | AT34: 0 | AU34: 0 | AW34: 68.73281019 | AX34: 0.05795424744
B35: RTSR - Line and Transformation Connection | D35: per kW | F35: 1.8573 | G35: =G34 -> 480 | H35: =G35*F35 -> 891.504 | J35: 1.8573 | K35: =$G35 -> 480 | L35: =K35*J35 -> 891.504 | N35: 0 | O35: 0 | Q35: 2.018123633 | R35: =$G35 -> 480 | S35: =R35*Q35 -> 968.6993439 | U35: 77.19534395 | V35: 0.08659001412 | X35: 2.0069 | Y35: =$G35 -> 480 | Z35: =Y35*X35 -> 963.312 | AB35: RTSR - Line and Transformation Connection | AD35: per kW | AF35: -5.387343949 | AG35: -0.005561420045 | AI35: 2.018123633 | AJ35: =$G35 -> 480 | AK35: =AJ35*AI35 -> 968.6993439 | AM35: 5.387343949 | AN35: 0.005592522411 | AP35: 2.018123633 | AQ35: =$G35 -> 480 | AR35: =AQ35*AP35 -> 968.6993439 | AT35: 0 | AU35: 0 | AW35: 77.19534395 | AX35: 0.08659001412
B36: Sub-Total C - Delivery (including Sub-Total B) | H36: =SUM(H33:H35) -> 4461.3872 | L36: =SUM(L33:L35) -> 4461.3872 | N36: 0 | O36: =IF((H36)=0,"",(N36/H36)) -> 0 | S36: =SUM(S33:S35) -> 5456.900636 | U36: 995.5134359 | V36: 0.2231398871 | Z36: =SUM(Z33:Z35) -> 5555.956493 | AB36: Sub-Total C - Delivery (including Sub-Total B) | AF36: 99.05585711 | AG36: 0.01815240257 | AK36: =SUM(AK33:AK35) -> 5614.318636 | AM36: 58.36214289 | AN36: 0.01050442763 | AR36: =SUM(AR33:AR35) -> 5691.346636 | AT36: 77.028 | AU36: 0.01371991955 | AW36: 1229.959436 | AX36: 0.2756899101 | AY36: =IFERROR((AR36/H36)^(1/(2019-2014))-1,0) -> 0.04990263116
B37: Wholesale Market Service Charge (WMSC) | D37: per kWh | F37: 0.0044 | G37: =$D$19*(1+F61) -> 146020 | H37: =G37*F37 -> 642.488 | J37: 0.0044 | K37: =$D$19*(1+J61) -> 146020 | L37: =K37*J37 -> 642.488 | N37: 0 | O37: 0 | Q37: 0.0036 | R37: =$D$19*(1+Q61) -> 146810.8365 | S37: =R37*Q37 -> 528.5190114 | U37: =S37-L37 -> -113.9689886 | V37: -0.1773869529 | X37: 0.0036 | Y37: =$D$19*(1+X61) -> 146810.8365 | Z37: =Y37*X37 -> 528.5190114 | AB37: Wholesale Market Service Charge (WMSC) | AD37: per kWh | AF37: =Z37-S37 -> 0 | AG37: 0 | AI37: =X37 -> 0.0036 | AJ37: =$D$19*(1+AI61) -> 146810.8365 | AK37: =AJ37*AI37 -> 528.5190114 | AM37: =AK37-Z37 -> 0 | AN37: 0 | AP37: =AI37 -> 0.0036 | AQ37: =$D$19*(1+AP61) -> 146810.8365 | AR37: =AQ37*AP37 -> 528.5190114 | AT37: =AR37-AK37 -> 0 | AU37: 0 | AW37: -113.9689886 | AX37: =IF((AN37)=0,"",(AW37/AN37)) -> 
B38: Rural and Remote Rate Protection (RRRP) | D38: per kWh | F38: 0.0013 | G38: =G37 -> 146020 | H38: 189.826 | J38: 0.0013 | K38: =K37 -> 146020 | L38: 189.826 | N38: 0 | O38: 0 | Q38: 0.0013 | R38: =R37 -> 146810.8365 | S38: 190.8540874 | U38: 1.028087442 | V38: 0.005415946403 | X38: 0.0021 | Y38: =Y37 -> 146810.8365 | Z38: 308.3027566 | AB38: Rural and Remote Rate Protection (RRRP) | AD38: per kWh | AF38: 117.4486692 | AG38: 0.6153846154 | AI38: =X38 -> 0.0021 | AJ38: =AJ37 -> 146810.8365 | AK38: 308.3027566 | AM38: 0 | AN38: 0 | AP38: =AI38 -> 0.0021 | AQ38: =AQ37 -> 146810.8365 | AR38: 308.3027566 | AT38: 0 | AU38: 0 | AW38: 118.4767566
B39: ='App.2-W_(GS<50 KW)'!B43 -> Ontario Electricity Support Program (OESP) | D39: per kWh | Q39: 0.0011 | R39: =R38 -> 146810.8365 | S39: =R39*Q39 -> 161.4919201 | U39: =S39-L39 -> 161.4919201 | V39: =IF((L39)=0,"",(U39/L39)) ->  | X39: 0.0011 | Y39: =Y38 -> 146810.8365 | Z39: =Y39*X39 -> 161.4919201 | AB39: =B39 -> Ontario Electricity Support Program (OESP) | AD39: per kWh | AF39: =Z39-S39 -> 0 | AG39: =IF((S39)=0,"",(AF39/S39)) -> 0 | AI39: 0.0011 | AJ39: =AJ38 -> 146810.8365 | AK39: =AJ39*AI39 -> 161.4919201 | AM39: =AK39-Z39 -> 0 | AN39: =IF((Z39)=0,"",(AM39/Z39)) -> 0 | AP39: 0.0011 | AQ39: =AQ38 -> 146810.8365 | AR39: =AQ39*AP39 -> 161.4919201 | AT39: =AR39-AK39 -> 0 | AU39: =IF((AK39)=0,"",(AT39/AK39)) -> 0 | AW39: =AR39-H39 -> 161.4919201 | AX39: =IF((AN39)=0,"",(AW39/AN39)) -> 
B40: Standard Supply Service Charge | D40: Monthly | F40: 0.25 | G40: 1 | H40: 0.25 | J40: 0.25 | K40: =$G40 -> 1 | L40: 0.25 | N40: 0 | O40: 0 | Q40: 0.25 | R40: =$G40 -> 1 | S40: 0.25 | U40: 0 | V40: 0 | X40: 0.25 | Y40: =$G40 -> 1 | Z40: 0.25 | AB40: Standard Supply Service Charge | AD40: Monthly | AF40: 0 | AG40: 0 | AI40: 0.25 | AJ40: =$G40 -> 1 | AK40: 0.25 | AM40: 0 | AN40: 0 | AP40: 0.25 | AQ40: =$G40 -> 1 | AR40: 0.25 | AT40: 0 | AU40: 0 | AW40: 0
B41: Debt Retirement Charge (DRC) | D41: per kWh | F41: 0.007 | G41: =$D$19 -> 140000 | H41: 980 | J41: 0.007 | K41: =$G41 -> 140000 | L41: 980 | N41: 0 | O41: 0 | Q41: 0.007 | R41: =$G41 -> 140000 | S41: 980 | U41: 0 | V41: 0 | X41: 0.007 | Y41: =$G41 -> 140000 | Z41: 980 | AB41: Debt Retirement Charge (DRC) | AD41: per kWh | AF41: 0 | AG41: 0 | AI41: 0.007 | AJ41: =$G41 -> 140000 | AK41: 980 | AM41: 0 | AN41: 0 | AP41: 0.007 | AQ41: =$G41 -> 140000 | AR41: 980 | AT41: 0 | AU41: 0 | AW41: 0
B42: TOU - Off Peak | D42: per kWh | F42: 0.075 | G42: =0.64*$D$19 -> 89600 | H42: 6720 | J42: 0.075 | K42: 89600 | L42: 6720 | N42: 0 | O42: 0 | Q42: 0.087 | R42: 89600 | S42: 7795.2 | U42: 1075.2 | V42: 0.16 | X42: 0.087 | Y42: 89600 | Z42: 7795.2 | AB42: TOU - Off Peak | AD42: per kWh | AF42: 0 | AG42: 0 | AI42: 0.087 | AJ42: 89600 | AK42: 7795.2 | AM42: 0 | AN42: 0 | AP42: 0.087 | AQ42: 89600 | AR42: 7795.2 | AT42: 0 | AU42: 0 | AW42: 1075.2
B43: TOU - Mid Peak | D43: per kWh | F43: 0.112 | G43: =0.18*$D$19 -> 25200 | H43: 2822.4 | J43: 0.112 | K43: 25200 | L43: 2822.4 | N43: 0 | O43: 0 | Q43: 0.132 | R43: 25200 | S43: 3326.4 | U43: 504 | V43: 0.1785714286 | X43: 0.132 | Y43: 25200 | Z43: 3326.4 | AB43: TOU - Mid Peak | AD43: per kWh | AF43: 0 | AG43: 0 | AI43: 0.132 | AJ43: 25200 | AK43: 3326.4 | AM43: 0 | AN43: 0 | AP43: 0.132 | AQ43: 25200 | AR43: 3326.4 | AT43: 0 | AU43: 0 | AW43: 504
B44: TOU - On Peak | D44: per kWh | F44: 0.135 | G44: =0.18*$D$19 -> 25200 | H44: 3402 | J44: 0.135 | K44: 25200 | L44: 3402 | N44: 0 | O44: 0 | Q44: 0.18 | R44: 25200 | S44: 4536 | U44: 1134 | V44: 0.3333333333 | X44: 0.18 | Y44: 25200 | Z44: 4536 | AB44: TOU - On Peak | AD44: per kWh | AF44: 0 | AG44: 0 | AI44: 0.18 | AJ44: 25200 | AK44: 4536 | AM44: 0 | AN44: 0 | AP44: 0.18 | AQ44: 25200 | AR44: 4536 | AT44: 0 | AU44: 0 | AW44: 1134
B45: Energy - RPP - Tier 1 | D45: per kWh | F45: 0.083 | G45: =IF(AND($A$1=1, D19>=600), 600, IF(AND($A$1=1, AND(D19<600, D19>=0)), D19, IF(AND($A$1=2, D19>=1000), 1000, IF(AND($A$1=2, AND(D19<1000, D19>=0)), D19)))) -> 600 | H45: =G45*F45 -> 49.8 | J45: 0.083 | K45: 600 | L45: =K45*J45 -> 49.8 | N45: 0 | O45: 0 | Q45: 0.083 | R45: 600 | S45: =R45*Q45 -> 49.8 | U45: 0 | V45: 0 | X45: 0.083 | Y45: 600 | Z45: =Y45*X45 -> 49.8 | AB45: Energy - RPP - Tier 1 | AD45: per kWh | AF45: 0 | AG45: 0 | AI45: 0.083 | AJ45: 600 | AK45: =AJ45*AI45 -> 49.8 | AM45: 0 | AN45: 0 | AP45: 0.083 | AQ45: 600 | AR45: =AQ45*AP45 -> 49.8 | AT45: 0 | AU45: 0 | AW45: 0
B46: Energy - RPP - Tier 2 | D46: per kWh | F46: 0.097 | G46: =IF(AND($A$1=1, D19>=600), D19-600, IF(AND($A$1=1, AND(D19<600, D19>=0)), 0, IF(AND($A$1=2, D19>=1000), D19-1000, IF(AND($A$1=2, AND(D19<1000, D19>=0)), 0)))) -> 139400 | H46: =G46*F46 -> 13521.8 | J46: 0.097 | K46: 139400 | L46: =K46*J46 -> 13521.8 | N46: 0 | O46: 0 | Q46: 0.097 | R46: 139400 | S46: =R46*Q46 -> 13521.8 | U46: 0 | V46: 0 | X46: 0.097 | Y46: 139400 | Z46: =Y46*X46 -> 13521.8 | AB46: Energy - RPP - Tier 2 | AD46: per kWh | AF46: 0 | AG46: 0 | AI46: 0.097 | AJ46: 139400 | AK46: =AJ46*AI46 -> 13521.8 | AM46: 0 | AN46: 0 | AP46: 0.097 | AQ46: 139400 | AR46: =AQ46*AP46 -> 13521.8 | AT46: 0 | AU46: 0 | AW46: 0
B48: Total Bill on TOU (before Taxes) | H48: =SUM(H37:H44,H36) -> 19218.3512 | L48: =SUM(L37:L44,L36) -> 19218.3512 | N48: =L48-H48 -> 0 | O48: =IF((H48)=0,"",(N48/H48)) -> 0 | S48: =SUM(S37:S44,S36) -> 22975.61565 | U48: =S48-L48 -> 3757.264455 | V48: =IF((L48)=0,"",(U48/L48)) -> 0.1955039959 | Z48: =SUM(Z37:Z44,Z36) -> 23192.12018 | AB48: Total Bill on TOU (before Taxes) | AF48: =Z48-S48 -> 216.5045263 | AG48: =IF((S48)=0,"",(AF48/S48)) -> 0.009423230679 | AK48: =SUM(AK37:AK44,AK36) -> 23250.48232 | AM48: =AK48-Z48 -> 58.36214289 | AN48: =IF((Z48)=0,"",(AM48/Z48)) -> 0.002516464318 | AR48: =SUM(AR37:AR44,AR36) -> 23327.51032 | AT48: =AR48-AK48 -> 77.028 | AU48: =IF((AK48)=0,"",(AT48/AK48)) -> 0.00331296353 | AW48: 4109.159124 | AX48: =IFERROR(AW48/H48,1) -> 0.2138143424 | AY48: =IFERROR((AR48/H48)^(1/(2019-2014))-1,0) -> 0.03951426389
B49: HST | F49: 0.13 | H49: =H48*F49 -> 2498.385656 | J49: 0.13 | L49: =L48*J49 -> 2498.385656 | N49: 0 | O49: 0 | Q49: 0.13 | S49: =S48*Q49 -> 2986.830035 | U49: =S49-L49 -> 488.4443791 | V49: =IF((L49)=0,"",(U49/L49)) -> 0.1955039959 | X49: 0.13 | Z49: =Z48*X49 -> 3014.975624 | AB49: HST | AF49: =Z49-S49 -> 28.14558842 | AG49: =IF((S49)=0,"",(AF49/S49)) -> 0.009423230679 | AI49: 0.13 | AK49: =AK48*AI49 -> 3022.562702 | AM49: =AK49-Z49 -> 7.587078576 | AN49: =IF((Z49)=0,"",(AM49/Z49)) -> 0.002516464318 | AP49: 0.13 | AR49: =AR48*AP49 -> 3032.576342 | AT49: =AR49-AK49 -> 10.01364 | AU49: =IF((AK49)=0,"",(AT49/AK49)) -> 0.00331296353 | AW49: 534.1906861 | AX49: 0.2138143424 | AY49: 0.03951426389
B50: Total Bill (including HST) | H50: =H48+H49 -> 21716.73686 | L50: =L48+L49 -> 21716.73686 | N50: 0 | O50: 0 | S50: =S48+S49 -> 25962.44569 | U50: =S50-L50 -> 4245.708834 | V50: =IF((L50)=0,"",(U50/L50)) -> 0.1955039959 | Z50: =Z48+Z49 -> 26207.0958 | AB50: Total Bill (including HST) | AF50: =Z50-S50 -> 244.6501147 | AG50: =IF((S50)=0,"",(AF50/S50)) -> 0.009423230679 | AK50: =AK48+AK49 -> 26273.04503 | AM50: =AK50-Z50 -> 65.94922147 | AN50: =IF((Z50)=0,"",(AM50/Z50)) -> 0.002516464318 | AR50: =AR48+AR49 -> 26360.08667 | AT50: =AR50-AK50 -> 87.04164 | AU50: =IF((AK50)=0,"",(AT50/AK50)) -> 0.00331296353 | AW50: 4643.34981 | AX50: 0.2138143424 | AY50: 0.03951426389
B51: Ontario Clean Energy Benefit 1 | H51: =ROUND(-H50*10%,2) -> -2171.67 | L51: =ROUND(-L50*10%,2) -> -2171.67 | N51: 0 | O51: 0 | U51: =S51-L51 -> 2171.67 | V51: =IF((L51)=0,"",(U51/L51)) -> -1 | AB51: Ontario Clean Energy Benefit 1 | AF51: =Z51-S51 -> 0 | AG51: =IF((S51)=0,"",(AF51/S51)) ->  | AM51: =AK51-Z51 -> 0 | AN51: =IF((Z51)=0,"",(AM51/Z51)) ->  | AT51: =AR51-AK51 -> 0 | AU51: =IF((AK51)=0,"",(AT51/AK51)) ->  | AW51: 2171.67 | AX51: -1 | AY51: -1
B52: Total Bill on TOU (including OCEB) | H52: =H50+H51 -> 19545.06686 | L52: =L50+L51 -> 19545.06686 | N52: 0 | O52: 0 | S52: =S50+S51 -> 25962.44569 | U52: =S52-L52 -> 6417.378834 | V52: =IF((L52)=0,"",(U52/L52)) -> 0.3283375228 | Z52: =Z50+Z51 -> 26207.0958 | AB52: Total Bill on TOU (including OCEB) | AF52: =Z52-S52 -> 244.6501147 | AG52: =IF((S52)=0,"",(AF52/S52)) -> 0.009423230679 | AK52: =AK50+AK51 -> 26273.04503 | AM52: =AK52-Z52 -> 65.94922147 | AN52: =IF((Z52)=0,"",(AM52/Z52)) -> 0.002516464318 | AR52: =AR50+AR51 -> 26360.08667 | AT52: =AR52-AK52 -> 87.04164 | AU52: =IF((AK52)=0,"",(AT52/AK52)) -> 0.00331296353 | AW52: 6815.01981 | AX52: 0.3486823484 | AY52: 0.06165139487
B54: Total Bill on RPP (before Taxes) | H54: =SUM(H45:H46,H36,H37:H41) -> 19845.5512 | L54: =SUM(L45:L46,L36,L37:L41) -> 19845.5512 | N54: =L54-H54 -> 0 | O54: =IF((H54)=0,"",(N54/H54)) -> 0 | S54: =SUM(S45:S46,S36,S37:S41) -> 20889.61565 | U54: =S54-L54 -> 1044.064455 | V54: =IF((L54)=0,"",(U54/L54)) -> 0.05260949642 | Z54: =SUM(Z45:Z46,Z36,Z37:Z41) -> 21106.12018 | AB54: Total Bill on RPP (before Taxes) | AF54: =Z54-S54 -> 216.5045263 | AG54: =IF((S54)=0,"",(AF54/S54)) -> 0.0103642178 | AK54: =SUM(AK45:AK46,AK36,AK37:AK41) -> 21164.48232 | AM54: =AK54-Z54 -> 58.36214289 | AN54: =IF((Z54)=0,"",(AM54/Z54)) -> 0.00276517628 | AR54: =SUM(AR45:AR46,AR36,AR37:AR41) -> 21241.51032 | AT54: =AR54-AK54 -> 77.028 | AU54: =IF((AK54)=0,"",(AT54/AK54)) -> 0.003639493696 | AW54: 1395.959124 | AX54: =IFERROR(AW54/H54,1) -> 0.0703411616 | AY54: =IFERROR((AR54/H54)^(1/(2019-2014))-1,0) -> 0.01368832696
B55: HST | F55: 0.13 | H55: =H54*F55 -> 2579.921656 | J55: 0.13 | L55: =L54*J55 -> 2579.921656 | N55: 0 | O55: 0 | Q55: 0.13 | S55: =S54*Q55 -> 2715.650035 | U55: =S55-L55 -> 135.7283791 | V55: =IF((L55)=0,"",(U55/L55)) -> 0.05260949642 | X55: 0.13 | Z55: =Z54*X55 -> 2743.795624 | AB55: HST | AF55: =Z55-S55 -> 28.14558842 | AG55: =IF((S55)=0,"",(AF55/S55)) -> 0.0103642178 | AI55: 0.13 | AK55: =AK54*AI55 -> 2751.382702 | AM55: =AK55-Z55 -> 7.587078576 | AN55: =IF((Z55)=0,"",(AM55/Z55)) -> 0.00276517628 | AP55: 0.13 | AR55: =AR54*AP55 -> 2761.396342 | AT55: =AR55-AK55 -> 10.01364 | AU55: =IF((AK55)=0,"",(AT55/AK55)) -> 0.003639493696 | AW55: 181.4746861 | AX55: 0.0703411616 | AY55: 0.01368832696
B56: Total Bill (including HST) | H56: =H54+H55 -> 22425.47286 | L56: =L54+L55 -> 22425.47286 | N56: 0 | O56: 0 | S56: =S54+S55 -> 23605.26569 | U56: =S56-L56 -> 1179.792834 | V56: =IF((L56)=0,"",(U56/L56)) -> 0.05260949642 | Z56: =Z54+Z55 -> 23849.9158 | AB56: Total Bill (including HST) | AF56: =Z56-S56 -> 244.6501147 | AG56: =IF((S56)=0,"",(AF56/S56)) -> 0.0103642178 | AK56: =AK54+AK55 -> 23915.86503 | AM56: =AK56-Z56 -> 65.94922147 | AN56: =IF((Z56)=0,"",(AM56/Z56)) -> 0.00276517628 | AR56: =AR54+AR55 -> 24002.90667 | AT56: =AR56-AK56 -> 87.04164 | AU56: =IF((AK56)=0,"",(AT56/AK56)) -> 0.003639493696 | AW56: 1577.43381 | AX56: 0.0703411616 | AY56: 0.01368832696
B57: Ontario Clean Energy Benefit 1 | H57: =ROUND(-H56*10%,2) -> -2242.55 | L57: =ROUND(-L56*10%,2) -> -2242.55 | N57: 0 | O57: 0 | S57: =ROUND(-S56*10%,2) -> -2360.53 | U57: =S57-L57 -> -117.98 | V57: =IF((L57)=0,"",(U57/L57)) -> 0.05260975229 | Z57: =ROUND(-Z56*10%,2) -> -2384.99 | AB57: Ontario Clean Energy Benefit 1 | AF57: =Z57-S57 -> -24.46 | AG57: =IF((S57)=0,"",(AF57/S57)) -> 0.0103620797 | AK57: =ROUND(-AK56*10%,2) -> -2391.59 | AM57: =AK57-Z57 -> -6.6 | AN57: =IF((Z57)=0,"",(AM57/Z57)) -> 0.0027673072 | AR57: =ROUND(-AR56*10%,2) -> -2400.29 | AT57: =AR57-AK57 -> -8.7 | AU57: =IF((AK57)=0,"",(AT57/AK57)) -> 0.003637747273 | AW57: -157.74 | AX57: 0.07033956879 | AY57: 0.01368802525
B58: Total Bill on RPP (including OCEB) | H58: =SUM(H56:H57) -> 20182.92286 | L58: =SUM(L56:L57) -> 20182.92286 | N58: 0 | O58: 0 | S58: =SUM(S56:S57) -> 21244.73569 | U58: =S58-L58 -> 1061.812834 | V58: =IF((L58)=0,"",(U58/L58)) -> 0.05260946799 | Z58: =SUM(Z56:Z57) -> 21464.9258 | AB58: Total Bill on RPP (including OCEB) | AF58: =Z58-S58 -> 220.1901147 | AG58: =IF((S58)=0,"",(AF58/S58)) -> 0.01036445536 | AK58: =SUM(AK56:AK57) -> 21524.27503 | AM58: =AK58-Z58 -> 59.34922147 | AN58: =IF((Z58)=0,"",(AM58/Z58)) -> 0.002764939511 | AR58: =SUM(AR56:AR57) -> 21602.61667 | AT58: =AR58-AK58 -> 78.34164 | AU58: =IF((AK58)=0,"",(AT58/AK58)) -> 0.003639687743 | AW58: 1419.69381 | AX58: 0.07034133858 | AY58: 0.01368836048
B61: Loss Factor (%) | F61: 0.043 | J61: 0.043 | Q61: 0.0486488321 | X61: 0.0486488321 | AB61: Loss Factor (%) | AI61: 0.0486488321 | AP61: 0.0486488321
B63: Distribution excluding Rate Riders | AB63: Distribution excluding Rate Riders
B64: Monthly Service Charge | D64: Monthly | F64: 43.13 | G64: =G23 -> 1 | H64: =G64*F64 -> 43.13 | J64: 43.13 | K64: =K23 -> 1 | L64: =K64*J64 -> 43.13 | N64: =L64-H64 -> 0 | O64: =IF((H64)=0,"",(N64/H64)) -> 0 | Q64: 52.2 | R64: =R23 -> 1 | S64: =R64*Q64 -> 52.2 | U64: =S64-L64 -> 9.07 | V64: =IF((L64)=0,"",(U64/L64)) -> 0.2102944586 | X64: 53.33 | Y64: =Y23 -> 1 | Z64: =Y64*X64 -> 53.33 | AB64: Monthly Service Charge | AD64: Monthly | AF64: =Z64-S64 -> 1.13 | AG64: =IF((S64)=0,"",(AF64/S64)) -> 0.02164750958 | AI64: 56.43 | AJ64: =AJ23 -> 1 | AK64: =AJ64*AI64 -> 56.43 | AM64: =AK64-Z64 -> 3.1 | AN64: =IF((Z64)=0,"",(AM64/Z64)) -> 0.05812863304 | AP64: 58.29 | AQ64: =AQ23 -> 1 | AR64: =AQ64*AP64 -> 58.29 | AT64: =AR64-AK64 -> 1.86 | AU64: =IF((AK64)=0,"",(AT64/AK64)) -> 0.03296119086 | AW64: =AR64-H64 -> 15.16 | AX64: =IFERROR(AW64/H64,1) -> 0.3514954788 | AY64: =IFERROR((AR64/H64)^(1/(2019-2014))-1,0) -> 0.06209391199
B65: Distribution Volumetric Rate | D65: per kW | F65: 3.7097 | G65: =$D$20 -> 480 | H65: =G65*F65 -> 1780.656 | J65: 3.7097 | K65: =$D$20 -> 480 | L65: =K65*J65 -> 1780.656 | N65: =L65-H65 -> 0 | O65: =IF((H65)=0,"",(N65/H65)) -> 0 | Q65: 4.474 | R65: =$D$20 -> 480 | S65: =R65*Q65 -> 2147.52 | U65: =S65-L65 -> 366.864 | V65: =IF((L65)=0,"",(U65/L65)) -> 0.2060274416 | X65: 4.5691 | Y65: =$D$20 -> 480 | Z65: =Y65*X65 -> 2193.168 | AB65: Distribution Volumetric Rate | AD65: per kW | AF65: =Z65-S65 -> 45.648 | AG65: =IF((S65)=0,"",(AF65/S65)) -> 0.02125614662 | AI65: 4.8301 | AJ65: =$D$20 -> 480 | AK65: =AJ65*AI65 -> 2318.448 | AM65: =AK65-Z65 -> 125.28 | AN65: =IF((Z65)=0,"",(AM65/Z65)) -> 0.05712284695 | AP65: 4.9867 | AQ65: =$D$20 -> 480 | AR65: =AQ65*AP65 -> 2393.616 | AT65: =AR65-AK65 -> 75.168 | AU65: =IF((AK65)=0,"",(AT65/AK65)) -> 0.03242168899 | AW65: =AR65-H65 -> 612.96 | AX65: =IFERROR(AW65/H65,1) -> 0.3442326873 | AY65: =IFERROR((AR65/H65)^(1/(2019-2014))-1,0) -> 0.06094993458
B66: "Regular" Distribution Rates only | H66: =SUM(H64:H65) -> 1823.786 | L66: =SUM(L64:L65) -> 1823.786 | N66: =L66-H66 -> 0 | O66: =IF((H66)=0,"",(N66/H66)) -> 0 | S66: =SUM(S64:S65) -> 2199.72 | U66: =S66-L66 -> 375.934 | V66: =IF((L66)=0,"",(U66/L66)) -> 0.2061283506 | Z66: =SUM(Z64:Z65) -> 2246.498 | AB66: "Regular" Distribution Rates only | AF66: =Z66-S66 -> 46.778 | AG66: =IF((S66)=0,"",(AF66/S66)) -> 0.02126543378 | AK66: =SUM(AK64:AK65) -> 2374.878 | AM66: =AK66-Z66 -> 128.38 | AN66: =IF((Z66)=0,"",(AM66/Z66)) -> 0.05714672348 | AR66: =SUM(AR64:AR65) -> 2451.906 | AT66: =AR66-AK66 -> 77.028 | AU66: =IF((AK66)=0,"",(AT66/AK66)) -> 0.03243450821 | AW66: 628.12 | AX66: =IFERROR(AW66/H66,0) -> 0.3444044422 | AY66: 0.06097704507
A68: 1 Applicable to eligible customers only. Refer to the Ontario Clean Energy Benefit Act, 2010.
A70: Note that the "Charge $" columns provide breakdowns of the amounts that each bill component contributes to the total monthly bill at the referenced
A71: consumption level at existing and proposed rates.
A73: Applicants must provide bill impacts for residential at 800 kWh and GS<50kW at 2000 kWh. In addition, their filing must cover the range that is relevant
A74: to their service territory, class by class. A general guideline of consumption levels follows:
A76: Residential (kWh) - 100, 250, 500, 800, 1000, 1500, 2000
A77: GS<50kW (kWh) - 1000, 2000, 5000, 10000, 15000
A78: GS>50kW (kW) - 60, 100, 500, 1000
A79: Large User - range appropriate for utility
A80: Lighting Classes and USL - 150 kWh and 1 kW, range appropriate for utility.
B82: Note that cells with the highlighted color shown to the left indicate quantities that are loss adjusted. | AB82: Note that cells with the highlighted color shown to the left indicate quantities that are loss adjusted.
B90: Loss Factor Volume | D90: =ROUND(D93,0)&"/"&ROUND(D94,0) -> 6020/6020 | F90: 6020 | J90: 6020 | Q90: 6810.836494 | X90: 6810.836494 | AB90: Loss Factor Volume | AD90: =ROUND(AD93,0)&"/"&ROUND(AD94,0) -> 0/0 | AI90: 6810.836494 | AP90: 6810.836494
D93: =ROUND(F90,0) -> 6020 | AD93: =ROUND(AF90,0) -> 0
D94: =ROUND(J90,0) -> 6020 | AD94: =ROUND(AJ90,0) -> 0
B96: kWHs incl Loss Factor | D96: =ROUND(F96,0)&"/"&ROUND(J96,0) -> 146020/146020 | F96: 146020 | J96: 146020 | Q96: 146810.8365 | X96: 146810.8365 | AB96: kWHs incl Loss Factor | AD96: =ROUND(AF96,0)&"/"&ROUND(AJ96,0) -> 0/0 | AI96: 146810.8365 | AP96: 146810.8365

Sheet App.2-W_Bill Impacts <4999 KW
A1: 1 | B1: File Number: | D1: =EBNUMBER ->  | AB1: File Number: | AD1: =EBNUMBER -> 
B2: Exhibit: | AB2: Exhibit:
B3: Tab: | AB3: Tab:
B4: Schedule: | AB4: Schedule:
B5: Page: | AB5: Page:
B7: Date: | AB7: Date:
B10: Appendix 2-W : Bill Impacts | L10: =B15&" (i of ii)" -> General Service 1,000 To 4,999 KW (i of ii) | AB10: Appendix 2-W : Bill Impacts | AK10: =B15&" (ii of ii)" -> General Service 1,000 To 4,999 KW (ii of ii)
B11: Bill Impacts - These will need to be completed once source of rates are determined
B14: Customer Class: | AB14: Customer Class:
B15: General Service 1,000 To 4,999 KW | AB15: General Service 1,000 To 4,999 KW
B16: TOU / non-TOU: | D16: TOU | AB16: TOU / non-TOU: | AD16: TOU
D18: Consumption | AD18: Consumption
B19: kWh | D19: 417000 | AB19: kWh | AD19: 417000
B20: KW | D20: 919 | F20: 2014 Rates | J20: 2015 Rates | N20: 2015 v 2014 | Q20: 2016 Proposed Rates | U20: 2016 v 2015 | X20: 2017 Proposed Rates | AB20: KW | AD20: 919 | AF20: 2017 v 2016 | AI20: 2018 Proposed Interim Rates | AM20: 2018 v 2017 | AP20: 2019 Proposed Interim Rates | AT20: 2019 v 2018 | AW20: 2019 v 2014
D21: Charge Unit | F21: Rate | G21: Volume | H21: Charge | J21: Rate | K21: Volume | L21: Charge | N21: $ Change | O21: % Change | Q21: Rate | R21: Volume | S21: Charge | U21: $ Change | V21: % Change | X21: Rate | Y21: Volume | Z21: Charge | AD21: Charge Unit | AF21: $ Change | AG21: % Change | AI21: Rate | AJ21: Volume | AK21: Charge | AM21: $ Change | AN21: % Change | AP21: Rate | AQ21: Volume | AR21: Charge | AT21: $ Change | AU21: % Change | AW21: $ Change | AX21: % Change | AY21: % CAGR
F22: ($) | H22: ($) | J22: ($) | L22: ($) | Q22: ($) | S22: ($) | X22: ($) | Z22: ($) | AI22: ($) | AK22: ($) | AP22: ($) | AR22: ($)
B23: Monthly Service Charge | D23: Monthly | F23: 1221.57 | G23: 1 | H23: =G23*F23 -> 1221.57 | J23: 1221.57 | K23: 1 | L23: =K23*J23 -> 1221.57 | N23: =L23-H23 -> 0 | O23: =IF((H23)=0,"",(N23/H23)) -> 0 | Q23: 1097.01 | R23: 1 | S23: =R23*Q23 -> 1097.01 | U23: =S23-L23 -> -124.56 | V23: =IF((L23)=0,"",(U23/L23)) -> -0.1019671406 | X23: 1120.74 | Y23: 1 | Z23: =Y23*X23 -> 1120.74 | AB23: Monthly Service Charge | AD23: Monthly | AF23: =Z23-S23 -> 23.73 | AG23: =IF((S23)=0,"",(AF23/S23)) -> 0.02163152569 | AI23: 1185.86 | AJ23: 1 | AK23: =AJ23*AI23 -> 1185.86 | AM23: =AK23-Z23 -> 65.12 | AN23: =IF((Z23)=0,"",(AM23/Z23)) -> 0.05810446669 | AP23: 1224.94 | AQ23: 1 | AR23: =AQ23*AP23 -> 1224.94 | AT23: =AR23-AK23 -> 39.08 | AU23: =IF((AK23)=0,"",(AT23/AK23)) -> 0.03295498625 | AW23: =AR23-H23 -> 3.37 | AX23: =IFERROR(AW23/H23,1) -> 0.002758744894
D24: per kW | K24: =K25 -> 919 | L24: =K24*J24 -> 0 | R24: =R25 -> 919 | S24: =R24*Q24 -> 0 | Y24: =Y25 -> 919 | Z24: =Y24*X24 -> 0 | AB24: =B24 -> 0 | AD24: per kW | AJ24: =AJ25 -> 919 | AK24: =AJ24*AI24 -> 0 | AQ24: =AQ25 -> 919 | AR24: =AQ24*AP24 -> 0
B25: Distribution Volumetric Rate | D25: per kW | F25: 2.5923 | G25: =$D$20 -> 919 | H25: =G25*F25 -> 2382.3237 | J25: 2.5923 | K25: =$G25 -> 919 | L25: 2382.3237 | N25: =L25-H25 -> 0 | O25: =IF((H25)=0,"",(N25/H25)) -> 0 | Q25: 2.3852 | R25: =$G25 -> 919 | S25: =R25*Q25 -> 2191.9988 | U25: =S25-L25 -> -190.3249 | V25: -0.07989044478 | X25: 2.4246 | Y25: =$G25 -> 919 | Z25: =Y25*X25 -> 2228.2074 | AB25: Distribution Volumetric Rate | AD25: per kW | AF25: =Z25-S25 -> 36.2086 | AG25: 0.01651853094 | AI25: 2.5329 | AJ25: =$G25 -> 919 | AK25: =AJ25*AI25 -> 2327.7351 | AM25: =AK25-Z25 -> 99.5277 | AN25: 0.04466716159 | AP25: 2.5979 | AQ25: =$G25 -> 919 | AR25: =AQ25*AP25 -> 2387.4701 | AT25: =AR25-AK25 -> 59.735 | AU25: 0.02566228434 | AW25: =AR25-H25 -> 5.1464 | AX25: =IFERROR(AW25/H25,1) -> 0.002160243799
B26: ='App.2-W_(Resi)'!B28 -> 2015 Oct-Dec Recovery | D26: Monthly | G26: 1 | J26: 0 | K26: 1 | L26: 0 | N26: =L26-H26 -> 0 | O26: =IF((H26)=0,"",(N26/H26)) ->  | Q26: 96.3 | R26: 1 | S26: 96.3 | U26: =S26-L26 -> 96.3 | V26: =IF((L26)=0,"",(U26/L26)) ->  | X26: 0 | Y26: 1 | Z26: 0 | AB26: =B26 -> 2015 Oct-Dec Recovery | AD26: Monthly | AF26: -96.3 | AG26: -1 | AI26: 0 | AJ26: 1 | AK26: 0 | AM26: 0 | AP26: 0 | AQ26: 1 | AR26: 0 | AT26: 0
B27: Sub-Total A (excluding pass through) | H27: =SUM(H23:H26) -> 3603.8937 | L27: =SUM(L23:L26) -> 3603.8937 | N27: 0 | O27: 0 | S27: =SUM(S23:S26) -> 3385.3088 | U27: -218.5849 | V27: -0.06065242712 | Z27: =SUM(Z23:Z26) -> 3348.9474 | AB27: Sub-Total A (excluding pass through) | AF27: -36.3614 | AG27: -0.01074094038 | AK27: =SUM(AK23:AK26) -> 3513.5951 | AM27: 164.6477 | AN27: 0.04916401494 | AR27: =SUM(AR23:AR26) -> 3612.4101 | AT27: 98.815 | AU27: 0.02812361618 | AW27: 8.5164 | AX27: =IFERROR(AW27/H27,0) -> 0.002363110765 | AY27: =IFERROR((AR27/H27)^(1/(2019-2014))-1,0) -> 0.0004721760421
B28: Deferral & Variance Accounts Disposition Rate Rider (2012) | D28: per kW | F28: -0.0244 | G28: =$D$20 -> 919 | H28: =G28*F28 -> -22.4236 | J28: -0.0244 | K28: =$G28 -> 919 | L28: =K28*J28 -> -22.4236 | N28: =L28-H28 -> 0 | O28: =IF((H28)=0,"",(N28/H28)) -> 0 | Q28: 0 | R28: =$D$20 -> 919 | S28: =R28*Q28 -> 0 | U28: 22.4236 | V28: -1 | X28: 0 | Y28: =$D$20 -> 919 | Z28: =Y28*X28 -> 0 | AB28: Deferral & Variance Accounts Disposition Rate Rider (2012) | AD28: per kW | AF28: 0 | AI28: 0 | AJ28: =$D$20 -> 919 | AK28: =AJ28*AI28 -> 0 | AM28: 0 | AP28: 0 | AQ28: =$D$20 -> 919 | AR28: =AQ28*AP28 -> 0 | AT28: 0 | AW28: 22.4236 | AX28: =IFERROR(AW28/H28,1) -> -1
B29: Deferral & Variance Accounts Disposition Rate Rider (2015) | D29: per kW | H29: =G29*F29 -> 0 | K29: =K28 -> 919 | L29: =K29*J29 -> 0 | N29: =L29-H29 -> 0 | O29: =IF((H29)=0,"",(N29/H29)) ->  | Q29: 0.2836790542 | R29: =R28 -> 919 | S29: =R29*Q29 -> 260.7010508 | U29: =S29-L29 -> 260.7010508 | V29: =IF((L29)=0,"",(U29/L29)) ->  | X29: 0.2836790542 | Y29: =Y28 -> 919 | Z29: =Y29*X29 -> 260.7010508 | AB29: Deferral & Variance Accounts Disposition Rate Rider (2015) | AD29: per kW | AF29: 0 | AG29: 0 | AI29: 0.2836790542 | AJ29: =AJ28 -> 919 | AK29: =AJ29*AI29 -> 260.7010508 | AM29: 0 | AN29: 0 | AP29: 0.2836790542 | AQ29: =AQ28 -> 919 | AR29: =AQ29*AP29 -> 260.7010508 | AT29: 0 | AU29: 0 | AW29: 260.7010508 | AX29: 1
B30: Global Adjustment Disposition Rate Rider (2015) | D30: per kW | H30: 0 | K30: =K28 -> 919 | L30: 0 | N30: 0 | Q30: 0.6083210797 | R30: =R29 -> 919 | S30: 559.0470723 | U30: 559.0470723 | X30: 0.6083210797 | Y30: =Y29 -> 919 | Z30: 559.0470723 | AB30: Global Adjustment Disposition Rate Rider (2015) | AD30: per kW | AF30: 0 | AG30: 0 | AI30: 0.6083210797 | AJ30: =AJ29 -> 919 | AK30: 559.0470723 | AM30: 0 | AN30: 0 | AP30: 0.6083210797 | AQ30: =AQ29 -> 919 | AR30: 559.0470723 | AT30: 0 | AU30: 0 | AW30: 559.0470723 | AX30: 1
B31: ='App.2-W_(Resi)'!B33 -> Deferral & Variance Accounts Disposition Rate Rider for Group 2 DVAs (2015) | D31: per kW | Q31: 0.03298912832 | R31: =R30 -> 919 | S31: 30.31700893 | U31: 30.31700893 | X31: 0.03298912832 | Y31: =Y30 -> 919 | Z31: =Y31*X31 -> 30.31700893 | AB31: =B31 -> Deferral & Variance Accounts Disposition Rate Rider for Group 2 DVAs (2015) | AD31: per kW | AF31: =Z31-S31 -> 0 | AG31: =IF((S31)=0,"",(AF31/S31)) -> 0 | AI31: 0.03298912832 | AJ31: =AJ30 -> 919 | AK31: =AJ31*AI31 -> 30.31700893 | AM31: =AK31-Z31 -> 0 | AN31: =IF((Z31)=0,"",(AM31/Z31)) -> 0 | AP31: 0.03298912832 | AQ31: =AQ30 -> 919 | AR31: =AQ31*AP31 -> 30.31700893 | AT31: =AR31-AK31 -> 0 | AU31: =IF((AK31)=0,"",(AT31/AK31)) -> 0 | AW31: =AR31-H31 -> 30.31700893 | AX31: =IFERROR(AW31/H31,1) -> 1
B32: Line Losses on Cost of Power | D32: per kWh | F32: 0.09246 | G32: =$D$19*(1+F61)-$D$19 -> 17931 | H32: 1657.90026 | J32: 0.09246 | K32: =$D$19*(1+J61)-$D$19 -> 17931 | L32: 1657.90026 | N32: 0 | O32: 0 | Q32: 0.09246 | R32: =$D$19*(1+Q61)-$D$19 -> 20286.56299 | S32: 1875.695614 | U32: 217.7953536 | V32: 0.1313681883 | X32: 0.11184 | Y32: =$D$19*(1+X61)-$D$19 -> 20286.56299 | Z32: 2268.849204 | AB32: Line Losses on Cost of Power | AD32: per kWh | AF32: 393.1535907 | AG32: 0.2096041531 | AI32: 0.09246 | AJ32: =$D$19*(1+AI61)-$D$19 -> 20286.56299 | AK32: 1875.695614 | AM32: -393.1535907 | AN32: -0.1732832618 | AP32: 0.09246 | AQ32: =$D$19*(1+AP61)-$D$19 -> 20286.56299 | AR32: 1875.695614 | AT32: 0 | AU32: 0 | AW32: 217.7953536 | AX32: 0.1313681883
B33: Sub-Total B - Distribution (includes Sub-Total A) | H33: =SUM(H28:H32)+H27 -> 5239.37036 | L33: =SUM(L28:L32)+L27 -> 5239.37036 | N33: 0 | O33: 0 | S33: =SUM(S28:S32)+S27 -> 6111.069546 | U33: 871.6991857 | V33: 0.1663747981 | Z33: =SUM(Z28:Z32)+Z27 -> 6467.861736 | AB33: Sub-Total B - Distribution (includes Sub-Total A) | AF33: 356.7921907 | AG33: 0.05838457376 | AK33: =SUM(AK28:AK32)+AK27 -> 6239.355846 | AM33: -228.5058907 | AN33: -0.03532943343 | AR33: =SUM(AR28:AR32)+AR27 -> 6338.170846 | AT33: 98.815 | AU33: 0.01583737207 | AW33: 1098.800486 | AX33: =IFERROR(AW33/H33,0) -> 0.2097199492 | AY33: =IFERROR((AR33/H33)^(1/(2019-2014))-1,0) -> 0.0388120256
B34: RTSR - Network | D34: per kW | F34: 3.1669 | G34: =$D$20 -> 919 | H34: =G34*F34 -> 2910.3811 | J34: 3.1669 | K34: =$G34 -> 919 | L34: =K34*J34 -> 2910.3811 | N34: 0 | O34: 0 | Q34: 3.350435306 | R34: =$G34 -> 919 | S34: =R34*Q34 -> 3079.050046 | U34: 168.6689464 | V34: 0.05795424744 | X34: 3.1993 | Y34: =$G34 -> 919 | Z34: =Y34*X34 -> 2940.1567 | AB34: RTSR - Network | AD34: per kW | AF34: =Z34-S34 -> -138.8933464 | AG34: -0.0451091552 | AI34: 3.350435306 | AJ34: =$G34 -> 919 | AK34: =AJ34*AI34 -> 3079.050046 | AM34: 138.8933464 | AN34: 0.04724011696 | AP34: 3.350435306 | AQ34: =$G34 -> 919 | AR34: =AQ34*AP34 -> 3079.050046 | AT34: 0 | AU34: 0 | AW34: 168.6689464 | AX34: 0.05795424744
B35: RTSR - Line and Transformation Connection | D35: per kW | F35: 2.3594 | G35: =G34 -> 919 | H35: =G35*F35 -> 2168.2886 | J35: 2.3594 | K35: =$G35 -> 919 | L35: =K35*J35 -> 2168.2886 | N35: 0 | O35: 0 | Q35: 2.563700479 | R35: =$G35 -> 919 | S35: =R35*Q35 -> 2356.04074 | U35: 187.7521405 | V35: 0.08659001412 | X35: 2.5494 | Y35: =$G35 -> 919 | Z35: =Y35*X35 -> 2342.8986 | AB35: RTSR - Line and Transformation Connection | AD35: per kW | AF35: -13.14214049 | AG35: -0.005578061646 | AI35: 2.563700479 | AJ35: =$G35 -> 919 | AK35: =AJ35*AI35 -> 2356.04074 | AM35: 13.14214049 | AN35: 0.005609350952 | AP35: 2.563700479 | AQ35: =$G35 -> 919 | AR35: =AQ35*AP35 -> 2356.04074 | AT35: 0 | AU35: 0 | AW35: 187.7521405 | AX35: 0.08659001412
B36: Sub-Total C - Delivery (including Sub-Total B) | H36: =SUM(H33:H35) -> 10318.04006 | L36: =SUM(L33:L35) -> 10318.04006 | N36: 0 | O36: =IF((H36)=0,"",(N36/H36)) -> 0 | S36: =SUM(S33:S35) -> 11546.16033 | U36: 1228.120273 | V36: 0.1190265075 | Z36: =SUM(Z33:Z35) -> 11750.91704 | AB36: Sub-Total C - Delivery (including Sub-Total B) | AF36: =Z36-S36 -> 204.7567038 | AG36: 0.01773374852 | AK36: =SUM(AK33:AK35) -> 11674.44663 | AM36: -76.47040376 | AN36: -0.006507611578 | AR36: =SUM(AR33:AR35) -> 11773.26163 | AT36: 98.815 | AU36: 0.008464212747 | AW36: 1455.221573 | AX36: 0.1410366275 | AY36: =IFERROR((AR36/H36)^(1/(2019-2014))-1,0) -> 0.02673866522
B37: Wholesale Market Service Charge (WMSC) | D37: per kWh | F37: 0.0044 | G37: =$D$19*(1+F61) -> 434931 | H37: =G37*F37 -> 1913.6964 | J37: 0.0044 | K37: =$D$19*(1+J61) -> 434931 | L37: =K37*J37 -> 1913.6964 | N37: 0 | O37: 0 | Q37: 0.0036 | R37: =$D$19*(1+Q61) -> 437286.563 | S37: =R37*Q37 -> 1574.231627 | U37: -339.4647733 | V37: -0.1773869529 | X37: 0.0036 | Y37: =$D$19*(1+X61) -> 437286.563 | Z37: =Y37*X37 -> 1574.231627 | AB37: Wholesale Market Service Charge (WMSC) | AD37: per kWh | AF37: 0 | AG37: 0 | AI37: =X37 -> 0.0036 | AJ37: =$D$19*(1+AI61) -> 437286.563 | AK37: =AJ37*AI37 -> 1574.231627 | AM37: 0 | AN37: 0 | AP37: =AI37 -> 0.0036 | AQ37: =$D$19*(1+AP61) -> 437286.563 | AR37: =AQ37*AP37 -> 1574.231627 | AT37: 0 | AU37: 0 | AW37: -339.4647733 | AX37: =IF((AN37)=0,"",(AW37/AN37)) -> 
B38: Rural and Remote Rate Protection (RRRP) | D38: per kWh | F38: 0.0013 | G38: =G37 -> 434931 | H38: 565.4103 | J38: 0.0013 | K38: =K37 -> 434931 | L38: 565.4103 | N38: 0 | O38: 0 | Q38: 0.0013 | R38: =R37 -> 437286.563 | S38: 568.4725319 | U38: 3.062231881 | V38: 0.005415946403 | X38: 0.0021 | Y38: =Y37 -> 437286.563 | Z38: 918.3017823 | AB38: Rural and Remote Rate Protection (RRRP) | AD38: per kWh | AF38: 349.8292504 | AG38: 0.6153846154 | AI38: =X38 -> 0.0021 | AJ38: =AJ37 -> 437286.563 | AK38: 918.3017823 | AM38: 0 | AN38: 0 | AP38: =AI38 -> 0.0021 | AQ38: =AQ37 -> 437286.563 | AR38: 918.3017823 | AT38: 0 | AU38: 0 | AW38: 352.8914823
B39: ='App.2-W_GS 50-999 KW'!B39 -> Ontario Electricity Support Program (OESP) | D39: per kWh | Q39: 0.0011 | R39: =R38 -> 437286.563 | S39: =R39*Q39 -> 481.0152193 | U39: =S39-L39 -> 481.0152193 | V39: =IF((L39)=0,"",(U39/L39)) ->  | X39: 0.0011 | Y39: =Y38 -> 437286.563 | Z39: =Y39*X39 -> 481.0152193 | AB39: =B39 -> Ontario Electricity Support Program (OESP) | AD39: per kWh | AF39: =Z39-S39 -> 0 | AG39: =IF((S39)=0,"",(AF39/S39)) -> 0 | AI39: 0.0011 | AJ39: =AJ38 -> 437286.563 | AK39: =AJ39*AI39 -> 481.0152193 | AM39: =AK39-Z39 -> 0 | AN39: =IF((Z39)=0,"",(AM39/Z39)) -> 0 | AP39: 0.0011 | AQ39: =AQ38 -> 437286.563 | AR39: =AQ39*AP39 -> 481.0152193 | AT39: =AR39-AK39 -> 0 | AU39: =IF((AK39)=0,"",(AT39/AK39)) -> 0 | AW39: =AR39-H39 -> 481.0152193 | AX39: =IF((AN39)=0,"",(AW39/AN39)) -> 
B40: Standard Supply Service Charge | D40: Monthly | F40: 0.25 | G40: 1 | H40: 0.25 | J40: 0.25 | K40: =$G40 -> 1 | L40: 0.25 | N40: 0 | O40: 0 | Q40: 0.25 | R40: =$G40 -> 1 | S40: 0.25 | U40: 0 | V40: 0 | X40: 0.25 | Y40: =$G40 -> 1 | Z40: 0.25 | AB40: Standard Supply Service Charge | AD40: Monthly | AF40: 0 | AG40: 0 | AI40: 0.25 | AJ40: =$G40 -> 1 | AK40: 0.25 | AM40: 0 | AN40: 0 | AP40: 0.25 | AQ40: =$G40 -> 1 | AR40: 0.25 | AT40: 0 | AU40: 0 | AW40: 0
B41: Debt Retirement Charge (DRC) | D41: per kWh | F41: 0.007 | G41: =$D$19 -> 417000 | H41: 2919 | J41: 0.007 | K41: =$G41 -> 417000 | L41: 2919 | N41: 0 | O41: 0 | Q41: 0.007 | R41: =$G41 -> 417000 | S41: 2919 | U41: 0 | V41: 0 | X41: 0.007 | Y41: =$G41 -> 417000 | Z41: 2919 | AB41: Debt Retirement Charge (DRC) | AD41: per kWh | AF41: 0 | AG41: 0 | AI41: 0.007 | AJ41: =$G41 -> 417000 | AK41: 2919 | AM41: 0 | AN41: 0 | AP41: 0.007 | AQ41: =$G41 -> 417000 | AR41: 2919 | AT41: 0 | AU41: 0 | AW41: 0
B42: TOU - Off Peak | D42: per kWh | F42: 0.075 | G42: =0.64*$D$19 -> 266880 | H42: 20016 | J42: 0.075 | K42: 266880 | L42: 20016 | N42: 0 | O42: 0 | Q42: 0.087 | R42: 266880 | S42: 23218.56 | U42: 3202.56 | V42: 0.16 | X42: 0.087 | Y42: 266880 | Z42: 23218.56 | AB42: TOU - Off Peak | AD42: per kWh | AF42: 0 | AG42: 0 | AI42: 0.087 | AJ42: 266880 | AK42: 23218.56 | AM42: 0 | AN42: 0 | AP42: 0.087 | AQ42: 266880 | AR42: 23218.56 | AT42: 0 | AU42: 0 | AW42: 3202.56
B43: TOU - Mid Peak | D43: per kWh | F43: 0.112 | G43: =0.18*$D$19 -> 75060 | H43: 8406.72 | J43: 0.112 | K43: 75060 | L43: 8406.72 | N43: 0 | O43: 0 | Q43: 0.132 | R43: 75060 | S43: 9907.92 | U43: 1501.2 | V43: 0.1785714286 | X43: 0.132 | Y43: 75060 | Z43: 9907.92 | AB43: TOU - Mid Peak | AD43: per kWh | AF43: 0 | AG43: 0 | AI43: 0.132 | AJ43: 75060 | AK43: 9907.92 | AM43: 0 | AN43: 0 | AP43: 0.132 | AQ43: 75060 | AR43: 9907.92 | AT43: 0 | AU43: 0 | AW43: 1501.2
B44: TOU - On Peak | D44: per kWh | F44: 0.135 | G44: =0.18*$D$19 -> 75060 | H44: 10133.1 | J44: 0.135 | K44: 75060 | L44: 10133.1 | N44: 0 | O44: 0 | Q44: 0.18 | R44: 75060 | S44: 13510.8 | U44: 3377.7 | V44: 0.3333333333 | X44: 0.18 | Y44: 75060 | Z44: 13510.8 | AB44: TOU - On Peak | AD44: per kWh | AF44: 0 | AG44: 0 | AI44: 0.18 | AJ44: 75060 | AK44: 13510.8 | AM44: 0 | AN44: 0 | AP44: 0.18 | AQ44: 75060 | AR44: 13510.8 | AT44: 0 | AU44: 0 | AW44: 3377.7
B45: Energy - RPP - Tier 1 | D45: per kWh | F45: 0.083 | G45: =IF(AND($A$1=1, D19>=600), 600, IF(AND($A$1=1, AND(D19<600, D19>=0)), D19, IF(AND($A$1=2, D19>=1000), 1000, IF(AND($A$1=2, AND(D19<1000, D19>=0)), D19)))) -> 600 | H45: =G45*F45 -> 49.8 | J45: 0.083 | K45: 600 | L45: =K45*J45 -> 49.8 | N45: 0 | O45: 0 | Q45: 0.083 | R45: 600 | S45: =R45*Q45 -> 49.8 | U45: 0 | V45: 0 | X45: 0.083 | Y45: 600 | Z45: =Y45*X45 -> 49.8 | AB45: Energy - RPP - Tier 1 | AD45: per kWh | AF45: 0 | AG45: 0 | AI45: 0.083 | AJ45: 600 | AK45: =AJ45*AI45 -> 49.8 | AM45: 0 | AN45: 0 | AP45: 0.083 | AQ45: 600 | AR45: =AQ45*AP45 -> 49.8 | AT45: 0 | AU45: 0 | AW45: 0
B46: Energy - RPP - Tier 2 | D46: per kWh | F46: 0.097 | G46: =IF(AND($A$1=1, D19>=600), D19-600, IF(AND($A$1=1, AND(D19<600, D19>=0)), 0, IF(AND($A$1=2, D19>=1000), D19-1000, IF(AND($A$1=2, AND(D19<1000, D19>=0)), 0)))) -> 416400 | H46: =G46*F46 -> 40390.8 | J46: 0.097 | K46: 416400 | L46: =K46*J46 -> 40390.8 | N46: 0 | O46: 0 | Q46: 0.097 | R46: 416400 | S46: =R46*Q46 -> 40390.8 | U46: 0 | V46: 0 | X46: 0.097 | Y46: 416400 | Z46: =Y46*X46 -> 40390.8 | AB46: Energy - RPP - Tier 2 | AD46: per kWh | AF46: 0 | AG46: 0 | AI46: 0.097 | AJ46: 416400 | AK46: =AJ46*AI46 -> 40390.8 | AM46: 0 | AN46: 0 | AP46: 0.097 | AQ46: 416400 | AR46: =AQ46*AP46 -> 40390.8 | AT46: 0 | AU46: 0 | AW46: 0
B48: Total Bill on TOU (before Taxes) | H48: =SUM(H37:H44,H36) -> 54272.21676 | L48: =SUM(L37:L44,L36) -> 54272.21676 | N48: =L48-H48 -> 0 | O48: =IF((H48)=0,"",(N48/H48)) -> 0 | S48: =SUM(S37:S44,S36) -> 63726.40971 | U48: =S48-L48 -> 9454.19295 | V48: =IF((L48)=0,"",(U48/L48)) -> 0.1741994987 | Z48: =SUM(Z37:Z44,Z36) -> 64280.99566 | AB48: Total Bill on TOU (before Taxes) | AF48: =Z48-S48 -> 554.5859541 | AG48: =IF((S48)=0,"",(AF48/S48)) -> 0.008702607862 | AK48: =SUM(AK37:AK44,AK36) -> 64204.52526 | AM48: =AK48-Z48 -> -76.47040376 | AN48: =IF((Z48)=0,"",(AM48/Z48)) -> -0.001189626934 | AR48: =SUM(AR37:AR44,AR36) -> 64303.34026 | AT48: =AR48-AK48 -> 98.815 | AU48: =IF((AK48)=0,"",(AT48/AK48)) -> 0.001539065971 | AW48: 10031.1235 | AX48: =IFERROR(AW48/H48,1) -> 0.1848298098 | AY48: =IFERROR((AR48/H48)^(1/(2019-2014))-1,0) -> 0.03450166613
B49: HST | F49: 0.13 | H49: =H48*F49 -> 7055.388179 | J49: 0.13 | L49: =L48*J49 -> 7055.388179 | N49: 0 | O49: 0 | Q49: 0.13 | S49: =S48*Q49 -> 8284.433262 | U49: =S49-L49 -> 1229.045084 | V49: =IF((L49)=0,"",(U49/L49)) -> 0.1741994987 | X49: 0.13 | Z49: =Z48*X49 -> 8356.529436 | AB49: HST | AF49: =Z49-S49 -> 72.09617404 | AG49: =IF((S49)=0,"",(AF49/S49)) -> 0.008702607862 | AI49: 0.13 | AK49: =AK48*AI49 -> 8346.588284 | AM49: =AK49-Z49 -> -9.941152488 | AN49: =IF((Z49)=0,"",(AM49/Z49)) -> -0.001189626934 | AP49: 0.13 | AR49: =AR48*AP49 -> 8359.434234 | AT49: =AR49-AK49 -> 12.84595 | AU49: =IF((AK49)=0,"",(AT49/AK49)) -> 0.001539065971 | AW49: 1304.046055 | AX49: 0.1848298098 | AY49: 0.03450166613
B50: Total Bill (including HST) | H50: =H48+H49 -> 61327.60494 | L50: =L48+L49 -> 61327.60494 | N50: 0 | O50: 0 | S50: =S48+S49 -> 72010.84297 | U50: =S50-L50 -> 10683.23803 | V50: =IF((L50)=0,"",(U50/L50)) -> 0.1741994987 | Z50: =Z48+Z49 -> 72637.5251 | AB50: Total Bill (including HST) | AF50: =Z50-S50 -> 626.6821282 | AG50: =IF((S50)=0,"",(AF50/S50)) -> 0.008702607862 | AK50: =AK48+AK49 -> 72551.11354 | AM50: =AK50-Z50 -> -86.41155624 | AN50: =IF((Z50)=0,"",(AM50/Z50)) -> -0.001189626934 | AR50: =AR48+AR49 -> 72662.77449 | AT50: =AR50-AK50 -> 111.66095 | AU50: =IF((AK50)=0,"",(AT50/AK50)) -> 0.001539065971 | AW50: 11335.16956 | AX50: 0.1848298098 | AY50: 0.03450166613
B51: Ontario Clean Energy Benefit 1 | H51: =ROUND(-H50*10%,2) -> -6132.76 | L51: =ROUND(-L50*10%,2) -> -6132.76 | N51: 0 | O51: 0 | U51: =S51-L51 -> 6132.76 | V51: =IF((L51)=0,"",(U51/L51)) -> -1 | AB51: Ontario Clean Energy Benefit 1 | AF51: =Z51-S51 -> 0 | AG51: =IF((S51)=0,"",(AF51/S51)) ->  | AM51: =AK51-Z51 -> 0 | AN51: =IF((Z51)=0,"",(AM51/Z51)) ->  | AT51: =AR51-AK51 -> 0 | AU51: =IF((AK51)=0,"",(AT51/AK51)) ->  | AW51: 6132.76 | AX51: -1 | AY51: -1
B52: Total Bill on TOU (including OCEB) | H52: =H50+H51 -> 55194.84494 | L52: =L50+L51 -> 55194.84494 | N52: 0 | O52: 0 | S52: =S50+S51 -> 72010.84297 | U52: =S52-L52 -> 16815.99803 | V52: =IF((L52)=0,"",(U52/L52)) -> 0.3046660979 | Z52: =Z50+Z51 -> 72637.5251 | AB52: Total Bill on TOU (including OCEB) | AF52: =Z52-S52 -> 626.6821282 | AG52: =IF((S52)=0,"",(AF52/S52)) -> 0.008702607862 | AK52: =AK50+AK51 -> 72551.11354 | AM52: =AK52-Z52 -> -86.41155624 | AN52: =IF((Z52)=0,"",(AM52/Z52)) -> -0.001189626934 | AR52: =AR50+AR51 -> 72662.77449 | AT52: =AR52-AK52 -> 111.66095 | AU52: =IF((AK52)=0,"",(AT52/AK52)) -> 0.001539065971 | AW52: 17467.92956 | AX52: 0.3164775547 | AY52: 0.05653208854
B54: Total Bill on RPP (before Taxes) | H54: =SUM(H45:H46,H36,H37:H41) -> 56156.99676 | L54: =SUM(L45:L46,L36,L37:L41) -> 56156.99676 | N54: =L54-H54 -> 0 | O54: =IF((H54)=0,"",(N54/H54)) -> 0 | S54: =SUM(S45:S46,S36,S37:S41) -> 57529.72971 | U54: =S54-L54 -> 1372.73295 | V54: =IF((L54)=0,"",(U54/L54)) -> 0.02444455775 | Z54: =SUM(Z45:Z46,Z36,Z37:Z41) -> 58084.31566 | AB54: Total Bill on RPP (before Taxes) | AF54: =Z54-S54 -> 554.5859541 | AG54: =IF((S54)=0,"",(AF54/S54)) -> 0.009639988871 | AK54: =SUM(AK45:AK46,AK36,AK37:AK41) -> 58007.84526 | AM54: =AK54-Z54 -> -76.47040376 | AN54: =IF((Z54)=0,"",(AM54/Z54)) -> -0.001316541357 | AR54: =SUM(AR45:AR46,AR36,AR37:AR41) -> 58106.66026 | AT54: =AR54-AK54 -> 98.815 | AU54: =IF((AK54)=0,"",(AT54/AK54)) -> 0.001703476479 | AW54: 1949.663501 | AX54: =IFERROR(AW54/H54,1) -> 0.03471808703 | AY54: =IFERROR((AR54/H54)^(1/(2019-2014))-1,0) -> 0.006849150868
B55: HST | F55: 0.13 | H55: =H54*F55 -> 7300.409579 | J55: 0.13 | L55: =L54*J55 -> 7300.409579 | N55: 0 | O55: 0 | Q55: 0.13 | S55: =S54*Q55 -> 7478.864862 | U55: =S55-L55 -> 178.4552836 | V55: =IF((L55)=0,"",(U55/L55)) -> 0.02444455775 | X55: 0.13 | Z55: =Z54*X55 -> 7550.961036 | AB55: HST | AF55: =Z55-S55 -> 72.09617404 | AG55: =IF((S55)=0,"",(AF55/S55)) -> 0.009639988871 | AI55: 0.13 | AK55: =AK54*AI55 -> 7541.019884 | AM55: =AK55-Z55 -> -9.941152488 | AN55: =IF((Z55)=0,"",(AM55/Z55)) -> -0.001316541357 | AP55: 0.13 | AR55: =AR54*AP55 -> 7553.865834 | AT55: =AR55-AK55 -> 12.84595 | AU55: =IF((AK55)=0,"",(AT55/AK55)) -> 0.001703476479 | AW55: 253.4562551 | AX55: 0.03471808703 | AY55: 0.006849150868
B56: Total Bill (including HST) | H56: =H54+H55 -> 63457.40634 | L56: =L54+L55 -> 63457.40634 | N56: 0 | O56: 0 | S56: =S54+S55 -> 65008.59457 | U56: =S56-L56 -> 1551.188234 | V56: =IF((L56)=0,"",(U56/L56)) -> 0.02444455775 | Z56: =Z54+Z55 -> 65635.2767 | AB56: Total Bill (including HST) | AF56: =Z56-S56 -> 626.6821282 | AG56: =IF((S56)=0,"",(AF56/S56)) -> 0.009639988871 | AK56: =AK54+AK55 -> 65548.86514 | AM56: =AK56-Z56 -> -86.41155624 | AN56: =IF((Z56)=0,"",(AM56/Z56)) -> -0.001316541357 | AR56: =AR54+AR55 -> 65660.52609 | AT56: =AR56-AK56 -> 111.66095 | AU56: =IF((AK56)=0,"",(AT56/AK56)) -> 0.001703476479 | AW56: 2203.119756 | AX56: 0.03471808703 | AY56: 0.006849150868
B57: Ontario Clean Energy Benefit 1 | H57: =ROUND(-H56*10%,2) -> -6345.74 | L57: =ROUND(-L56*10%,2) -> -6345.74 | N57: 0 | O57: 0 | S57: =ROUND(-S56*10%,2) -> -6500.86 | U57: =S57-L57 -> -155.12 | V57: =IF((L57)=0,"",(U57/L57)) -> 0.02444474561 | Z57: =ROUND(-Z56*10%,2) -> -6563.53 | AB57: Ontario Clean Energy Benefit 1 | AF57: =Z57-S57 -> -62.67 | AG57: =IF((S57)=0,"",(AF57/S57)) -> 0.009640262981 | AK57: =ROUND(-AK56*10%,2) -> -6554.89 | AM57: =AK57-Z57 -> 8.64 | AN57: =IF((Z57)=0,"",(AM57/Z57)) -> -0.001316364822 | AR57: =ROUND(-AR56*10%,2) -> -6566.05 | AT57: =AR57-AK57 -> -11.16 | AU57: =IF((AK57)=0,"",(AT57/AK57)) -> 0.001702545733 | AW57: -220.31 | AX57: 0.03471777917 | AY57: 0.006849090955
B58: Total Bill on RPP (including OCEB) | H58: =SUM(H56:H57) -> 57111.66634 | L58: =SUM(L56:L57) -> 57111.66634 | N58: 0 | O58: 0 | S58: =SUM(S56:S57) -> 58507.73457 | U58: =S58-L58 -> 1396.068234 | V58: =IF((L58)=0,"",(U58/L58)) -> 0.02444453688 | Z58: =SUM(Z56:Z57) -> 59071.7467 | AB58: Total Bill on RPP (including OCEB) | AF58: =Z58-S58 -> 564.0121282 | AG58: =IF((S58)=0,"",(AF58/S58)) -> 0.009639958414 | AK58: =SUM(AK56:AK57) -> 58993.97514 | AM58: =AK58-Z58 -> -77.77155624 | AN58: =IF((Z58)=0,"",(AM58/Z58)) -> -0.001316560972 | AR58: =SUM(AR56:AR57) -> 59094.47609 | AT58: =AR58-AK58 -> 100.50095 | AU58: =IF((AK58)=0,"",(AT58/AK58)) -> 0.001703579895 | AW58: 1982.809756 | AX58: 0.03471812124 | AY58: 0.006849157525
B61: Loss Factor (%) | F61: 0.043 | J61: 0.043 | Q61: 0.0486488321 | X61: 0.0486488321 | AB61: Loss Factor (%) | AI61: 0.0486488321 | AP61: 0.0486488321
B63: Distribution excluding Rate Riders | AB63: Distribution excluding Rate Riders
B64: Monthly Service Charge | D64: Monthly | F64: 1221.57 | G64: =G23 -> 1 | H64: =G64*F64 -> 1221.57 | J64: 1221.57 | K64: =K23 -> 1 | L64: =K64*J64 -> 1221.57 | N64: =L64-H64 -> 0 | O64: =IF((H64)=0,"",(N64/H64)) -> 0 | Q64: 1097.01 | R64: =R23 -> 1 | S64: =R64*Q64 -> 1097.01 | U64: =S64-L64 -> -124.56 | V64: =IF((L64)=0,"",(U64/L64)) -> -0.1019671406 | X64: 1120.74 | Y64: =Y23 -> 1 | Z64: =Y64*X64 -> 1120.74 | AB64: Monthly Service Charge | AD64: Monthly | AF64: =Z64-S64 -> 23.73 | AG64: =IF((S64)=0,"",(AF64/S64)) -> 0.02163152569 | AI64: 1185.86 | AJ64: =AJ23 -> 1 | AK64: =AJ64*AI64 -> 1185.86 | AM64: =AK64-Z64 -> 65.12 | AN64: =IF((Z64)=0,"",(AM64/Z64)) -> 0.05810446669 | AP64: 1224.94 | AQ64: =AQ23 -> 1 | AR64: =AQ64*AP64 -> 1224.94 | AT64: =AR64-AK64 -> 39.08 | AU64: =IF((AK64)=0,"",(AT64/AK64)) -> 0.03295498625 | AW64: =AR64-H64 -> 3.37 | AX64: =IFERROR(AW64/H64,1) -> 0.002758744894 | AY64: =IFERROR((AR64/H64)^(1/(2019-2014))-1,0) -> 0.0005511411308
B65: Distribution Volumetric Rate | D65: per kW | F65: 2.5923 | G65: =$D$20 -> 919 | H65: =G65*F65 -> 2382.3237 | J65: 2.5923 | K65: =$D$20 -> 919 | L65: =K65*J65 -> 2382.3237 | N65: =L65-H65 -> 0 | O65: =IF((H65)=0,"",(N65/H65)) -> 0 | Q65: 2.3852 | R65: =$D$20 -> 919 | S65: =R65*Q65 -> 2191.9988 | U65: =S65-L65 -> -190.3249 | V65: =IF((L65)=0,"",(U65/L65)) -> -0.07989044478 | X65: 2.4246 | Y65: =$D$20 -> 919 | Z65: =Y65*X65 -> 2228.2074 | AB65: Distribution Volumetric Rate | AD65: per kW | AF65: =Z65-S65 -> 36.2086 | AG65: =IF((S65)=0,"",(AF65/S65)) -> 0.01651853094 | AI65: 2.5329 | AJ65: =$D$20 -> 919 | AK65: =AJ65*AI65 -> 2327.7351 | AM65: =AK65-Z65 -> 99.5277 | AN65: =IF((Z65)=0,"",(AM65/Z65)) -> 0.04466716159 | AP65: 2.5979 | AQ65: =$D$20 -> 919 | AR65: =AQ65*AP65 -> 2387.4701 | AT65: =AR65-AK65 -> 59.735 | AU65: =IF((AK65)=0,"",(AT65/AK65)) -> 0.02566228434 | AW65: =AR65-H65 -> 5.1464 | AX65: =IFERROR(AW65/H65,1) -> 0.002160243799 | AY65: =IFERROR((AR65/H65)^(1/(2019-2014))-1,0) -> 0.0004316759107
B66: "Regular" Distribution Rates only | H66: =SUM(H64:H65) -> 3603.8937 | L66: =SUM(L64:L65) -> 3603.8937 | N66: =L66-H66 -> 0 | O66: =IF((H66)=0,"",(N66/H66)) -> 0 | S66: =SUM(S64:S65) -> 3289.0088 | U66: =S66-L66 -> -314.8849 | V66: =IF((L66)=0,"",(U66/L66)) -> -0.08737352603 | Z66: =SUM(Z64:Z65) -> 3348.9474 | AB66: "Regular" Distribution Rates only | AF66: =Z66-S66 -> 59.9386 | AG66: =IF((S66)=0,"",(AF66/S66)) -> 0.01822390989 | AK66: =SUM(AK64:AK65) -> 3513.5951 | AM66: =AK66-Z66 -> 164.6477 | AN66: =IF((Z66)=0,"",(AM66/Z66)) -> 0.04916401494 | AR66: =SUM(AR64:AR65) -> 3612.4101 | AT66: =AR66-AK66 -> 98.815 | AU66: =IF((AK66)=0,"",(AT66/AK66)) -> 0.02812361618 | AW66: 8.5164 | AX66: =IFERROR(AW66/H66,0) -> 0.002363110765 | AY66: 0.0004721760421
A68: 1 Applicable to eligible customers only. Refer to the Ontario Clean Energy Benefit Act, 2010.
A70: Note that the "Charge $" columns provide breakdowns of the amounts that each bill component contributes to the total monthly bill at the referenced
A71: consumption level at existing and proposed rates.
A73: Applicants must provide bill impacts for residential at 800 kWh and GS<50kW at 2000 kWh. In addition, their filing must cover the range that is relevant
A74: to their service territory, class by class. A general guideline of consumption levels follows:
A76: Residential (kWh) - 100, 250, 500, 800, 1000, 1500, 2000
A77: GS<50kW (kWh) - 1000, 2000, 5000, 10000, 15000
A78: GS>50kW (kW) - 60, 100, 500, 1000
A79: Large User - range appropriate for utility
A80: Lighting Classes and USL - 150 kWh and 1 kW, range appropriate for utility.
B82: Note that cells with the highlighted color shown to the left indicate quantities that are loss adjusted. | AB82: Note that cells with the highlighted color shown to the left indicate quantities that are loss adjusted.
B90: Loss Factor Volume | D90: =ROUND(D93,0)&"/"&ROUND(D94,0) -> 17931/17931 | F90: 17931 | J90: 17931 | Q90: 20286.56299 | X90: 20286.56299 | AB90: Loss Factor Volume | AD90: =ROUND(AD93,0)&"/"&ROUND(AD94,0) -> 0/0 | AI90: 20286.56299 | AP90: 20286.56299
D93: =ROUND(F90,0) -> 17931 | AD93: =ROUND(AF90,0) -> 0
D94: =ROUND(J90,0) -> 17931 | AD94: =ROUND(AJ90,0) -> 0
B96: kWHs incl Loss Factor | D96: =ROUND(F96,0)&"/"&ROUND(J96,0) -> 434931/434931 | F96: 434931 | J96: 434931 | Q96: 437286.563 | X96: 437286.563 | AB96: kWHs incl Loss Factor | AD96: =ROUND(AF96,0)&"/"&ROUND(AJ96,0) -> 0/0 | AI96: 437286.563 | AP96: 437286.563

Sheet App.2-W_Bill Impacts >5000 KW
A1: 1 | B1: File Number: | D1: =EBNUMBER ->  | AB1: File Number: | AD1: =EBNUMBER -> 
B2: Exhibit: | AB2: Exhibit:
B3: Tab: | AB3: Tab:
B4: Schedule: | AB4: Schedule:
B5: Page: | AB5: Page:
B7: Date: | AB7: Date:
B10: Appendix 2-W : Bill Impacts | L10: =B15&" (i of ii)" -> Large User (> 5,000 KW) (i of ii) | AB10: Appendix 2-W : Bill Impacts | AK10: =B15&" (ii of ii)" -> Large User (> 5,000 KW) (ii of ii)
B11: Bill Impacts - These will need to be completed once source of rates are determined
B14: Customer Class: | AB14: Customer Class:
B15: Large User (> 5,000 KW) | AB15: Large User (> 5,000 KW)
B16: TOU / non-TOU: | D16: TOU | AB16: TOU / non-TOU: | AD16: TOU
D18: Consumption | AD18: Consumption
B19: kWh | D19: 3662000 | AB19: kWh | AD19: 3662000
B20: KW | D20: 7828 | F20: 2014 Rates | J20: 2015 Rates | N20: 2015 v 2014 | Q20: 2016 Proposed Rates | U20: 2016 v 2015 | X20: 2017 Proposed Rates | AB20: KW | AD20: 7828 | AF20: 2017 v 2016 | AI20: 2018 Proposed Interim Rates | AM20: 2018 v 2017 | AP20: 2019 Proposed Interim Rates | AT20: 2019 v 2018 | AW20: 2019 v 2014
D21: Charge Unit | F21: Rate | G21: Volume | H21: Charge | J21: Rate | K21: Volume | L21: Charge | N21: $ Change | O21: % Change | Q21: Rate | R21: Volume | S21: Charge | U21: $ Change | V21: % Change | X21: Rate | Y21: Volume | Z21: Charge | AD21: Charge Unit | AF21: $ Change | AG21: % Change | AI21: Rate | AJ21: Volume | AK21: Charge | AM21: $ Change | AN21: % Change | AP21: Rate | AQ21: Volume | AR21: Charge | AT21: $ Change | AU21: % Change | AW21: $ Change | AX21: % Change | AY21: % CAGR
F22: ($) | H22: ($) | J22: ($) | L22: ($) | Q22: ($) | S22: ($) | X22: ($) | Z22: ($) | AI22: ($) | AK22: ($) | AP22: ($) | AR22: ($)
B23: Monthly Service Charge | D23: Monthly | F23: 8270.63 | G23: 1 | H23: =G23*F23 -> 8270.63 | J23: 8270.63 | K23: 1 | L23: =K23*J23 -> 8270.63 | N23: =L23-H23 -> 0 | O23: =IF((H23)=0,"",(N23/H23)) -> 0 | Q23: 8347.42 | R23: 1 | S23: =R23*Q23 -> 8347.42 | U23: =S23-L23 -> 76.79 | V23: =IF((L23)=0,"",(U23/L23)) -> 0.009284661507 | X23: 8527.98 | Y23: 1 | Z23: =Y23*X23 -> 8527.98 | AB23: Monthly Service Charge | AD23: Monthly | AF23: =Z23-S23 -> 180.56 | AG23: =IF((S23)=0,"",(AF23/S23)) -> 0.02163063557 | AI23: 9023.5 | AJ23: 1 | AK23: =AJ23*AI23 -> 9023.5 | AM23: =AK23-Z23 -> 495.52 | AN23: =IF((Z23)=0,"",(AM23/Z23)) -> 0.05810520194 | AP23: 9320.91 | AQ23: 1 | AR23: =AQ23*AP23 -> 9320.91 | AT23: =AR23-AK23 -> 297.41 | AU23: =IF((AK23)=0,"",(AT23/AK23)) -> 0.03295949465 | AW23: =AR23-H23 -> 1050.28 | AX23: =IFERROR(AW23/H23,1) -> 0.1269891169
D24: per kW | K24: =K25 -> 7828 | L24: =K24*J24 -> 0 | R24: =R25 -> 7828 | S24: =R24*Q24 -> 0 | Y24: =Y25 -> 7828 | Z24: =Y24*X24 -> 0 | AB24: =B24 -> 0 | AD24: per kW | AJ24: =AJ25 -> 7828 | AK24: =AJ24*AI24 -> 0 | AQ24: =AQ25 -> 7828 | AR24: =AQ24*AP24 -> 0
B25: Distribution Volumetric Rate | D25: per kW | F25: 2.0531 | G25: =$D$20 -> 7828 | H25: =G25*F25 -> 16071.6668 | J25: 2.0531 | K25: =$G25 -> 7828 | L25: =K25*J25 -> 16071.6668 | N25: =L25-H25 -> 0 | O25: =IF((H25)=0,"",(N25/H25)) -> 0 | Q25: 2.0666 | R25: =$G25 -> 7828 | S25: =R25*Q25 -> 16177.3448 | U25: =S25-L25 -> 105.678 | V25: 0.006575422532 | X25: 2.0983 | Y25: =$G25 -> 7828 | Z25: =Y25*X25 -> 16425.4924 | AB25: Distribution Volumetric Rate | AD25: per kW | AF25: =Z25-S25 -> 248.1476 | AG25: 0.01533920449 | AI25: 2.1854 | AJ25: =$G25 -> 7828 | AK25: =AJ25*AI25 -> 17107.3112 | AM25: =AK25-Z25 -> 681.8188 | AN25: 0.04150979364 | AP25: 2.2377 | AQ25: =$G25 -> 7828 | AR25: =AQ25*AP25 -> 17516.7156 | AT25: =AR25-AK25 -> 409.4044 | AU25: 0.02393154571 | AW25: =AR25-H25 -> 1445.0488 | AX25: =IFERROR(AW25/H25,1) -> 0.08991281477
B26: ='App.2-W_(Resi)'!B28 -> 2015 Oct-Dec Recovery | D26: Monthly | J26: 0 | K26: 1 | L26: 0 | N26: =L26-H26 -> 0 | O26: =IF((H26)=0,"",(N26/H26)) ->  | Q26: 544.12 | R26: 1 | S26: 544.12 | U26: =S26-L26 -> 544.12 | V26: =IF((L26)=0,"",(U26/L26)) ->  | X26: 0 | Y26: 1 | Z26: 0 | AB26: =B26 -> 2015 Oct-Dec Recovery | AD26: Monthly | AF26: =Z26-S26 -> -544.12 | AG26: =IF((S26)=0,"",(AF26/S26)) -> -1 | AI26: 0 | AJ26: 1 | AK26: 0 | AM26: =AK26-Z26 -> 0 | AN26: =IF((Z26)=0,"",(AM26/Z26)) ->  | AP26: 0 | AQ26: 1 | AR26: 0 | AT26: =AR26-AK26 -> 0 | AU26: =IF((AK26)=0,"",(AT26/AK26)) -> 
B27: Sub-Total A (excluding pass through) | H27: =SUM(H23:H26) -> 24342.2968 | L27: =SUM(L23:L26) -> 24342.2968 | N27: 0 | O27: 0 | S27: =SUM(S23:S26) -> 25068.8848 | U27: 726.588 | V27: 0.02984878567 | Z27: =SUM(Z23:Z26) -> 24953.4724 | AB27: Sub-Total A (excluding pass through) | AF27: -115.4124 | AG27: -0.004603810697 | AK27: =SUM(AK23:AK26) -> 26130.8112 | AM27: 1177.3388 | AN27: 0.04718136142 | AR27: =SUM(AR23:AR26) -> 26837.6256 | AT27: 706.8144 | AU27: 0.0270490799 | AW27: 2495.3288 | AX27: =IFERROR(AW27/H27,0) -> 0.1025099982 | AY27: =IFERROR((AR27/H27)^(1/(2019-2014))-1,0) -> 0.01970959848
B28: Deferral & Variance Accounts Disposition Rate Rider (2012) | D28: per kW | F28: -0.0251 | G28: =$D$20 -> 7828 | H28: =G28*F28 -> -196.4828 | J28: -0.0251 | K28: =$G28 -> 7828 | L28: =K28*J28 -> -196.4828 | N28: =L28-H28 -> 0 | O28: =IF((H28)=0,"",(N28/H28)) -> 0 | Q28: 0 | R28: =$D$20 -> 7828 | S28: =R28*Q28 -> 0 | U28: 196.4828 | V28: -1 | X28: 0 | Y28: =$D$20 -> 7828 | Z28: =Y28*X28 -> 0 | AB28: Deferral & Variance Accounts Disposition Rate Rider (2012) | AD28: per kW | AF28: 0 | AI28: 0 | AJ28: =$D$20 -> 7828 | AK28: =AJ28*AI28 -> 0 | AM28: 0 | AP28: 0 | AQ28: =$D$20 -> 7828 | AR28: =AQ28*AP28 -> 0 | AT28: 0 | AW28: 196.4828 | AX28: =IFERROR(AW28/H28,1) -> -1
B29: Deferral & Variance Accounts Disposition Rate Rider (2015) | D29: per kW | H29: =G29*F29 -> 0 | K29: =K28 -> 7828 | L29: =K29*J29 -> 0 | N29: =L29-H29 -> 0 | O29: =IF((H29)=0,"",(N29/H29)) ->  | Q29: 0.2770512495 | R29: =R28 -> 7828 | S29: =R29*Q29 -> 2168.757181 | U29: 2168.757181 | X29: 0.2770512495 | Y29: =Y28 -> 7828 | Z29: =Y29*X29 -> 2168.757181 | AB29: Deferral & Variance Accounts Disposition Rate Rider (2015) | AD29: per kW | AF29: 0 | AG29: 0 | AI29: 0.2770512495 | AJ29: =AJ28 -> 7828 | AK29: =AJ29*AI29 -> 2168.757181 | AM29: 0 | AN29: 0 | AP29: 0.2770512495 | AQ29: =AQ28 -> 7828 | AR29: =AQ29*AP29 -> 2168.757181 | AT29: 0 | AU29: 0 | AW29: 2168.757181 | AX29: 1
B30: Global Adjustment Disposition Rate Rider (2015) | D30: per kW | H30: 0 | K30: =K28 -> 7828 | L30: 0 | N30: 0 | Q30: 0 | R30: =R29 -> 7828 | S30: 0 | U30: 0 | X30: 0 | Y30: =Y29 -> 7828 | Z30: 0 | AB30: Global Adjustment Disposition Rate Rider (2015) | AD30: per kW | AF30: 0 | AI30: 0 | AJ30: =AJ29 -> 7828 | AK30: 0 | AM30: 0 | AP30: 0 | AQ30: =AQ29 -> 7828 | AR30: 0 | AT30: 0 | AW30: 0 | AX30: 1
B31: ='App.2-W_(Resi)'!B33 -> Deferral & Variance Accounts Disposition Rate Rider for Group 2 DVAs (2015) | D31: per kW | H31: =G31*F31 -> 0 | K31: =K29 -> 7828 | L31: =K31*J31 -> 0 | N31: =L31-H31 -> 0 | O31: =IF((H31)=0,"",(N31/H31)) ->  | Q31: 0.03222167071 | R31: =R30 -> 7828 | S31: =R31*Q31 -> 252.2312383 | U31: =S31-L31 -> 252.2312383 | V31: =IF((L31)=0,"",(U31/L31)) ->  | X31: 0.03222167071 | Y31: =Y30 -> 7828 | Z31: =Y31*X31 -> 252.2312383 | AB31: =B31 -> Deferral & Variance Accounts Disposition Rate Rider for Group 2 DVAs (2015) | AD31: per kW | AF31: =Z31-S31 -> 0 | AG31: =IF((S31)=0,"",(AF31/S31)) -> 0 | AI31: 0.03222167071 | AJ31: =AJ30 -> 7828 | AK31: =AJ31*AI31 -> 252.2312383 | AM31: =AK31-Z31 -> 0 | AN31: =IF((Z31)=0,"",(AM31/Z31)) -> 0 | AP31: 0.03222167071 | AQ31: =AQ30 -> 7828 | AR31: =AQ31*AP31 -> 252.2312383 | AT31: =AR31-AK31 -> 0 | AU31: =IF((AK31)=0,"",(AT31/AK31)) -> 0 | AW31: =AR31-H31 -> 252.2312383 | AX31: =IFERROR(AW31/H31,1) -> 1
B32: Line Losses on Cost of Power | D32: per kWh | F32: 0.09246 | G32: =$D$19*(1+F61)-$D$19 -> 53099 | H32: 4909.53354 | J32: 0.09246 | K32: =$D$19*(1+J61)-$D$19 -> 53099 | L32: 4909.53354 | N32: 0 | O32: 0 | Q32: 0.09246 | R32: =$D$19*(1+Q61)-$D$19 -> 53099 | S32: 4909.53354 | U32: 0 | V32: 0 | X32: 0.11184 | Y32: =$D$19*(1+X61)-$D$19 -> 53099 | Z32: 5938.59216 | AB32: Line Losses on Cost of Power | AD32: per kWh | AF32: 1029.05862 | AG32: 0.2096041531 | AI32: 0.09246 | AJ32: =$D$19*(1+AI61)-$D$19 -> 53099 | AK32: 4909.53354 | AM32: -1029.05862 | AN32: -0.1732832618 | AP32: 0.09246 | AQ32: =$D$19*(1+AP61)-$D$19 -> 53099 | AR32: 4909.53354 | AT32: 0 | AU32: 0 | AW32: 0 | AX32: 0
B33: Sub-Total B - Distribution (includes Sub-Total A) | H33: =SUM(H28:H32)+H27 -> 29055.34754 | L33: =SUM(L28:L32)+L27 -> 29055.34754 | N33: 0 | O33: 0 | S33: =SUM(S28:S32)+S27 -> 32399.40676 | U33: 3344.05922 | V33: 0.1150927283 | Z33: =SUM(Z28:Z32)+Z27 -> 33313.05298 | AB33: Sub-Total B - Distribution (includes Sub-Total A) | AF33: 913.64622 | AG33: 0.02819947374 | AK33: =SUM(AK28:AK32)+AK27 -> 33461.33316 | AM33: 148.28018 | AN33: 0.004451113505 | AR33: =SUM(AR28:AR32)+AR27 -> 34168.14756 | AT33: 706.8144 | AU33: 0.02112331857 | AW33: 5112.80002 | AX33: =IFERROR(AW33/H33,0) -> 0.1759676085 | AY33: =IFERROR((AR33/H33)^(1/(2019-2014))-1,0) -> 0.03294945749
B34: RTSR - Network | D34: per kW | F34: 3.3743 | G34: =$D$20 -> 7828 | H34: =G34*F34 -> 26414.0204 | J34: 3.3743 | K34: =$G34 -> 7828 | L34: =K34*J34 -> 26414.0204 | N34: 0 | O34: 0 | Q34: 3.569855017 | R34: =$G34 -> 7828 | S34: =R34*Q34 -> 27944.82507 | U34: 1530.804674 | V34: 0.05795424744 | X34: 3.4089 | Y34: =$G34 -> 7828 | Z34: =Y34*X34 -> 26684.8692 | AB34: RTSR - Network | AD34: per kW | AF34: -1259.955874 | AG34: -0.04508727003 | AI34: 3.569855017 | AJ34: =$G34 -> 7828 | AK34: =AJ34*AI34 -> 27944.82507 | AM34: 1259.955874 | AN34: 0.04721611579 | AP34: 3.569855017 | AQ34: =$G34 -> 7828 | AR34: =AQ34*AP34 -> 27944.82507 | AT34: 0 | AU34: 0 | AW34: 1530.804674 | AX34: 0.05795424744
B35: RTSR - Line and Transformation Connection | D35: per kW | F35: 2.5744 | G35: =G34 -> 7828 | H35: =G35*F35 -> 20152.4032 | J35: 2.5744 | K35: =$G35 -> 7828 | L35: =K35*J35 -> 20152.4032 | N35: 0 | O35: 0 | Q35: 2.797317332 | R35: =$G35 -> 7828 | S35: =R35*Q35 -> 21897.40008 | U35: 1744.996878 | V35: 0.08659001412 | X35: 2.7817 | Y35: =$G35 -> 7828 | Z35: =Y35*X35 -> 21775.1476 | AB35: RTSR - Line and Transformation Connection | AD35: per kW | AF35: -122.2524777 | AG35: -0.005582967714 | AI35: 2.797317332 | AJ35: =$G35 -> 7828 | AK35: =AJ35*AI35 -> 21897.40008 | AM35: 122.2524777 | AN35: 0.005614312238 | AP35: 2.797317332 | AQ35: =$G35 -> 7828 | AR35: =AQ35*AP35 -> 21897.40008 | AT35: 0 | AU35: 0 | AW35: 1744.996878 | AX35: 0.08659001412
B36: Sub-Total C - Delivery (including Sub-Total B) | H36: =SUM(H33:H35) -> 75621.77114 | L36: =SUM(L33:L35) -> 75621.77114 | N36: 0 | O36: =IF((H36)=0,"",(N36/H36)) -> 0 | S36: =SUM(S33:S35) -> 82241.63191 | U36: 6619.860771 | V36: 0.08753908658 | Z36: =SUM(Z33:Z35) -> 81773.06978 | AB36: Sub-Total C - Delivery (including Sub-Total B) | AF36: -468.5621317 | AG36: -0.005697383683 | AK36: =SUM(AK33:AK35) -> 83303.55831 | AM36: 1530.488532 | AN36: 0.01871629053 | AR36: =SUM(AR33:AR35) -> 84010.37271 | AT36: 706.8144 | AU36: 0.008484804423 | AW36: 8388.601571 | AX36: 0.1109283933 | AY36: =IFERROR((AR36/H36)^(1/(2019-2014))-1,0) -> 0.02126209579
B37: Wholesale Market Service Charge (WMSC) | D37: per kWh | F37: 0.0044 | G37: =$D$19*(1+F61) -> 3715099 | H37: =G37*F37 -> 16346.4356 | J37: 0.0044 | K37: =$D$19*(1+J61) -> 3715099 | L37: =K37*J37 -> 16346.4356 | N37: 0 | O37: 0 | Q37: 0.0036 | R37: =$D$19*(1+Q61) -> 3715099 | S37: =R37*Q37 -> 13374.3564 | U37: -2972.0792 | V37: -0.1818181818 | X37: 0.0036 | Y37: =$D$19*(1+X61) -> 3715099 | Z37: =Y37*X37 -> 13374.3564 | AB37: Wholesale Market Service Charge (WMSC) | AD37: per kWh | AF37: 0 | AG37: 0 | AI37: =X37 -> 0.0036 | AJ37: =$D$19*(1+AI61) -> 3715099 | AK37: =AJ37*AI37 -> 13374.3564 | AM37: 0 | AN37: 0 | AP37: =AI37 -> 0.0036 | AQ37: =$D$19*(1+AP61) -> 3715099 | AR37: =AQ37*AP37 -> 13374.3564 | AT37: 0 | AU37: 0 | AW37: -2972.0792 | AX37: =IF((AN37)=0,"",(AW37/AN37)) -> 
B38: Rural and Remote Rate Protection (RRRP) | D38: per kWh | F38: 0.0013 | G38: =G37 -> 3715099 | H38: 4829.6287 | J38: 0.0013 | K38: =K37 -> 3715099 | L38: 4829.6287 | N38: 0 | O38: 0 | Q38: 0.0013 | R38: =R37 -> 3715099 | S38: 4829.6287 | U38: 0 | V38: 0 | X38: 0.0021 | Y38: =Y37 -> 3715099 | Z38: 7801.7079 | AB38: Rural and Remote Rate Protection (RRRP) | AD38: per kWh | AF38: 2972.0792 | AG38: 0.6153846154 | AI38: =X38 -> 0.0021 | AJ38: =AJ37 -> 3715099 | AK38: 7801.7079 | AM38: 0 | AN38: 0 | AP38: =AI38 -> 0.0021 | AQ38: =AQ37 -> 3715099 | AR38: 7801.7079 | AT38: 0 | AU38: 0 | AW38: 2972.0792
B39: ='App.2-W_Bill Impacts <4999 KW'!B39 -> Ontario Electricity Support Program (OESP) | D39: per kWh | Q39: 0.0011 | R39: =R38 -> 3715099 | S39: =R39*Q39 -> 4086.6089 | U39: =S39-L39 -> 4086.6089 | V39: =IF((L39)=0,"",(U39/L39)) ->  | X39: 0.0011 | Y39: =Y38 -> 3715099 | Z39: =Y39*X39 -> 4086.6089 | AB39: =B39 -> Ontario Electricity Support Program (OESP) | AD39: per kWh | AF39: =Z39-S39 -> 0 | AG39: =IF((S39)=0,"",(AF39/S39)) -> 0 | AI39: 0.0011 | AJ39: =AJ38 -> 3715099 | AK39: =AJ39*AI39 -> 4086.6089 | AM39: =AK39-Z39 -> 0 | AN39: =IF((Z39)=0,"",(AM39/Z39)) -> 0 | AP39: 0.0011 | AQ39: =AQ38 -> 3715099 | AR39: =AQ39*AP39 -> 4086.6089 | AT39: =AR39-AK39 -> 0 | AU39: =IF((AK39)=0,"",(AT39/AK39)) -> 0 | AW39: =AR39-H39 -> 4086.6089 | AX39: =IF((AN39)=0,"",(AW39/AN39)) -> 
B40: Standard Supply Service Charge | D40: Monthly | F40: 0.25 | G40: 1 | H40: 0.25 | J40: 0.25 | K40: =$G40 -> 1 | L40: 0.25 | N40: 0 | O40: 0 | Q40: 0.25 | R40: =$G40 -> 1 | S40: 0.25 | U40: 0 | V40: 0 | X40: 0.25 | Y40: =$G40 -> 1 | Z40: 0.25 | AB40: Standard Supply Service Charge | AD40: Monthly | AF40: 0 | AG40: 0 | AI40: 0.25 | AJ40: =$G40 -> 1 | AK40: 0.25 | AM40: 0 | AN40: 0 | AP40: 0.25 | AQ40: =$G40 -> 1 | AR40: 0.25 | AT40: 0 | AU40: 0 | AW40: 0
B41: Debt Retirement Charge (DRC) | D41: per kWh | F41: 0.007 | G41: =$D$19 -> 3662000 | H41: 25634 | J41: 0.007 | K41: =$G41 -> 3662000 | L41: 25634 | N41: 0 | O41: 0 | Q41: 0.007 | R41: =$G41 -> 3662000 | S41: 25634 | U41: 0 | V41: 0 | X41: 0.007 | Y41: =$G41 -> 3662000 | Z41: 25634 | AB41: Debt Retirement Charge (DRC) | AD41: per kWh | AF41: 0 | AG41: 0 | AI41: 0.007 | AJ41: =$G41 -> 3662000 | AK41: 25634 | AM41: 0 | AN41: 0 | AP41: 0.007 | AQ41: =$G41 -> 3662000 | AR41: 25634 | AT41: 0 | AU41: 0 | AW41: 0
B42: TOU - Off Peak | D42: per kWh | F42: 0.075 | G42: =0.64*$D$19 -> 2343680 | H42: 175776 | J42: 0.075 | K42: 2343680 | L42: 175776 | N42: 0 | O42: 0 | Q42: 0.087 | R42: 2343680 | S42: 203900.16 | U42: 28124.16 | V42: 0.16 | X42: 0.087 | Y42: 2343680 | Z42: 203900.16 | AB42: TOU - Off Peak | AD42: per kWh | AF42: 0 | AG42: 0 | AI42: 0.087 | AJ42: 2343680 | AK42: 203900.16 | AM42: 0 | AN42: 0 | AP42: 0.087 | AQ42: 2343680 | AR42: 203900.16 | AT42: 0 | AU42: 0 | AW42: 28124.16
B43: TOU - Mid Peak | D43: per kWh | F43: 0.112 | G43: =0.18*$D$19 -> 659160 | H43: 73825.92 | J43: 0.112 | K43: 659160 | L43: 73825.92 | N43: 0 | O43: 0 | Q43: 0.132 | R43: 659160 | S43: 87009.12 | U43: 13183.2 | V43: 0.1785714286 | X43: 0.132 | Y43: 659160 | Z43: 87009.12 | AB43: TOU - Mid Peak | AD43: per kWh | AF43: 0 | AG43: 0 | AI43: 0.132 | AJ43: 659160 | AK43: 87009.12 | AM43: 0 | AN43: 0 | AP43: 0.132 | AQ43: 659160 | AR43: 87009.12 | AT43: 0 | AU43: 0 | AW43: 13183.2
B44: TOU - On Peak | D44: per kWh | F44: 0.135 | G44: =0.18*$D$19 -> 659160 | H44: 88986.6 | J44: 0.135 | K44: 659160 | L44: 88986.6 | N44: 0 | O44: 0 | Q44: 0.18 | R44: 659160 | S44: 118648.8 | U44: 29662.2 | V44: 0.3333333333 | X44: 0.18 | Y44: 659160 | Z44: 118648.8 | AB44: TOU - On Peak | AD44: per kWh | AF44: 0 | AG44: 0 | AI44: 0.18 | AJ44: 659160 | AK44: 118648.8 | AM44: 0 | AN44: 0 | AP44: 0.18 | AQ44: 659160 | AR44: 118648.8 | AT44: 0 | AU44: 0 | AW44: 29662.2
B45: Energy - RPP - Tier 1 | D45: per kWh | F45: 0.083 | G45: =IF(AND($A$1=1, D19>=600), 600, IF(AND($A$1=1, AND(D19<600, D19>=0)), D19, IF(AND($A$1=2, D19>=1000), 1000, IF(AND($A$1=2, AND(D19<1000, D19>=0)), D19)))) -> 600 | H45: =G45*F45 -> 49.8 | J45: 0.083 | K45: 600 | L45: =K45*J45 -> 49.8 | N45: 0 | O45: 0 | Q45: 0.083 | R45: 600 | S45: =R45*Q45 -> 49.8 | U45: 0 | V45: 0 | X45: 0.083 | Y45: 600 | Z45: =Y45*X45 -> 49.8 | AB45: Energy - RPP - Tier 1 | AD45: per kWh | AF45: 0 | AG45: 0 | AI45: 0.083 | AJ45: 600 | AK45: =AJ45*AI45 -> 49.8 | AM45: 0 | AN45: 0 | AP45: 0.083 | AQ45: 600 | AR45: =AQ45*AP45 -> 49.8 | AT45: 0 | AU45: 0 | AW45: 0
B46: Energy - RPP - Tier 2 | D46: per kWh | F46: 0.097 | G46: =IF(AND($A$1=1, D19>=600), D19-600, IF(AND($A$1=1, AND(D19<600, D19>=0)), 0, IF(AND($A$1=2, D19>=1000), D19-1000, IF(AND($A$1=2, AND(D19<1000, D19>=0)), 0)))) -> 3661400 | H46: =G46*F46 -> 355155.8 | J46: 0.097 | K46: 3661400 | L46: =K46*J46 -> 355155.8 | N46: 0 | O46: 0 | Q46: 0.097 | R46: 3661400 | S46: =R46*Q46 -> 355155.8 | U46: 0 | V46: 0 | X46: 0.097 | Y46: 3661400 | Z46: =Y46*X46 -> 355155.8 | AB46: Energy - RPP - Tier 2 | AD46: per kWh | AF46: 0 | AG46: 0 | AI46: 0.097 | AJ46: 3661400 | AK46: =AJ46*AI46 -> 355155.8 | AM46: 0 | AN46: 0 | AP46: 0.097 | AQ46: 3661400 | AR46: =AQ46*AP46 -> 355155.8 | AT46: 0 | AU46: 0 | AW46: 0
B48: Total Bill on TOU (before Taxes) | H48: =SUM(H37:H44,H36) -> 461020.6054 | L48: =SUM(L37:L44,L36) -> 461020.6054 | N48: =L48-H48 -> 0 | O48: =IF((H48)=0,"",(N48/H48)) -> 0 | S48: =SUM(S37:S44,S36) -> 539724.5559 | U48: =S48-L48 -> 78703.95047 | V48: =IF((L48)=0,"",(U48/L48)) -> 0.1707167739 | Z48: =SUM(Z37:Z44,Z36) -> 542228.073 | AB48: Total Bill on TOU (before Taxes) | AF48: =Z48-S48 -> 2503.517068 | AG48: =IF((S48)=0,"",(AF48/S48)) -> 0.004638508737 | AK48: =SUM(AK37:AK44,AK36) -> 543758.5615 | AM48: =AK48-Z48 -> 1530.488532 | AN48: =IF((Z48)=0,"",(AM48/Z48)) -> 0.002822591835 | AR48: =SUM(AR37:AR44,AR36) -> 544465.3759 | AT48: =AR48-AK48 -> 706.8144 | AU48: =IF((AK48)=0,"",(AT48/AK48)) -> 0.001299868085 | AW48: 83444.77047 | AX48: =IFERROR(AW48/H48,1) -> 0.1810000887 | AY48: =IFERROR((AR48/H48)^(1/(2019-2014))-1,0) -> 0.0338320366
B49: HST | F49: 0.13 | H49: =H48*F49 -> 59932.67871 | J49: 0.13 | L49: =L48*J49 -> 59932.67871 | N49: 0 | O49: 0 | Q49: 0.13 | S49: =S48*Q49 -> 70164.19227 | U49: =S49-L49 -> 10231.51356 | V49: =IF((L49)=0,"",(U49/L49)) -> 0.1707167739 | X49: 0.13 | Z49: =Z48*X49 -> 70489.64949 | AB49: HST | AF49: =Z49-S49 -> 325.4572189 | AG49: =IF((S49)=0,"",(AF49/S49)) -> 0.004638508737 | AI49: 0.13 | AK49: =AK48*AI49 -> 70688.613 | AM49: =AK49-Z49 -> 198.9635091 | AN49: =IF((Z49)=0,"",(AM49/Z49)) -> 0.002822591835 | AP49: 0.13 | AR49: =AR48*AP49 -> 70780.49887 | AT49: =AR49-AK49 -> 91.885872 | AU49: =IF((AK49)=0,"",(AT49/AK49)) -> 0.001299868085 | AW49: 10847.82016 | AX49: 0.1810000887 | AY49: 0.0338320366
B50: Total Bill (including HST) | H50: =H48+H49 -> 520953.2841 | L50: =L48+L49 -> 520953.2841 | N50: 0 | O50: 0 | S50: =S48+S49 -> 609888.7482 | U50: =S50-L50 -> 88935.46403 | V50: =IF((L50)=0,"",(U50/L50)) -> 0.1707167739 | Z50: =Z48+Z49 -> 612717.7225 | AB50: Total Bill (including HST) | AF50: =Z50-S50 -> 2828.974287 | AG50: =IF((S50)=0,"",(AF50/S50)) -> 0.004638508737 | AK50: =AK48+AK49 -> 614447.1745 | AM50: =AK50-Z50 -> 1729.452041 | AN50: =IF((Z50)=0,"",(AM50/Z50)) -> 0.002822591835 | AR50: =AR48+AR49 -> 615245.8748 | AT50: =AR50-AK50 -> 798.700272 | AU50: =IF((AK50)=0,"",(AT50/AK50)) -> 0.001299868085 | AW50: 94292.59063 | AX50: 0.1810000887 | AY50: 0.0338320366
B51: Ontario Clean Energy Benefit 1 | H51: =ROUND(-H50*10%,2) -> -52095.33 | L51: =ROUND(-L50*10%,2) -> -52095.33 | N51: 0 | O51: 0 | U51: =S51-L51 -> 52095.33 | V51: =IF((L51)=0,"",(U51/L51)) -> -1 | AB51: Ontario Clean Energy Benefit 1 | AF51: =Z51-S51 -> 0 | AG51: =IF((S51)=0,"",(AF51/S51)) ->  | AM51: =AK51-Z51 -> 0 | AN51: =IF((Z51)=0,"",(AM51/Z51)) ->  | AT51: =AR51-AK51 -> 0 | AU51: =IF((AK51)=0,"",(AT51/AK51)) ->  | AW51: 52095.33 | AX51: -1 | AY51: -1
B52: Total Bill on TOU (including OCEB) | H52: =H50+H51 -> 468857.9541 | L52: =L50+L51 -> 468857.9541 | N52: 0 | O52: 0 | S52: =S50+S51 -> 609888.7482 | U52: =S52-L52 -> 141030.794 | V52: =IF((L52)=0,"",(U52/L52)) -> 0.3007964199 | Z52: =Z50+Z51 -> 612717.7225 | AB52: Total Bill on TOU (including OCEB) | AF52: =Z52-S52 -> 2828.974287 | AG52: =IF((S52)=0,"",(AF52/S52)) -> 0.004638508737 | AK52: =AK50+AK51 -> 614447.1745 | AM52: =AK52-Z52 -> 1729.452041 | AN52: =IF((Z52)=0,"",(AM52/Z52)) -> 0.002822591835 | AR52: =AR50+AR51 -> 615245.8748 | AT52: =AR52-AK52 -> 798.700272 | AU52: =IF((AK52)=0,"",(AT52/AK52)) -> 0.001299868085 | AW52: 146387.9206 | AX52: 0.3122223252 | AY52: 0.05584820139
B54: Total Bill on RPP (before Taxes) | H54: =SUM(H45:H46,H36,H37:H41) -> 477637.6854 | L54: =SUM(L45:L46,L36,L37:L41) -> 477637.6854 | N54: =L54-H54 -> 0 | O54: =IF((H54)=0,"",(N54/H54)) -> 0 | S54: =SUM(S45:S46,S36,S37:S41) -> 485372.0759 | U54: =S54-L54 -> 7734.390471 | V54: =IF((L54)=0,"",(U54/L54)) -> 0.01619300718 | Z54: =SUM(Z45:Z46,Z36,Z37:Z41) -> 487875.593 | AB54: Total Bill on RPP (before Taxes) | AF54: =Z54-S54 -> 2503.517068 | AG54: =IF((S54)=0,"",(AF54/S54)) -> 0.005157933867 | AK54: =SUM(AK45:AK46,AK36,AK37:AK41) -> 489406.0815 | AM54: =AK54-Z54 -> 1530.488532 | AN54: =IF((Z54)=0,"",(AM54/Z54)) -> 0.003137046726 | AR54: =SUM(AR45:AR46,AR36,AR37:AR41) -> 490112.8959 | AT54: =AR54-AK54 -> 706.8144 | AU54: =IF((AK54)=0,"",(AT54/AK54)) -> 0.001444228886 | AW54: 12475.21047 | AX54: =IFERROR(AW54/H54,1) -> 0.02611856403 | AY54: =IFERROR((AR54/H54)^(1/(2019-2014))-1,0) -> 0.005169978365
B55: HST | F55: 0.13 | H55: =H54*F55 -> 62092.89911 | J55: 0.13 | L55: =L54*J55 -> 62092.89911 | N55: 0 | O55: 0 | Q55: 0.13 | S55: =S54*Q55 -> 63098.36987 | U55: =S55-L55 -> 1005.470761 | V55: =IF((L55)=0,"",(U55/L55)) -> 0.01619300718 | X55: 0.13 | Z55: =Z54*X55 -> 63423.82709 | AB55: HST | AF55: =Z55-S55 -> 325.4572189 | AG55: =IF((S55)=0,"",(AF55/S55)) -> 0.005157933867 | AI55: 0.13 | AK55: =AK54*AI55 -> 63622.7906 | AM55: =AK55-Z55 -> 198.9635091 | AN55: =IF((Z55)=0,"",(AM55/Z55)) -> 0.003137046726 | AP55: 0.13 | AR55: =AR54*AP55 -> 63714.67647 | AT55: =AR55-AK55 -> 91.885872 | AU55: =IF((AK55)=0,"",(AT55/AK55)) -> 0.001444228886 | AW55: 1621.777361 | AX55: 0.02611856403 | AY55: 0.005169978365
B56: Total Bill (including HST) | H56: =H54+H55 -> 539730.5845 | L56: =L54+L55 -> 539730.5845 | N56: 0 | O56: 0 | S56: =S54+S55 -> 548470.4458 | U56: =S56-L56 -> 8739.861233 | V56: =IF((L56)=0,"",(U56/L56)) -> 0.01619300718 | Z56: =Z54+Z55 -> 551299.4201 | AB56: Total Bill (including HST) | AF56: =Z56-S56 -> 2828.974287 | AG56: =IF((S56)=0,"",(AF56/S56)) -> 0.005157933867 | AK56: =AK54+AK55 -> 553028.8721 | AM56: =AK56-Z56 -> 1729.452041 | AN56: =IF((Z56)=0,"",(AM56/Z56)) -> 0.003137046726 | AR56: =AR54+AR55 -> 553827.5724 | AT56: =AR56-AK56 -> 798.700272 | AU56: =IF((AK56)=0,"",(AT56/AK56)) -> 0.001444228886 | AW56: 14096.98783 | AX56: 0.02611856403 | AY56: 0.005169978365
B57: Ontario Clean Energy Benefit 1 | H57: =ROUND(-H56*10%,2) -> -53973.06 | L57: =ROUND(-L56*10%,2) -> -53973.06 | N57: 0 | O57: 0 | S57: =ROUND(-S56*10%,2) -> -54847.04 | U57: =S57-L57 -> -873.98 | V57: =IF((L57)=0,"",(U57/L57)) -> 0.01619289327 | Z57: =ROUND(-Z56*10%,2) -> -55129.94 | AB57: Ontario Clean Energy Benefit 1 | AF57: =Z57-S57 -> -282.9 | AG57: =IF((S57)=0,"",(AF57/S57)) -> 0.005157981178 | AK57: =ROUND(-AK56*10%,2) -> -55302.89 | AM57: =AK57-Z57 -> -172.95 | AN57: =IF((Z57)=0,"",(AM57/Z57)) -> 0.003137133833 | AR57: =ROUND(-AR56*10%,2) -> -55382.76 | AT57: =AR57-AK57 -> -79.87 | AU57: =IF((AK57)=0,"",(AT57/AK57)) -> 0.001444228322 | AW57: -1409.7 | AX57: 0.02611858583 | AY57: 0.005169982635
B58: Total Bill on RPP (including OCEB) | H58: =SUM(H56:H57) -> 485757.5245 | L58: =SUM(L56:L57) -> 485757.5245 | N58: 0 | O58: 0 | S58: =SUM(S56:S57) -> 493623.4058 | U58: =S58-L58 -> 7865.881233 | V58: =IF((L58)=0,"",(U58/L58)) -> 0.01619301984 | Z58: =SUM(Z56:Z57) -> 496169.4801 | AB58: Total Bill on RPP (including OCEB) | AF58: =Z58-S58 -> 2546.074287 | AG58: =IF((S58)=0,"",(AF58/S58)) -> 0.00515792861 | AK58: =SUM(AK56:AK57) -> 497725.9821 | AM58: =AK58-Z58 -> 1556.502041 | AN58: =IF((Z58)=0,"",(AM58/Z58)) -> 0.003137037048 | AR58: =SUM(AR56:AR57) -> 498444.8124 | AT58: =AR58-AK58 -> 718.830272 | AU58: =IF((AK58)=0,"",(AT58/AK58)) -> 0.001444228949 | AW58: 12687.28783 | AX58: 0.02611856161 | AY58: 0.005169977891
B61: Loss Factor (%) | F61: 0.0145 | J61: 0.0145 | Q61: 0.0145 | X61: 0.0145 | AB61: Loss Factor (%) | AI61: 0.0145 | AP61: 0.0145
B63: Distribution excluding Rate Riders | AB63: Distribution excluding Rate Riders
B64: Monthly Service Charge | D64: Monthly | F64: 8270.63 | G64: =G23 -> 1 | H64: =G64*F64 -> 8270.63 | J64: 8270.63 | K64: =K23 -> 1 | L64: =K64*J64 -> 8270.63 | N64: =L64-H64 -> 0 | O64: =IF((H64)=0,"",(N64/H64)) -> 0 | Q64: 8347.42 | R64: =R23 -> 1 | S64: =R64*Q64 -> 8347.42 | U64: =S64-L64 -> 76.79 | V64: =IF((L64)=0,"",(U64/L64)) -> 0.009284661507 | X64: 8527.98 | Y64: =Y23 -> 1 | Z64: =Y64*X64 -> 8527.98 | AB64: Monthly Service Charge | AD64: Monthly | AF64: =Z64-S64 -> 180.56 | AG64: =IF((S64)=0,"",(AF64/S64)) -> 0.02163063557 | AI64: 9023.5 | AJ64: =AJ23 -> 1 | AK64: =AJ64*AI64 -> 9023.5 | AM64: =AK64-Z64 -> 495.52 | AN64: =IF((Z64)=0,"",(AM64/Z64)) -> 0.05810520194 | AP64: 9320.91 | AQ64: =AQ23 -> 1 | AR64: =AQ64*AP64 -> 9320.91 | AT64: =AR64-AK64 -> 297.41 | AU64: =IF((AK64)=0,"",(AT64/AK64)) -> 0.03295949465 | AW64: =AR64-H64 -> 1050.28 | AX64: =IFERROR(AW64/H64,1) -> 0.1269891169 | AY64: =IFERROR((AR64/H64)^(1/(2019-2014))-1,0) -> 0.02419804953
B65: Distribution Volumetric Rate | D65: per kW | F65: 2.0531 | G65: =$D$20 -> 7828 | H65: =G65*F65 -> 16071.6668 | J65: 2.0531 | K65: =$D$20 -> 7828 | L65: =K65*J65 -> 16071.6668 | N65: =L65-H65 -> 0 | O65: =IF((H65)=0,"",(N65/H65)) -> 0 | Q65: 2.0666 | R65: =$D$20 -> 7828 | S65: =R65*Q65 -> 16177.3448 | U65: =S65-L65 -> 105.678 | V65: =IF((L65)=0,"",(U65/L65)) -> 0.006575422532 | X65: 2.0983 | Y65: =$D$20 -> 7828 | Z65: =Y65*X65 -> 16425.4924 | AB65: Distribution Volumetric Rate | AD65: per kW | AF65: =Z65-S65 -> 248.1476 | AG65: =IF((S65)=0,"",(AF65/S65)) -> 0.01533920449 | AI65: 2.1854 | AJ65: =$D$20 -> 7828 | AK65: =AJ65*AI65 -> 17107.3112 | AM65: =AK65-Z65 -> 681.8188 | AN65: =IF((Z65)=0,"",(AM65/Z65)) -> 0.04150979364 | AP65: 2.2377 | AQ65: =$D$20 -> 7828 | AR65: =AQ65*AP65 -> 17516.7156 | AT65: =AR65-AK65 -> 409.4044 | AU65: =IF((AK65)=0,"",(AT65/AK65)) -> 0.02393154571 | AW65: =AR65-H65 -> 1445.0488 | AX65: =IFERROR(AW65/H65,1) -> 0.08991281477 | AY65: =IFERROR((AR65/H65)^(1/(2019-2014))-1,0) -> 0.01736865226
B66: "Regular" Distribution Rates only | H66: =SUM(H64:H65) -> 24342.2968 | L66: =SUM(L64:L65) -> 24342.2968 | N66: =L66-H66 -> 0 | O66: =IF((H66)=0,"",(N66/H66)) -> 0 | S66: =SUM(S64:S65) -> 24524.7648 | U66: =S66-L66 -> 182.468 | V66: =IF((L66)=0,"",(U66/L66)) -> 0.007495923721 | Z66: =SUM(Z64:Z65) -> 24953.4724 | AB66: "Regular" Distribution Rates only | AF66: =Z66-S66 -> 428.7076 | AG66: =IF((S66)=0,"",(AF66/S66)) -> 0.01748059985 | AK66: =SUM(AK64:AK65) -> 26130.8112 | AM66: =AK66-Z66 -> 1177.3388 | AN66: =IF((Z66)=0,"",(AM66/Z66)) -> 0.04718136142 | AR66: =SUM(AR64:AR65) -> 26837.6256 | AT66: =AR66-AK66 -> 706.8144 | AU66: =IF((AK66)=0,"",(AT66/AK66)) -> 0.0270490799 | AW66: 2495.3288 | AX66: =IFERROR(AW66/H66,0) -> 0.1025099982 | AY66: 0.01970959848
A69: 1 Applicable to eligible customers only. Refer to the Ontario Clean Energy Benefit Act, 2010.
A71: Note that the "Charge $" columns provide breakdowns of the amounts that each bill component contributes to the total monthly bill at the referenced
A72: consumption level at existing and proposed rates.
A74: Applicants must provide bill impacts for residential at 800 kWh and GS<50kW at 2000 kWh. In addition, their filing must cover the range that is relevant
A75: to their service territory, class by class. A general guideline of consumption levels follows:
A77: Residential (kWh) - 100, 250, 500, 800, 1000, 1500, 2000
A78: GS<50kW (kWh) - 1000, 2000, 5000, 10000, 15000
A79: GS>50kW (kW) - 60, 100, 500, 1000
A80: Large User - range appropriate for utility
A81: Lighting Classes and USL - 150 kWh and 1 kW, range appropriate for utility.
B83: Note that cells with the highlighted color shown to the left indicate quantities that are loss adjusted. | AB83: Note that cells with the highlighted color shown to the left indicate quantities that are loss adjusted.
B90: Loss Factor Volume | D90: =F90 -> 53099 | F90: 53099 | J90: 53099 | Q90: 53099 | X90: 53099 | AB90: Loss Factor Volume | AD90: =AF90 -> 0 | AI90: 53099 | AP90: 53099
D93: =ROUND(F90,0) -> 53099 | AD93: =ROUND(AF90,0) -> 0
D94: =ROUND(J90,0) -> 53099 | AD94: =ROUND(AJ90,0) -> 0
B96: kWHs incl Loss Factor | D96: =ROUND(F96,0) -> 3715099 | F96: 3715099 | J96: 3715099 | Q96: 3715099 | X96: 3715099 | AB96: kWHs incl Loss Factor | AD96: =ROUND(AF96,0) -> 0 | AI96: 3715099 | AP96: 3715099

Sheet App.2-W_Bill Impacts StreetLite
A1: 1 | B1: File Number: | D1: =EBNUMBER ->  | AB1: File Number: | AD1: =EBNUMBER -> 
B2: Exhibit: | AB2: Exhibit:
B3: Tab: | AB3: Tab:
B4: Schedule: | AB4: Schedule:
B5: Page: | AB5: Page:
B7: Date: | AB7: Date:
B10: Appendix 2-W : Bill Impacts | K10: =B15&" (i of iii)" -> Street Lighting (i of iii) | V10: =B15&" (ii of iii)" -> Street Lighting (ii of iii) | AB10: Appendix 2-W : Bill Impacts | AK10: =B15&" (iii of iii)" -> Street Lighting (iii of iii)
B11: Bill Impacts - These will need to be completed once source of rates are determined
B14: Customer Class: | AB14: Customer Class:
B15: Street Lighting | AB15: Street Lighting
B16: TOU / non-TOU: | D16: TOU | AB16: TOU / non-TOU: | AD16: TOU
D18: Consumption | G18: 72 | H18: kWh | K18: 45.4 | L18: kWh | R18: 29.9 | S18: kWh | Y18: =$R18 -> 29.9 | Z18: kWh | AD18: Consumption | AJ18: =$R18 -> 29.9 | AK18: kWh | AQ18: =$R18 -> 29.9 | AR18: kWh
D19: (incl. transition to LED) | G19: 0.19 | H19: KW | K19: 0.12 | L19: KW | R19: 0.08 | S19: KW | Y19: =$R19 -> 0.08 | Z19: KW | AD19: =D19 -> (incl. transition to LED) | AJ19: =$R19 -> 0.08 | AK19: KW | AQ19: =$R19 -> 0.08 | AR19: KW
F21: 2014 Rates | J21: 2015 Rates | N21: 2015 v 2014 | Q21: 2016 Proposed Rates | U21: 2016 v 2015 | X21: 2017 Proposed Rates | AF21: 2017 v 2016 | AI21: 2018 Proposed Interim Rates | AM21: 2018 v 2017 | AP21: 2019 Proposed Interim Rates | AT21: 2019 v 2018 | AW21: 2019 v 2014
D22: Charge Unit | F22: Rate | G22: Volume | H22: Charge | J22: Rate | K22: Volume | L22: Charge | N22: $ Change | O22: % Change | Q22: Rate | R22: Volume | S22: Charge | U22: $ Change | V22: % Change | X22: Rate | Y22: Volume | Z22: Charge | AD22: Charge Unit | AF22: $ Change | AG22: % Change | AI22: Rate | AJ22: Volume | AK22: Charge | AM22: $ Change | AN22: % Change | AP22: Rate | AQ22: Volume | AR22: Charge | AT22: $ Change | AU22: % Change | AW22: $ Change | AX22: % Change | AY22: % CAGR
F23: ($) | H23: ($) | J23: ($) | L23: ($) | Q23: ($) | S23: ($) | X23: ($) | Z23: ($) | AI23: ($) | AK23: ($) | AP23: ($) | AR23: ($)
B24: Monthly Service Charge | D24: Monthly | F24: 1.17 | G24: 1 | H24: =G24*F24 -> 1.17 | J24: 1.17 | K24: 1 | L24: =K24*J24 -> 1.17 | N24: =L24-H24 -> 0 | O24: =IF((H24)=0,"",(N24/H24)) -> 0 | Q24: 1.8291 | R24: 1 | S24: =R24*Q24 -> 1.8291 | U24: =S24-L24 -> 0.6591 | V24: =IF((L24)=0,"",(U24/L24)) -> 0.5633333333 | X24: 1.9211 | Y24: 1 | Z24: =Y24*X24 -> 1.9211 | AB24: Monthly Service Charge | AD24: Monthly | AF24: =Z24-S24 -> 0.092 | AG24: =IF((S24)=0,"",(AF24/S24)) -> 0.05029796075 | AI24: 2.0467 | AJ24: 1 | AK24: =AJ24*AI24 -> 2.0467 | AM24: =AK24-Z24 -> 0.1256 | AN24: =IF((Z24)=0,"",(AM24/Z24)) -> 0.06537920983 | AP24: 2.1176 | AQ24: 1 | AR24: =AQ24*AP24 -> 2.1176 | AT24: =AR24-AK24 -> 0.0709 | AU24: =IF((AK24)=0,"",(AT24/AK24)) -> 0.03464112962 | AW24: =AR24-H24 -> 0.9476 | AX24: =IFERROR(AW24/H24,1) -> 0.8099145299
D25: per kW | K25: =K26 -> 0.12 | L25: =K25*J25 -> 0 | R25: =R26 -> 0.08 | S25: =R25*Q25 -> 0 | Y25: =Y26 -> 0.08 | Z25: =Y25*X25 -> 0 | AB25: =B25 -> 0 | AD25: per kW | AJ25: =AJ26 -> 0.08 | AK25: =AJ25*AI25 -> 0 | AQ25: =AQ26 -> 0.08 | AR25: =AQ25*AP25 -> 0
B26: Distribution Volumetric Rate | D26: per kW | F26: 18.1042 | G26: =G$19 -> 0.19 | H26: =G26*F26 -> 3.439798 | J26: 18.1042 | K26: =K$19 -> 0.12 | L26: =K26*J26 -> 2.172504 | N26: =L26-H26 -> -1.267294 | O26: =IF((H26)=0,"",(N26/H26)) -> -0.3684210526 | Q26: 28.259 | R26: =R$19 -> 0.08 | S26: =R26*Q26 -> 2.26072 | U26: =S26-L26 -> 0.088216 | V26: 0.04060567898 | X26: 29.6664 | Y26: =Y$19 -> 0.08 | Z26: =Y26*X26 -> 2.373312 | AB26: Distribution Volumetric Rate | AD26: per kW | AF26: =Z26-S26 -> 0.112592 | AG26: 0.04980360239 | AI26: 31.6243 | AJ26: =AJ$19 -> 0.08 | AK26: =AJ26*AI26 -> 2.529944 | AM26: =AK26-Z26 -> 0.156632 | AN26: 0.06599722245 | AP26: 32.6666 | AQ26: =AQ$19 -> 0.08 | AR26: =AQ26*AP26 -> 2.613328 | AT26: =AR26-AK26 -> 0.083384 | AU26: 0.03295883229 | AW26: =AR26-H26 -> -0.82647 | AX26: =IFERROR(AW26/H26,1) -> -0.2402670157
B27: ='App.2-W_(Resi)'!B28 -> 2015 Oct-Dec Recovery | D27: Monthly | J27: 0 | K27: 1 | L27: =K27*J27 -> 0 | N27: =L27-H27 -> 0 | O27: =IF((H27)=0,"",(N27/H27)) ->  | Q27: 0.16 | R27: 1 | S27: =R27*Q27 -> 0.16 | U27: =S27-L27 -> 0.16 | V27: =IF((L27)=0,"",(U27/L27)) ->  | X27: 0 | Y27: 1 | Z27: =Y27*X27 -> 0 | AB27: ='App.2-W_(Resi)'!AB28 -> 2015 Oct-Dec Recovery | AD27: Monthly | AF27: =Z27-S27 -> -0.16 | AG27: =IF((S27)=0,"",(AF27/S27)) -> -1 | AI27: 0 | AJ27: 1 | AK27: 0 | AM27: 0 | AP27: 0 | AQ27: 1 | AR27: 0 | AT27: 0
B28: Sub-Total A (excluding pass through) | H28: =SUM(H24:H27) -> 4.609798 | L28: =SUM(L24:L27) -> 3.342504 | N28: =L28-H28 -> -1.267294 | O28: -0.2749131307 | S28: =SUM(S24:S27) -> 4.24982 | U28: 0.907316 | V28: 0.2714479923 | Z28: =SUM(Z24:Z27) -> 4.294412 | AB28: Sub-Total A (excluding pass through) | AF28: 0.044592 | AG28: 0.01049267969 | AK28: =SUM(AK24:AK27) -> 4.576644 | AM28: 0.282232 | AN28: 0.06572075525 | AR28: =SUM(AR24:AR27) -> 4.730928 | AT28: 0.154284 | AU28: 0.03371116477 | AW28: 0.12113 | AX28: =IFERROR(AW28/H28,0) -> 0.02627663945 | AY28: =IFERROR((AR28/H28)^(1/(2019-2014))-1,0) -> 0.005200946108
B29: Deferral & Variance Accounts Disposition Rate Rider (2012) | D29: per kW | F29: 0.3779 | G29: =G$19 -> 0.19 | H29: =G29*F29 -> 0.071801 | J29: 0.3779 | K29: =K$19 -> 0.12 | L29: =K29*J29 -> 0.045348 | N29: =L29-H29 -> -0.026453 | O29: =IF((H29)=0,"",(N29/H29)) -> -0.3684210526 | Q29: 0 | R29: =R$19 -> 0.08 | S29: =R29*Q29 -> 0 | U29: -0.045348 | V29: -1 | X29: 0 | Y29: =Y$19 -> 0.08 | Z29: =Y29*X29 -> 0 | AB29: Deferral & Variance Accounts Disposition Rate Rider (2012) | AD29: per kW | AF29: 0 | AI29: 0 | AJ29: =AJ$19 -> 0.08 | AK29: =AJ29*AI29 -> 0 | AM29: 0 | AP29: 0 | AQ29: =AQ$19 -> 0.08 | AR29: =AQ29*AP29 -> 0 | AT29: 0 | AW29: -0.071801 | AX29: =IFERROR(AW29/H29,1) -> -1
B30: Deferral & Variance Accounts Disposition Rate Rider (2015) | D30: per kW | H30: =G30*F30 -> 0 | K30: =K$19 -> 0.12 | L30: =K30*J30 -> 0 | N30: =L30-H30 -> 0 | O30: =IF((H30)=0,"",(N30/H30)) ->  | Q30: 0.2248380505 | R30: =R$19 -> 0.08 | S30: =R30*Q30 -> 0.01798704404 | U30: 0.01798704404 | X30: 0.2248380505 | Y30: =Y$19 -> 0.08 | Z30: =Y30*X30 -> 0.01798704404 | AB30: Deferral & Variance Accounts Disposition Rate Rider (2015) | AD30: per kW | AF30: 0 | AG30: 0 | AI30: 0.2248380505 | AJ30: =AJ$19 -> 0.08 | AK30: =AJ30*AI30 -> 0.01798704404 | AM30: 0 | AN30: 0 | AP30: 0.2248380505 | AQ30: =AQ$19 -> 0.08 | AR30: =AQ30*AP30 -> 0.01798704404 | AT30: 0 | AU30: 0 | AW30: 0.01798704404 | AX30: 1
B31: Global Adjustment Disposition Rate Rider (2015) | D31: per kW | H31: 0 | K31: =K$19 -> 0.12 | L31: 0 | N31: 0 | Q31: 0.4821424903 | R31: =R$19 -> 0.08 | S31: 0.03857139923 | U31: 0.03857139923 | X31: 0.4821424903 | Y31: =Y$19 -> 0.08 | Z31: 0.03857139923 | AB31: Global Adjustment Disposition Rate Rider (2015) | AD31: per kW | AF31: 0 | AG31: 0 | AI31: 0.4821424903 | AJ31: =AJ$19 -> 0.08 | AK31: 0.03857139923 | AM31: 0 | AN31: 0 | AP31: 0.4821424903 | AQ31: =AQ$19 -> 0.08 | AR31: 0.03857139923 | AT31: 0 | AU31: 0 | AW31: 0.03857139923 | AX31: 1
B32: ='App.2-W_(Resi)'!B33 -> Deferral & Variance Accounts Disposition Rate Rider for Group 2 DVAs (2015) | D32: per kW | H32: =G32*F32 -> 0 | K32: =K$19 -> 0.12 | L32: =K32*J32 -> 0 | N32: =L32-H32 -> 0 | O32: =IF((H32)=0,"",(N32/H32)) ->  | Q32: 0.02421167003 | R32: =R$19 -> 0.08 | S32: =R32*Q32 -> 0.001936933603 | U32: =S32-L32 -> 0.001936933603 | V32: =IF((L32)=0,"",(U32/L32)) ->  | X32: 0.02421167003 | Y32: =Y$19 -> 0.08 | Z32: =Y32*X32 -> 0.001936933603 | AB32: =B32 -> Deferral & Variance Accounts Disposition Rate Rider for Group 2 DVAs (2015) | AD32: per kW | AF32: =Z32-S32 -> 0 | AG32: =IF((S32)=0,"",(AF32/S32)) -> 0 | AI32: 0.02421167003 | AJ32: =AJ$19 -> 0.08 | AK32: =AJ32*AI32 -> 0.001936933603 | AM32: =AK32-Z32 -> 0 | AN32: =IF((Z32)=0,"",(AM32/Z32)) -> 0 | AP32: 0.02421167003 | AQ32: =AQ$19 -> 0.08 | AR32: =AQ32*AP32 -> 0.001936933603 | AT32: =AR32-AK32 -> 0 | AU32: =IF((AK32)=0,"",(AT32/AK32)) -> 0 | AW32: =AR32-H32 -> 0.001936933603 | AX32: =IFERROR(AW32/H32,1) -> 1
B33: Line Losses on Cost of Power | D33: per kWh | F33: 0.09246 | G33: =G$18*(1+F62)-G$18 -> 3.096 | H33: 0.28625616 | J33: 0.09246 | K33: =K$18*(1+J62)-K$18 -> 1.9522 | L33: 0.180500412 | N33: -0.105755748 | O33: -0.3694444444 | Q33: 0.09246 | R33: =R$18*(1+Q62)-R$18 -> 1.45460008 | S33: 0.1344923234 | U33: -0.04600808863 | V33: -0.254891876 | X33: 0.11184 | Y33: =Y$18*(1+X62)-Y$18 -> 1.45460008 | Z33: 0.1626824729 | AB33: Line Losses on Cost of Power | AD33: per kWh | AF33: 0.02819014955 | AG33: 0.2096041531 | AI33: 0.09246 | AJ33: =AJ$18*(1+AI62)-AJ$18 -> 1.45460008 | AK33: 0.1344923234 | AM33: -0.02819014955 | AN33: -0.1732832618 | AP33: 0.09246 | AQ33: =AQ$18*(1+AP62)-AQ$18 -> 1.45460008 | AR33: 0.1344923234 | AT33: 0 | AU33: 0 | AW33: -0.1517638366 | AX33: -0.5301679329
B34: Sub-Total B - Distribution (includes Sub-Total A) | H34: =SUM(H29:H33)+H28 -> 4.96785516 | L34: =SUM(L29:L33)+L28 -> 3.568352412 | N34: -1.399502748 | O34: -0.2817116649 | S34: =SUM(S29:S33)+S28 -> 4.4428077 | U34: 0.8744552882 | V34: 0.2450585557 | Z34: =SUM(Z29:Z33)+Z28 -> 4.51558985 | AB34: Sub-Total B - Distribution (includes Sub-Total A) | AF34: 0.07278214955 | AG34: 0.01638201661 | AK34: =SUM(AK29:AK33)+AK28 -> 4.7696317 | AM34: 0.2540418505 | AN34: 0.05625884079 | AR34: =SUM(AR29:AR33)+AR28 -> 4.9239157 | AT34: 0.154284 | AU34: 0.03234715167 | AW34: -0.04393945976 | AX34: =IFERROR(AW34/H34,0) -> -0.008844754596 | AY34: =IFERROR((AR34/H34)^(1/(2019-2014))-1,0) -> -0.001775242713
B35: RTSR - Network | D35: per kW | F35: 1.6753 | G35: =G$19 -> 0.19 | H35: =G35*F35 -> 0.318307 | J35: 1.6753 | K35: =K$19 -> 0.12 | L35: =K35*J35 -> 0.201036 | N35: -0.117271 | O35: -0.3684210526 | Q35: 1.772390751 | R35: =R$19 -> 0.08 | S35: =R35*Q35 -> 0.1417912601 | U35: -0.05924473994 | V35: -0.2946971684 | X35: 1.6925 | Y35: =Y$19 -> 0.08 | Z35: =Y35*X35 -> 0.1354 | AB35: RTSR - Network | AD35: per kW | AF35: -0.006391260058 | AG35: -0.04507513408 | AI35: 1.772390751 | AJ35: =AJ$19 -> 0.08 | AK35: =AJ35*AI35 -> 0.1417912601 | AM35: 0.006391260058 | AN35: 0.04720280693 | AP35: 1.772390751 | AQ35: =AQ$19 -> 0.08 | AR35: =AQ35*AP35 -> 0.1417912601 | AT35: 0 | AU35: 0 | AW35: -0.1765157399 | AX35: -0.55454558
B36: RTSR - Line and Transformation Connection | D36: per kW | F36: 2.1434 | G36: =G35 -> 0.19 | H36: =G36*F36 -> 0.407246 | J36: 2.1434 | K36: =K$19 -> 0.12 | L36: =K36*J36 -> 0.257208 | N36: -0.150038 | O36: -0.3684210526 | Q36: 2.328997036 | R36: =R$19 -> 0.08 | S36: =R36*Q36 -> 0.1863197629 | U36: -0.0708882371 | V36: -0.2756066573 | X36: 2.316 | Y36: =Y$19 -> 0.08 | Z36: =Y36*X36 -> 0.18528 | AB36: RTSR - Line and Transformation Connection | AD36: per kW | AF36: -0.001039762901 | AG36: -0.005580529328 | AI36: 2.328997036 | AJ36: =AJ$19 -> 0.08 | AK36: =AJ36*AI36 -> 0.1863197629 | AM36: 0.001039762901 | AN36: 0.005611846402 | AP36: 2.328997036 | AQ36: =AQ$19 -> 0.08 | AR36: =AQ36*AP36 -> 0.1863197629 | AT36: 0 | AU36: 0 | AW36: -0.2209262371 | AX36: -0.5424884151
B37: Sub-Total C - Delivery (including Sub-Total B) | H37: =SUM(H34:H36) -> 5.69340816 | L37: =SUM(L34:L36) -> 4.026596412 | N37: -1.666811748 | O37: =IF((H37)=0,"",(N37/H37)) -> -0.2927616818 | S37: =SUM(S34:S36) -> 4.770918723 | U37: 0.7443223112 | V37: 0.1848514813 | Z37: =SUM(Z34:Z36) -> 4.83626985 | AB37: Sub-Total C - Delivery (including Sub-Total B) | AF37: 0.06535112659 | AG37: 0.01369780757 | AK37: =SUM(AK34:AK36) -> 5.097742723 | AM37: 0.2614728734 | AN37: 0.05406498842 | AR37: =SUM(AR34:AR36) -> 5.252026723 | AT37: 0.154284 | AU37: 0.03026516017 | AW37: -0.4413814368 | AX37: -0.07752499459 | AY37: =IFERROR((AR37/H37)^(1/(2019-2014))-1,0) -> -0.01600946371
B38: Wholesale Market Service Charge (WMSC) | D38: per kWh | F38: 0.0044 | G38: =G$18*(1+F62) -> 75.096 | H38: =G38*F38 -> 0.3304224 | J38: 0.0044 | K38: =K$18*(1+J62) -> 47.3522 | L38: =K38*J38 -> 0.20834968 | N38: -0.12207272 | O38: -0.3694444444 | Q38: 0.0036 | R38: =R$18*(1+Q62) -> 31.35460008 | S38: =R38*Q38 -> 0.1128765603 | U38: -0.09547311971 | V38: -0.4582350197 | X38: 0.0036 | Y38: =Y$18*(1+X62) -> 31.35460008 | Z38: =Y38*X38 -> 0.1128765603 | AB38: Wholesale Market Service Charge (WMSC) | AD38: per kWh | AF38: 0 | AG38: 0 | AI38: =X38 -> 0.0036 | AJ38: =AJ$18*(1+AI62) -> 31.35460008 | AK38: =AJ38*AI38 -> 0.1128765603 | AM38: 0 | AN38: 0 | AP38: =AI38 -> 0.0036 | AQ38: =AQ$18*(1+AP62) -> 31.35460008 | AR38: =AQ38*AP38 -> 0.1128765603 | AT38: 0 | AU38: 0 | AW38: -0.2175458397 | AX38: =IF((AN38)=0,"",(AW38/AN38)) -> 
B39: Rural and Remote Rate Protection (RRRP) | D39: per kWh | F39: 0.0013 | G39: =G38 -> 75.096 | H39: 0.0976248 | J39: 0.0013 | K39: =K38 -> 47.3522 | L39: 0.06155786 | N39: -0.03606694 | O39: -0.3694444444 | Q39: 0.0013 | R39: =R38 -> 31.35460008 | S39: 0.0407609801 | U39: -0.0207968799 | V39: -0.3378428018 | X39: 0.0021 | Y39: =Y38 -> 31.35460008 | Z39: 0.06584466017 | AB39: Rural and Remote Rate Protection (RRRP) | AD39: per kWh | AF39: 0.02508368006 | AG39: 0.6153846154 | AI39: =X39 -> 0.0021 | AJ39: =AJ38 -> 31.35460008 | AK39: 0.06584466017 | AM39: 0 | AN39: 0 | AP39: =AI39 -> 0.0021 | AQ39: =AQ38 -> 31.35460008 | AR39: 0.06584466017 | AT39: 0 | AU39: 0 | AW39: -0.03178013983
B40: ='App.2-W_Bill Impacts >5000 KW'!B39 -> Ontario Electricity Support Program (OESP) | D40: per kWh | Q40: 0.0011 | R40: =R39 -> 31.35460008 | S40: =R40*Q40 -> 0.03449006009 | U40: =S40-L40 -> 0.03449006009 | V40: =IF((L40)=0,"",(U40/L40)) ->  | X40: 0.0011 | Y40: =Y39 -> 31.35460008 | Z40: =Y40*X40 -> 0.03449006009 | AB40: =B40 -> Ontario Electricity Support Program (OESP) | AD40: per kWh | AF40: =Z40-S40 -> 0 | AG40: =IF((S40)=0,"",(AF40/S40)) -> 0 | AI40: 0.0011 | AJ40: =AJ39 -> 31.35460008 | AK40: =AJ40*AI40 -> 0.03449006009 | AM40: =AK40-Z40 -> 0 | AN40: =IF((Z40)=0,"",(AM40/Z40)) -> 0 | AP40: 0.0011 | AQ40: =AQ39 -> 31.35460008 | AR40: =AQ40*AP40 -> 0.03449006009 | AT40: =AR40-AK40 -> 0 | AU40: =IF((AK40)=0,"",(AT40/AK40)) -> 0 | AW40: =AR40-H40 -> 0.03449006009 | AX40: =IF((AN40)=0,"",(AW40/AN40)) -> 
B41: Standard Supply Service Charge | D41: Monthly | F41: 0.25 | G41: 1 | H41: 0.25 | J41: 0.25 | K41: 1 | L41: 0.25 | N41: 0 | O41: 0 | Q41: 0.25 | R41: 1 | S41: 0.25 | U41: 0 | V41: 0 | X41: 0.25 | Y41: 1 | Z41: 0.25 | AB41: Standard Supply Service Charge | AD41: Monthly | AF41: 0 | AG41: 0 | AI41: 0.25 | AJ41: 1 | AK41: 0.25 | AM41: 0 | AN41: 0 | AP41: 0.25 | AQ41: 1 | AR41: 0.25 | AT41: 0 | AU41: 0 | AW41: 0
B42: Debt Retirement Charge (DRC) | D42: per kWh | F42: 0.007 | G42: =$G$18 -> 72 | H42: 0.504 | J42: 0.007 | K42: =K$18 -> 45.4 | L42: 0.3178 | N42: -0.1862 | O42: -0.3694444444 | Q42: 0.007 | R42: =R$18 -> 29.9 | S42: 0.2093 | U42: -0.1085 | V42: -0.3414096916 | X42: 0.007 | Y42: =Y$18 -> 29.9 | Z42: 0.2093 | AB42: Debt Retirement Charge (DRC) | AD42: per kWh | AF42: 0 | AG42: 0 | AI42: 0.007 | AJ42: =AJ$18 -> 29.9 | AK42: 0.2093 | AM42: 0 | AN42: 0 | AP42: 0.007 | AQ42: =AQ$18 -> 29.9 | AR42: 0.2093 | AT42: 0 | AU42: 0 | AW42: -0.2947
B43: TOU - Off Peak | D43: per kWh | F43: 0.075 | G43: =0.64*$G$18 -> 46.08 | H43: 3.456 | J43: 0.075 | K43: =0.64*K$18 -> 29.056 | L43: 2.1792 | N43: -1.2768 | O43: -0.3694444444 | Q43: 0.087 | R43: =0.64*R$18 -> 19.136 | S43: 1.664832 | U43: -0.514368 | V43: -0.2360352423 | X43: 0.087 | Y43: =0.64*Y$18 -> 19.136 | Z43: 1.664832 | AB43: TOU - Off Peak | AD43: per kWh | AF43: 0 | AG43: 0 | AI43: 0.087 | AJ43: =0.64*AJ$18 -> 19.136 | AK43: 1.664832 | AM43: 0 | AN43: 0 | AP43: 0.087 | AQ43: =0.64*AQ$18 -> 19.136 | AR43: 1.664832 | AT43: 0 | AU43: 0 | AW43: -1.791168
B44: TOU - Mid Peak | D44: per kWh | F44: 0.112 | G44: =0.18*$G$18 -> 12.96 | H44: 1.45152 | J44: 0.112 | K44: =0.18*K$18 -> 8.172 | L44: 0.915264 | N44: -0.536256 | O44: -0.3694444444 | Q44: 0.132 | R44: =0.18*R$18 -> 5.382 | S44: 0.710424 | U44: -0.20484 | V44: -0.2238042794 | X44: 0.132 | Y44: =0.18*Y$18 -> 5.382 | Z44: 0.710424 | AB44: TOU - Mid Peak | AD44: per kWh | AF44: 0 | AG44: 0 | AI44: 0.132 | AJ44: =0.18*AJ$18 -> 5.382 | AK44: 0.710424 | AM44: 0 | AN44: 0 | AP44: 0.132 | AQ44: =0.18*AQ$18 -> 5.382 | AR44: 0.710424 | AT44: 0 | AU44: 0 | AW44: -0.741096
B45: TOU - On Peak | D45: per kWh | F45: 0.135 | G45: =0.18*$G$18 -> 12.96 | H45: 1.7496 | J45: 0.135 | K45: =0.18*K$18 -> 8.172 | L45: 1.10322 | N45: -0.64638 | O45: -0.3694444444 | Q45: 0.18 | R45: =0.18*R$18 -> 5.382 | S45: 0.96876 | U45: -0.13446 | V45: -0.1218795888 | X45: 0.18 | Y45: =0.18*Y$18 -> 5.382 | Z45: 0.96876 | AB45: TOU - On Peak | AD45: per kWh | AF45: 0 | AG45: 0 | AI45: 0.18 | AJ45: =0.18*AJ$18 -> 5.382 | AK45: 0.96876 | AM45: 0 | AN45: 0 | AP45: 0.18 | AQ45: =0.18*AQ$18 -> 5.382 | AR45: 0.96876 | AT45: 0 | AU45: 0 | AW45: -0.78084
B46: Energy - RPP - Tier 1 | D46: per kWh | F46: 0.083 | G46: =IF(AND($A$1=1, G18>=600), 600, IF(AND($A$1=1, AND(G18<600, G18>=0)), G18, IF(AND($A$1=2, G18>=1000), 1000, IF(AND($A$1=2, AND(G18<1000, G18>=0)), G18)))) -> 72 | H46: =G46*F46 -> 5.976 | J46: 0.083 | K46: =$G46 -> 72 | L46: =K46*J46 -> 5.976 | N46: 0 | O46: 0 | Q46: 0.083 | R46: =$G46 -> 72 | S46: =R46*Q46 -> 5.976 | U46: 0 | V46: 0 | X46: 0.083 | Y46: =$G46 -> 72 | Z46: =Y46*X46 -> 5.976 | AB46: Energy - RPP - Tier 1 | AD46: per kWh | AF46: 0 | AG46: 0 | AI46: 0.083 | AJ46: =$G46 -> 72 | AK46: =AJ46*AI46 -> 5.976 | AM46: 0 | AN46: 0 | AP46: 0.083 | AQ46: =$G46 -> 72 | AR46: =AQ46*AP46 -> 5.976 | AT46: 0 | AU46: 0 | AW46: 0
B47: Energy - RPP - Tier 2 | D47: per kWh | F47: 0.097 | G47: =IF(AND($A$1=1, G18>=600), G18-600, IF(AND($A$1=1, AND(G18<600, G18>=0)), 0, IF(AND($A$1=2, G18>=1000), G18-1000, IF(AND($A$1=2, AND(G18<1000, G18>=0)), 0)))) -> 0 | H47: =G47*F47 -> 0 | J47: 0.097 | K47: 0 | L47: =K47*J47 -> 0 | N47: 0 | Q47: 0.097 | R47: 0 | S47: =R47*Q47 -> 0 | U47: 0 | X47: 0.097 | Y47: 0 | Z47: =Y47*X47 -> 0 | AB47: Energy - RPP - Tier 2 | AD47: per kWh | AF47: 0 | AI47: 0.097 | AJ47: 0 | AK47: =AJ47*AI47 -> 0 | AM47: 0 | AP47: 0.097 | AQ47: 0 | AR47: =AQ47*AP47 -> 0 | AT47: 0 | AW47: 0
B49: Total Bill on TOU (before Taxes) | H49: =SUM(H38:H45,H37) -> 13.53257536 | L49: =SUM(L38:L45,L37) -> 9.061987952 | N49: =L49-H49 -> -4.470587408 | O49: =IF((H49)=0,"",(N49/H49)) -> -0.3303574737 | S49: =SUM(S38:S45,S37) -> 8.762362324 | U49: =S49-L49 -> -0.2996256283 | V49: =IF((L49)=0,"",(U49/L49)) -> -0.03306400647 | Z49: =SUM(Z38:Z45,Z37) -> 8.85279713 | AB49: Total Bill on TOU (before Taxes) | AF49: =Z49-S49 -> 0.09043480665 | AG49: =IF((S49)=0,"",(AF49/S49)) -> 0.01032082483 | AK49: =SUM(AK38:AK45,AK37) -> 9.114270004 | AM49: =AK49-Z49 -> 0.2614728734 | AN49: =IF((Z49)=0,"",(AM49/Z49)) -> 0.02953562242 | AR49: =SUM(AR38:AR45,AR37) -> 9.268554004 | AT49: =AR49-AK49 -> 0.154284 | AU49: =IF((AK49)=0,"",(AT49/AK49)) -> 0.01692774078 | AW49: -4.264021356 | AX49: =IFERROR(AW49/H49,1) -> -0.3150931174 | AY49: =IFERROR((AR49/H49)^(1/(2019-2014))-1,0) -> -0.07290058702
B50: HST | F50: 0.13 | H50: =H49*F50 -> 1.759234797 | J50: 0.13 | L50: =L49*J50 -> 1.178058434 | N50: -0.581176363 | O50: -0.3303574737 | Q50: 0.13 | S50: =S49*Q50 -> 1.139107102 | U50: =S50-L50 -> -0.03895133168 | V50: =IF((L50)=0,"",(U50/L50)) -> -0.03306400647 | X50: 0.13 | Z50: =Z49*X50 -> 1.150863627 | AB50: HST | AF50: =Z50-S50 -> 0.01175652486 | AG50: =IF((S50)=0,"",(AF50/S50)) -> 0.01032082483 | AI50: 0.13 | AK50: =AK49*AI50 -> 1.1848551 | AM50: =AK50-Z50 -> 0.03399147354 | AN50: =IF((Z50)=0,"",(AM50/Z50)) -> 0.02953562242 | AP50: 0.13 | AR50: =AR49*AP50 -> 1.20491202 | AT50: =AR50-AK50 -> 0.02005692 | AU50: =IF((AK50)=0,"",(AT50/AK50)) -> 0.01692774078 | AW50: -0.5543227763 | AX50: -0.3150931174 | AY50: -0.07290058702
B51: Total Bill (including HST) | H51: =H49+H50 -> 15.29181016 | L51: =L49+L50 -> 10.24004639 | N51: -5.051763771 | O51: -0.3303574737 | S51: =S49+S50 -> 9.901469426 | U51: =S51-L51 -> -0.33857696 | V51: =IF((L51)=0,"",(U51/L51)) -> -0.03306400647 | Z51: =Z49+Z50 -> 10.00366076 | AB51: Total Bill (including HST) | AF51: =Z51-S51 -> 0.1021913315 | AG51: =IF((S51)=0,"",(AF51/S51)) -> 0.01032082483 | AK51: =AK49+AK50 -> 10.2991251 | AM51: =AK51-Z51 -> 0.295464347 | AN51: =IF((Z51)=0,"",(AM51/Z51)) -> 0.02953562242 | AR51: =AR49+AR50 -> 10.47346602 | AT51: =AR51-AK51 -> 0.17434092 | AU51: =IF((AK51)=0,"",(AT51/AK51)) -> 0.01692774078 | AW51: -4.818344133 | AX51: -0.3150931174 | AY51: -0.07290058702
B52: Ontario Clean Energy Benefit 1 | H52: =ROUND(-H51*10%,2) -> -1.53 | L52: =ROUND(-L51*10%,2) -> -1.02 | N52: 0.51 | O52: -0.3333333333 | U52: =S52-L52 -> 1.02 | V52: =IF((L52)=0,"",(U52/L52)) -> -1 | AB52: Ontario Clean Energy Benefit 1 | AF52: =Z52-S52 -> 0 | AG52: =IF((S52)=0,"",(AF52/S52)) ->  | AM52: =AK52-Z52 -> 0 | AN52: =IF((Z52)=0,"",(AM52/Z52)) ->  | AT52: =AR52-AK52 -> 0 | AU52: =IF((AK52)=0,"",(AT52/AK52)) ->  | AW52: 1.53 | AX52: -1 | AY52: -1
B53: Total Bill on TOU (including OCEB) | H53: =H51+H52 -> 13.76181016 | L53: =L51+L52 -> 9.220046386 | N53: -4.541763771 | O53: -0.3300266258 | S53: =S51+S52 -> 9.901469426 | U53: =S53-L53 -> 0.68142304 | V53: =IF((L53)=0,"",(U53/L53)) -> 0.07390668241 | Z53: =Z51+Z52 -> 10.00366076 | AB53: Total Bill on TOU (including OCEB) | AF53: =Z53-S53 -> 0.1021913315 | AG53: =IF((S53)=0,"",(AF53/S53)) -> 0.01032082483 | AK53: =AK51+AK52 -> 10.2991251 | AM53: =AK53-Z53 -> 0.295464347 | AN53: =IF((Z53)=0,"",(AM53/Z53)) -> 0.02953562242 | AR53: =AR51+AR52 -> 10.47346602 | AT53: =AR53-AK53 -> 0.17434092 | AU53: =IF((AK53)=0,"",(AT53/AK53)) -> 0.01692774078 | AW53: -3.288344133 | AX53: -0.238947064 | AY53: -0.05314609823
B55: Total Bill on RPP (before Taxes) | H55: =SUM(H46:H47,H37,H38:H42) -> 12.85145536 | L55: =SUM(L46:L47,L37,L38:L42) -> 10.84030395 | N55: =L55-H55 -> -2.011151408 | O55: =IF((H55)=0,"",(N55/H55)) -> -0.1564921133 | S55: =SUM(S46:S47,S37,S38:S42) -> 11.39434632 | U55: =S55-L55 -> 0.5540423717 | V55: =IF((L55)=0,"",(U55/L55)) -> 0.05110948679 | Z55: =SUM(Z46:Z47,Z37,Z38:Z42) -> 11.48478113 | AB55: Total Bill on RPP (before Taxes) | AF55: =Z55-S55 -> 0.09043480665 | AG55: =IF((S55)=0,"",(AF55/S55)) -> 0.007936813932 | AK55: =SUM(AK46:AK47,AK37,AK38:AK42) -> 11.746254 | AM55: =AK55-Z55 -> 0.2614728734 | AN55: =IF((Z55)=0,"",(AM55/Z55)) -> 0.02276690086 | AR55: =SUM(AR46:AR47,AR37,AR38:AR42) -> 11.900538 | AT55: =AR55-AK55 -> 0.154284 | AU55: =IF((AK55)=0,"",(AT55/AK55)) -> 0.01313474065 | AW55: -0.9509173563 | AX55: =IFERROR(AW55/H55,1) -> -0.07399297042 | AY55: =IFERROR((AR55/H55)^(1/(2019-2014))-1,0) -> -0.01525710344
B56: HST | F56: 0.13 | H56: =H55*F56 -> 1.670689197 | J56: 0.13 | L56: =L55*J56 -> 1.409239514 | N56: -0.261449683 | O56: -0.1564921133 | Q56: 0.13 | S56: =S55*Q56 -> 1.481265022 | U56: =S56-L56 -> 0.07202550832 | V56: =IF((L56)=0,"",(U56/L56)) -> 0.05110948679 | X56: 0.13 | Z56: =Z55*X56 -> 1.493021547 | AB56: HST | AF56: =Z56-S56 -> 0.01175652486 | AG56: =IF((S56)=0,"",(AF56/S56)) -> 0.007936813932 | AI56: 0.13 | AK56: =AK55*AI56 -> 1.52701302 | AM56: =AK56-Z56 -> 0.03399147354 | AN56: =IF((Z56)=0,"",(AM56/Z56)) -> 0.02276690086 | AP56: 0.13 | AR56: =AR55*AP56 -> 1.54706994 | AT56: =AR56-AK56 -> 0.02005692 | AU56: =IF((AK56)=0,"",(AT56/AK56)) -> 0.01313474065 | AW56: -0.1236192563 | AX56: -0.07399297042 | AY56: -0.01525710344
B57: Total Bill (including HST) | H57: =H55+H56 -> 14.52214456 | L57: =L55+L56 -> 12.24954347 | N57: -2.272601091 | O57: -0.1564921133 | S57: =S55+S56 -> 12.87561135 | U57: =S57-L57 -> 0.62606788 | V57: =IF((L57)=0,"",(U57/L57)) -> 0.05110948679 | Z57: =Z55+Z56 -> 12.97780268 | AB57: Total Bill (including HST) | AF57: =Z57-S57 -> 0.1021913315 | AG57: =IF((S57)=0,"",(AF57/S57)) -> 0.007936813932 | AK57: =AK55+AK56 -> 13.27326702 | AM57: =AK57-Z57 -> 0.295464347 | AN57: =IF((Z57)=0,"",(AM57/Z57)) -> 0.02276690086 | AR57: =AR55+AR56 -> 13.44760794 | AT57: =AR57-AK57 -> 0.17434092 | AU57: =IF((AK57)=0,"",(AT57/AK57)) -> 0.01313474065 | AW57: -1.074536613 | AX57: -0.07399297042 | AY57: -0.01525710344
B58: Ontario Clean Energy Benefit 1 | H58: =ROUND(-H57*10%,2) -> -1.45 | L58: =ROUND(-L57*10%,2) -> -1.22 | N58: 0.23 | O58: -0.1586206897 | S58: =ROUND(-S57*10%,2) -> -1.29 | U58: =S58-L58 -> -0.07 | V58: =IF((L58)=0,"",(U58/L58)) -> 0.05737704918 | Z58: =ROUND(-Z57*10%,2) -> -1.3 | AB58: Ontario Clean Energy Benefit 1 | AF58: =Z58-S58 -> -0.01 | AG58: =IF((S58)=0,"",(AF58/S58)) -> 0.007751937984 | AK58: =ROUND(-AK57*10%,2) -> -1.33 | AM58: =AK58-Z58 -> -0.03 | AN58: =IF((Z58)=0,"",(AM58/Z58)) -> 0.02307692308 | AR58: =ROUND(-AR57*10%,2) -> -1.34 | AT58: =AR58-AK58 -> -0.01 | AU58: =IF((AK58)=0,"",(AT58/AK58)) -> 0.007518796992 | AW58: 0.11 | AX58: -0.07586206897 | AY58: -0.01565495558
B59: Total Bill on RPP (including OCEB) | H59: =SUM(H57:H58) -> 13.07214456 | L59: =SUM(L57:L58) -> 11.02954347 | N59: -2.042601091 | O59: -0.1562560054 | S59: =SUM(S57:S58) -> 11.58561135 | U59: =S59-L59 -> 0.55606788 | V59: =IF((L59)=0,"",(U59/L59)) -> 0.05041621911 | Z59: =SUM(Z57:Z58) -> 11.67780268 | AB59: Total Bill on RPP (including OCEB) | AF59: =Z59-S59 -> 0.09219133151 | AG59: =IF((S59)=0,"",(AF59/S59)) -> 0.007957398946 | AK59: =SUM(AK57:AK58) -> 11.94326702 | AM59: =AK59-Z59 -> 0.265464347 | AN59: =IF((Z59)=0,"",(AM59/Z59)) -> 0.02273238847 | AR59: =SUM(AR57:AR58) -> 12.10760794 | AT59: =AR59-AK59 -> 0.16434092 | AU59: =IF((AK59)=0,"",(AT59/AK59)) -> 0.0137601311 | AW59: -0.9645366126 | AX59: -0.07378564461 | AY59: -0.01521301213
B62: Loss Factor (%) | F62: 0.043 | J62: 0.043 | Q62: 0.0486488321 | X62: 0.0486488321 | AB62: Loss Factor (%) | AI62: 0.0486488321 | AP62: 0.0486488321
B64: Distribution excluding Rate Riders | AB64: Distribution excluding Rate Riders
B65: Monthly Service Charge | D65: Monthly | F65: 1.17 | G65: =G24 -> 1 | H65: =G65*F65 -> 1.17 | J65: 1.17 | K65: =K24 -> 1 | L65: =K65*J65 -> 1.17 | N65: =L65-H65 -> 0 | O65: =IF((H65)=0,"",(N65/H65)) -> 0 | Q65: 1.8291 | R65: =R24 -> 1 | S65: =R65*Q65 -> 1.8291 | U65: =S65-L65 -> 0.6591 | V65: =IF((L65)=0,"",(U65/L65)) -> 0.5633333333 | X65: 1.9211 | Y65: =Y24 -> 1 | Z65: =Y65*X65 -> 1.9211 | AB65: Monthly Service Charge | AD65: Monthly | AF65: =Z65-S65 -> 0.092 | AG65: =IF((S65)=0,"",(AF65/S65)) -> 0.05029796075 | AI65: 2.0467 | AJ65: =AJ24 -> 1 | AK65: =AJ65*AI65 -> 2.0467 | AM65: =AK65-Z65 -> 0.1256 | AN65: =IF((Z65)=0,"",(AM65/Z65)) -> 0.06537920983 | AP65: 2.1176 | AQ65: =AQ24 -> 1 | AR65: =AQ65*AP65 -> 2.1176 | AT65: =AR65-AK65 -> 0.0709 | AU65: =IF((AK65)=0,"",(AT65/AK65)) -> 0.03464112962 | AW65: =AR65-H65 -> 0.9476 | AX65: =IFERROR(AW65/H65,1) -> 0.8099145299 | AY65: =IFERROR((AR65/H65)^(1/(2019-2014))-1,0) -> 0.1259824288
B66: Distribution Volumetric Rate | D66: per kW | F66: 18.1042 | G66: =$G$19 -> 0.19 | H66: =G66*F66 -> 3.439798 | J66: 18.1042 | K66: =K$19 -> 0.12 | L66: =K66*J66 -> 2.172504 | N66: =L66-H66 -> -1.267294 | O66: =IF((H66)=0,"",(N66/H66)) -> -0.3684210526 | Q66: 28.259 | R66: =R$19 -> 0.08 | S66: =R66*Q66 -> 2.26072 | U66: =S66-L66 -> 0.088216 | V66: =IF((L66)=0,"",(U66/L66)) -> 0.04060567898 | X66: 29.6664 | Y66: =Y$19 -> 0.08 | Z66: =Y66*X66 -> 2.373312 | AB66: Distribution Volumetric Rate | AD66: per kW | AF66: =Z66-S66 -> 0.112592 | AG66: =IF((S66)=0,"",(AF66/S66)) -> 0.04980360239 | AI66: 31.6243 | AJ66: =AJ$19 -> 0.08 | AK66: =AJ66*AI66 -> 2.529944 | AM66: =AK66-Z66 -> 0.156632 | AN66: =IF((Z66)=0,"",(AM66/Z66)) -> 0.06599722245 | AP66: 32.6666 | AQ66: =AQ$19 -> 0.08 | AR66: =AQ66*AP66 -> 2.613328 | AT66: =AR66-AK66 -> 0.083384 | AU66: =IF((AK66)=0,"",(AT66/AK66)) -> 0.03295883229 | AW66: =AR66-H66 -> -0.82647 | AX66: =IFERROR(AW66/H66,1) -> -0.2402670157 | AY66: =IFERROR((AR66/H66)^(1/(2019-2014))-1,0) -> -0.05347476639
B67: "Regular" Distribution Rates only | H67: =SUM(H65:H66) -> 4.609798 | L67: =SUM(L65:L66) -> 3.342504 | N67: =L67-H67 -> -1.267294 | O67: =IF((H67)=0,"",(N67/H67)) -> -0.2749131307 | S67: =SUM(S65:S66) -> 4.08982 | U67: =S67-L67 -> 0.747316 | V67: =IF((L67)=0,"",(U67/L67)) -> 0.2235796876 | Z67: =SUM(Z65:Z66) -> 4.294412 | AB67: "Regular" Distribution Rates only | AF67: =Z67-S67 -> 0.204592 | AG67: =IF((S67)=0,"",(AF67/S67)) -> 0.05002469546 | AK67: =SUM(AK65:AK66) -> 4.576644 | AM67: =AK67-Z67 -> 0.282232 | AN67: =IF((Z67)=0,"",(AM67/Z67)) -> 0.06572075525 | AR67: =SUM(AR65:AR66) -> 4.730928 | AT67: =AR67-AK67 -> 0.154284 | AU67: =IF((AK67)=0,"",(AT67/AK67)) -> 0.03371116477 | AW67: 0.12113 | AX67: =IFERROR(AW67/H67,0) -> 0.02627663945 | AY67: 0.005200946108
A70: 1 Applicable to eligible customers only. Refer to the Ontario Clean Energy Benefit Act, 2010.
A72: Note that the "Charge $" columns provide breakdowns of the amounts that each bill component contributes to the total monthly bill at the referenced
A73: consumption level at existing and proposed rates.
A75: Applicants must provide bill impacts for residential at 800 kWh and GS<50kW at 2000 kWh. In addition, their filing must cover the range that is relevant
A76: to their service territory, class by class. A general guideline of consumption levels follows:
A78: Residential (kWh) - 100, 250, 500, 800, 1000, 1500, 2000
A79: GS<50kW (kWh) - 1000, 2000, 5000, 10000, 15000
A80: GS>50kW (kW) - 60, 100, 500, 1000
A81: Large User - range appropriate for utility
A82: Lighting Classes and USL - 150 kWh and 1 kW, range appropriate for utility.
B84: Note that cells with the highlighted color shown to the left indicate quantities that are loss adjusted. | AB84: Note that cells with the highlighted color shown to the left indicate quantities that are loss adjusted.
B88: KW Volume | D88: =F88&"/"&J88&"/"&Q88 -> 0.19/0.12/0.08 | F88: 0.19 | J88: 0.12 | Q88: 0.08 | X88: 0.08 | AB88: KW Volume | AD88: =AF88&"/"&AJ88&"/"&AQ88 -> //
B90: Loss Factor Volume | F90: 3.096 | J90: 1.9522 | Q90: 1.45460008 | X90: 1.45460008 | AB90: Loss Factor Volume | AI90: 1.45460008 | AP90: 1.45460008
D91: =F91&"/"&J91&"/"&Q91 -> 3.1/2/1.5 | F91: 3.1 | J91: 2 | Q91: 1.5 | AD91: =AF91&"/"&AJ91&"/"&AQ91 -> //
B94: kWHs incl Loss Factor | D94: =ROUND(F94,0)&"/"&ROUND(J94,0)&"/"&ROUND(Q94,0) -> 75/47/31 | F94: 75.096 | J94: 47.3522 | Q94: 31.35460008 | X94: 31.35460008 | AB94: kWHs incl Loss Factor | AD94: =ROUND(AF94,0)&"/"&ROUND(AJ94,0)&"/"&ROUND(AQ94,0) -> 0/0/0 | AI94: 31.35460008 | AP94: 31.35460008
B96: TOU - Off Peak | D96: =ROUND(F96,0)&"/"&ROUND(J96,0)&"/"&ROUND(Q96,0) -> 46/29/19 | F96: 46.08 | J96: 29.056 | Q96: 19.136 | X96: 19.136 | AB96: TOU - Off Peak | AD96: =ROUND(AF96,0)&"/"&ROUND(AJ96,0)&"/"&ROUND(AQ96,0) -> 0/0/0
B97: TOU - Mid Peak | D97: 13/8/5 | F97: 12.96 | J97: 8.172 | Q97: 5.382 | X97: 5.382 | AB97: TOU - Mid Peak | AD97: 0/0/0
B98: TOU - On Peak | D98: 13/8/5 | F98: 12.96 | J98: 8.172 | Q98: 5.382 | X98: 5.382 | AB98: TOU - On Peak | AD98: 0/0/0

Sheet App.2-W_Bill Impacts Sentinels
A1: 1 | B1: File Number: | D1: =EBNUMBER ->  | AB1: File Number: | AD1: =EBNUMBER -> 
B2: Exhibit: | AB2: Exhibit:
B3: Tab: | AB3: Tab:
B4: Schedule: | AB4: Schedule:
B5: Page: | AB5: Page:
B7: Date: | AB7: Date:
B10: Appendix 2-W : Bill Impacts | K10: =B15&" (i of ii)" -> Sentinel Lighting (i of ii) | AB10: Appendix 2-W : Bill Impacts | AK10: =B15&" (ii of ii)" -> Sentinel Lighting (ii of ii)
B11: Bill Impacts - These will need to be completed once source of rates are determined
B14: Customer Class: | AB14: Customer Class:
B15: Sentinel Lighting | AB15: Sentinel Lighting
B16: TOU / non-TOU: | D16: TOU | AB16: TOU / non-TOU: | AD16: TOU
D18: Consumption | AD18: Consumption
B19: kWh | D19: 128 | AB19: kWh | AD19: 128
B20: KW | D20: 0.4 | F20: 2014 Rates | J20: 2015 Rates | N20: 2015 v 2014 | Q20: 2016 Proposed Rates | U20: 2016 v 2015 | X20: 2017 Proposed Rates | AB20: KW | AD20: 0.4 | AF20: 2017 v 2016 | AI20: 2018 Proposed Interim Rates | AM20: 2018 v 2017 | AP20: 2019 Proposed Interim Rates | AT20: 2019 v 2018 | AW20: 2019 v 2014
D21: Charge Unit | F21: Rate | G21: Volume | H21: Charge | J21: Rate | K21: Volume | L21: Charge | N21: $ Change | O21: % Change | Q21: Rate | R21: Volume | S21: Charge | U21: $ Change | V21: % Change | X21: Rate | Y21: Volume | Z21: Charge | AD21: Charge Unit | AF21: $ Change | AG21: % Change | AI21: Rate | AJ21: Volume | AK21: Charge | AM21: $ Change | AN21: % Change | AP21: Rate | AQ21: Volume | AR21: Charge | AT21: $ Change | AU21: % Change | AW21: $ Change | AX21: % Change | AY21: % CAGR
F22: ($) | H22: ($) | J22: ($) | L22: ($) | Q22: ($) | S22: ($) | X22: ($) | Z22: ($) | AI22: ($) | AK22: ($) | AP22: ($) | AR22: ($)
B23: Monthly Service Charge | D23: Monthly | F23: 4.34 | G23: 1 | H23: =G23*F23 -> 4.34 | J23: 4.34 | K23: 1 | L23: =K23*J23 -> 4.34 | N23: =L23-H23 -> 0 | O23: =IF((H23)=0,"",(N23/H23)) -> 0 | Q23: 5.2569 | R23: 1 | S23: =R23*Q23 -> 5.2569 | U23: =S23-L23 -> 0.9169 | V23: =IF((L23)=0,"",(U23/L23)) -> 0.2112672811 | X23: 5.3738 | Y23: 1 | Z23: =Y23*X23 -> 5.3738 | AB23: Monthly Service Charge | AD23: Monthly | AF23: =Z23-S23 -> 0.1169 | AG23: =IF((S23)=0,"",(AF23/S23)) -> 0.02223744032 | AI23: 5.682 | AJ23: 1 | AK23: =AJ23*AI23 -> 5.682 | AM23: =AK23-Z23 -> 0.3082 | AN23: =IF((Z23)=0,"",(AM23/Z23)) -> 0.05735233913 | AP23: 5.8672 | AQ23: 1 | AR23: =AQ23*AP23 -> 5.8672 | AT23: =AR23-AK23 -> 0.1852 | AU23: =IF((AK23)=0,"",(AT23/AK23)) -> 0.03259415699 | AW23: =AR23-H23 -> 1.5272 | AX23: =IFERROR(AW23/H23,1) -> 0.3518894009
D24: per kWh | K24: =K25 -> 0.4 | L24: =K24*J24 -> 0 | R24: =R25 -> 0.4 | S24: =R24*Q24 -> 0 | Y24: =Y25 -> 0.4 | Z24: =Y24*X24 -> 0 | AB24: =B24 -> 0 | AD24: per kWh | AJ24: =AJ25 -> 0.4 | AK24: =AJ24*AI24 -> 0 | AQ24: =AQ25 -> 0.4 | AR24: =AQ24*AP24 -> 0
B25: Distribution Volumetric Rate | D25: per kW | F25: 6.2114 | G25: =$D$20 -> 0.4 | H25: =G25*F25 -> 2.48456 | J25: 6.2114 | K25: =$G25 -> 0.4 | L25: =K25*J25 -> 2.48456 | N25: =L25-H25 -> 0 | O25: =IF((H25)=0,"",(N25/H25)) -> 0 | Q25: 7.5088 | R25: =$G25 -> 0.4 | S25: =R25*Q25 -> 3.00352 | U25: =S25-L25 -> 0.51896 | V25: 0.2088740059 | X25: 7.6712 | Y25: =$G25 -> 0.4 | Z25: =Y25*X25 -> 3.06848 | AB25: Distribution Volumetric Rate | AD25: per kW | AF25: =Z25-S25 -> 0.06496 | AG25: 0.02162795653 | AI25: 8.1169 | AJ25: =$G25 -> 0.4 | AK25: =AJ25*AI25 -> 3.24676 | AM25: =AK25-Z25 -> 0.17828 | AN25: 0.05810042757 | AP25: 8.3844 | AQ25: =$G25 -> 0.4 | AR25: =AQ25*AP25 -> 3.35376 | AT25: =AR25-AK25 -> 0.107 | AU25: 0.03295593145 | AW25: =AR25-H25 -> 0.8692 | AX25: =IFERROR(AW25/H25,1) -> 0.3498406156
B26: ='App.2-W_(Resi)'!B28 -> 2015 Oct-Dec Recovery | D26: Monthly | J26: 0 | K26: 1 | L26: =K26*J26 -> 0 | N26: =L26-H26 -> 0 | O26: =IF((H26)=0,"",(N26/H26)) ->  | Q26: 0.22 | R26: 1 | S26: =R26*Q26 -> 0.22 | U26: =S26-L26 -> 0.22 | V26: =IF((L26)=0,"",(U26/L26)) ->  | X26: 0 | Y26: 1 | Z26: 0 | AB26: ='App.2-W_(Resi)'!AB28 -> 2015 Oct-Dec Recovery | AD26: Monthly | AF26: -0.22 | AG26: -1 | AI26: 0 | AJ26: 1 | AK26: 0 | AM26: 0 | AP26: 0 | AQ26: 1 | AR26: 0 | AT26: 0
B27: Sub-Total A (excluding pass through) | H27: =SUM(H23:H26) -> 6.82456 | L27: =SUM(L23:L26) -> 6.82456 | N27: 0 | O27: 0 | S27: =SUM(S23:S26) -> 8.48042 | U27: 1.65586 | V27: 0.2426324921 | Z27: =SUM(Z23:Z26) -> 8.44228 | AB27: Sub-Total A (excluding pass through) | AF27: -0.03814 | AG27: -0.00449741876 | AK27: =SUM(AK23:AK26) -> 8.92876 | AM27: 0.48648 | AN27: 0.05762424369 | AR27: =SUM(AR23:AR26) -> 9.22096 | AT27: 0.2922 | AU27: 0.03272570883 | AW27: 2.3964 | AX27: =IFERROR(AW27/H27,0) -> 0.3511435169 | AY27: =IFERROR((AR27/H27)^(1/(2019-2014))-1,0) -> 0.06203858728
B28: Deferral & Variance Accounts Disposition Rate Rider (2012) | D28: per kW | F28: 0.2409 | G28: =$D$20 -> 0.4 | H28: =G28*F28 -> 0.09636 | J28: 0.2409 | K28: =$G28 -> 0.4 | L28: =K28*J28 -> 0.09636 | N28: =L28-H28 -> 0 | O28: =IF((H28)=0,"",(N28/H28)) -> 0 | Q28: 0 | R28: =$D$20 -> 0.4 | S28: =R28*Q28 -> 0 | U28: -0.09636 | V28: -1 | X28: 0 | Y28: =$D$20 -> 0.4 | Z28: =Y28*X28 -> 0 | AB28: Deferral & Variance Accounts Disposition Rate Rider (2012) | AD28: per kW | AF28: 0 | AI28: 0 | AJ28: =$D$20 -> 0.4 | AK28: =AJ28*AI28 -> 0 | AM28: 0 | AP28: 0 | AQ28: =$D$20 -> 0.4 | AR28: =AQ28*AP28 -> 0 | AT28: 0 | AW28: -0.09636 | AX28: =IFERROR(AW28/H28,1) -> -1
B29: Deferral & Variance Accounts Disposition Rate Rider (2015) | D29: per kW | H29: =G29*F29 -> 0 | K29: =K28 -> 0.4 | L29: =K29*J29 -> 0 | N29: =L29-H29 -> 0 | O29: =IF((H29)=0,"",(N29/H29)) ->  | Q29: 0.2145949719 | R29: =R28 -> 0.4 | S29: =R29*Q29 -> 0.08583798876 | U29: 0.08583798876 | X29: 0.2145949719 | Y29: =Y28 -> 0.4 | Z29: =Y29*X29 -> 0.08583798876 | AB29: Deferral & Variance Accounts Disposition Rate Rider (2015) | AD29: per kW | AF29: 0 | AG29: 0 | AI29: 0.2145949719 | AJ29: =AJ28 -> 0.4 | AK29: =AJ29*AI29 -> 0.08583798876 | AM29: 0 | AN29: 0 | AP29: 0.2145949719 | AQ29: =AQ28 -> 0.4 | AR29: =AQ29*AP29 -> 0.08583798876 | AT29: 0 | AU29: 0 | AW29: 0.08583798876 | AX29: 1
B30: Global Adjustment Disposition Rate Rider (2015) | D30: per kW | H30: 0 | K30: =K28 -> 0.4 | L30: 0 | N30: 0 | Q30: 0 | R30: =R29 -> 0.4 | S30: 0 | U30: 0 | X30: 0 | Y30: =Y29 -> 0.4 | Z30: 0 | AB30: Global Adjustment Disposition Rate Rider (2015) | AD30: per kW | AF30: 0 | AI30: 0 | AJ30: =AJ29 -> 0.4 | AK30: 0 | AM30: 0 | AP30: 0 | AQ30: =AQ29 -> 0.4 | AR30: 0 | AT30: 0 | AW30: 0 | AX30: 1
B31: ='App.2-W_(Resi)'!B33 -> Deferral & Variance Accounts Disposition Rate Rider for Group 2 DVAs (2015) | D31: per kW | H31: =G31*F31 -> 0 | K31: =K29 -> 0.4 | L31: =K31*J31 -> 0 | N31: =L31-H31 -> 0 | O31: =IF((H31)=0,"",(N31/H31)) ->  | Q31: 0.02302529451 | R31: =R30 -> 0.4 | S31: =R31*Q31 -> 0.009210117806 | U31: =S31-L31 -> 0.009210117806 | V31: =IF((L31)=0,"",(U31/L31)) ->  | X31: 0.02302529451 | Y31: =Y30 -> 0.4 | Z31: =Y31*X31 -> 0.009210117806 | AB31: =B31 -> Deferral & Variance Accounts Disposition Rate Rider for Group 2 DVAs (2015) | AD31: per kW | AF31: =Z31-S31 -> 0 | AG31: =IF((S31)=0,"",(AF31/S31)) -> 0 | AI31: 0.02302529451 | AJ31: =AJ30 -> 0.4 | AK31: =AJ31*AI31 -> 0.009210117806 | AM31: =AK31-Z31 -> 0 | AN31: =IF((Z31)=0,"",(AM31/Z31)) -> 0 | AP31: 0.02302529451 | AQ31: =AQ30 -> 0.4 | AR31: =AQ31*AP31 -> 0.009210117806 | AT31: =AR31-AK31 -> 0 | AU31: =IF((AK31)=0,"",(AT31/AK31)) -> 0 | AW31: =AR31-H31 -> 0.009210117806 | AX31: =IFERROR(AW31/H31,1) -> 1
B32: Line Losses on Cost of Power | D32: per kWh | F32: 0.09246 | G32: =$D$19*(1+F61)-$D$19 -> 5.504 | H32: 0.50889984 | J32: 0.09246 | K32: =$D$19*(1+J61)-$D$19 -> 5.504 | L32: 0.50889984 | N32: 0 | O32: 0 | Q32: 0.09246 | R32: =$D$19*(1+Q61)-$D$19 -> 6.227050509 | S32: 0.57575309 | U32: 0.06685325003 | V32: 0.1313681883 | X32: 0.11184 | Y32: =$D$19*(1+X61)-$D$19 -> 6.227050509 | Z32: 0.6964333289 | AB32: Line Losses on Cost of Power | AD32: per kWh | AF32: 0.1206802389 | AG32: 0.2096041531 | AI32: 0.09246 | AJ32: =$D$19*(1+AI61)-$D$19 -> 6.227050509 | AK32: 0.57575309 | AM32: -0.1206802389 | AN32: -0.1732832618 | AP32: 0.09246 | AQ32: =$D$19*(1+AP61)-$D$19 -> 6.227050509 | AR32: 0.57575309 | AT32: 0 | AU32: 0 | AW32: 0.06685325003 | AX32: 0.1313681883
B33: Sub-Total B - Distribution (includes Sub-Total A) | H33: =SUM(H28:H32)+H27 -> 7.42981984 | L33: =SUM(L28:L32)+L27 -> 7.42981984 | N33: 0 | O33: 0 | S33: =SUM(S28:S32)+S27 -> 9.151221197 | U33: 1.721401357 | V33: 0.2316881693 | Z33: =SUM(Z28:Z32)+Z27 -> 9.233761435 | AB33: Sub-Total B - Distribution (includes Sub-Total A) | AF33: 0.08254023886 | AG33: 0.009019587341 | AK33: =SUM(AK28:AK32)+AK27 -> 9.599561197 | AM33: 0.3657997611 | AN33: 0.03961546589 | AR33: =SUM(AR28:AR32)+AR27 -> 9.891761197 | AT33: 0.2922 | AU33: 0.03043889132 | AW33: 2.461941357 | AX33: =IFERROR(AW33/H33,0) -> 0.3313594959 | AY33: =IFERROR((AR33/H33)^(1/(2019-2014))-1,0) -> 0.05891004482
B34: RTSR - Network | D34: per kW | F34: 1.7042 | G34: =$D$20 -> 0.4 | H34: =G34*F34 -> 0.68168 | J34: 1.7042 | K34: =$G34 -> 0.4 | L34: =K34*J34 -> 0.68168 | N34: 0 | O34: 0 | Q34: 1.802965628 | R34: =$G34 -> 0.4 | S34: =R34*Q34 -> 0.7211862514 | U34: 0.03950625139 | V34: 0.05795424744 | X34: 1.7217 | Y34: =$G34 -> 0.4 | Z34: =Y34*X34 -> 0.68868 | AB34: RTSR - Network | AD34: per kW | AF34: -0.03250625139 | AG34: -0.04507330988 | AI34: 1.802965628 | AJ34: =$G34 -> 0.4 | AK34: =AJ34*AI34 -> 0.7211862514 | AM34: 0.03250625139 | AN34: 0.04720080646 | AP34: 1.802965628 | AQ34: =$G34 -> 0.4 | AR34: =AQ34*AP34 -> 0.7211862514 | AT34: 0 | AU34: 0 | AW34: 0.03950625139 | AX34: 0.05795424744
B35: RTSR - Line and Transformation Connection | D35: per kW | F35: 2.1803 | G35: =G34 -> 0.4 | H35: =G35*F35 -> 0.87212 | J35: 2.1803 | K35: =$G35 -> 0.4 | L35: =K35*J35 -> 0.87212 | N35: 0 | O35: 0 | Q35: 2.369092208 | R35: =$G35 -> 0.4 | S35: =R35*Q35 -> 0.9476368831 | U35: 0.07551688311 | V35: 0.08659001412 | X35: 2.3559 | Y35: =$G35 -> 0.4 | Z35: =Y35*X35 -> 0.94236 | AB35: RTSR - Line and Transformation Connection | AD35: per kW | AF35: -0.005276883115 | AG35: -0.005568465315 | AI35: 2.369092208 | AJ35: =$G35 -> 0.4 | AK35: =AJ35*AI35 -> 0.9476368831 | AM35: 0.005276883115 | AN35: 0.005599646754 | AP35: 2.369092208 | AQ35: =$G35 -> 0.4 | AR35: =AQ35*AP35 -> 0.9476368831 | AT35: 0 | AU35: 0 | AW35: 0.07551688311 | AX35: 0.08659001412
B36: Sub-Total C - Delivery (including Sub-Total B) | H36: =SUM(H33:H35) -> 8.98361984 | L36: =SUM(L33:L35) -> 8.98361984 | N36: 0 | O36: =IF((H36)=0,"",(N36/H36)) -> 0 | S36: =SUM(S33:S35) -> 10.82004433 | U36: 1.836424491 | V36: 0.2044192123 | Z36: =SUM(Z33:Z35) -> 10.86480144 | AB36: Sub-Total C - Delivery (including Sub-Total B) | AF36: 0.04475710435 | AG36: 0.004136499166 | AK36: =SUM(AK33:AK35) -> 11.26838433 | AM36: 0.4035828957 | AN36: 0.03714590626 | AR36: =SUM(AR33:AR35) -> 11.56058433 | AT36: 0.2922 | AU36: 0.02593095793 | AW36: 2.576964491 | AX36: 0.2868514627 | AY36: =IFERROR((AR36/H36)^(1/(2019-2014))-1,0) -> 0.05173344367
B37: Wholesale Market Service Charge (WMSC) | D37: per kWh | F37: 0.0044 | G37: =$D$19*(1+F61) -> 133.504 | H37: =G37*F37 -> 0.5874176 | J37: 0.0044 | K37: =$D$19*(1+J61) -> 133.504 | L37: =K37*J37 -> 0.5874176 | N37: 0 | O37: 0 | Q37: 0.0036 | R37: =$D$19*(1+Q61) -> 134.2270505 | S37: =R37*Q37 -> 0.4832173818 | U37: -0.1042002182 | V37: -0.1773869529 | X37: 0.0036 | Y37: =$D$19*(1+X61) -> 134.2270505 | Z37: =Y37*X37 -> 0.4832173818 | AB37: Wholesale Market Service Charge (WMSC) | AD37: per kWh | AF37: 0 | AG37: 0 | AI37: =X37 -> 0.0036 | AJ37: =$D$19*(1+AI61) -> 134.2270505 | AK37: =AJ37*AI37 -> 0.4832173818 | AM37: 0 | AN37: 0 | AP37: =AI37 -> 0.0036 | AQ37: =$D$19*(1+AP61) -> 134.2270505 | AR37: =AQ37*AP37 -> 0.4832173818 | AT37: 0 | AU37: 0 | AW37: -0.1042002182 | AX37: =IF((AN37)=0,"",(AW37/AN37)) -> 
B38: Rural and Remote Rate Protection (RRRP) | D38: per kWh | F38: 0.0013 | G38: =G37 -> 133.504 | H38: 0.1735552 | J38: 0.0013 | K38: =K37 -> 133.504 | L38: 0.1735552 | N38: 0 | O38: 0 | Q38: 0.0013 | R38: =R37 -> 134.2270505 | S38: 0.1744951657 | U38: 0.0009399656612 | V38: 0.005415946403 | X38: 0.0021 | Y38: =Y37 -> 134.2270505 | Z38: 0.2818768061 | AB38: Rural and Remote Rate Protection (RRRP) | AD38: per kWh | AF38: 0.1073816404 | AG38: 0.6153846154 | AI38: =X38 -> 0.0021 | AJ38: =AJ37 -> 134.2270505 | AK38: 0.2818768061 | AM38: 0 | AN38: 0 | AP38: =AI38 -> 0.0021 | AQ38: =AQ37 -> 134.2270505 | AR38: 0.2818768061 | AT38: 0 | AU38: 0 | AW38: 0.1083216061
B39: ='App.2-W_Bill Impacts StreetLite'!B40 -> Ontario Electricity Support Program (OESP) | D39: per kWh | Q39: 0.0011 | R39: =R38 -> 134.2270505 | S39: =R39*Q39 -> 0.1476497556 | U39: =S39-L39 -> 0.1476497556 | V39: =IF((L39)=0,"",(U39/L39)) ->  | X39: 0.0011 | Y39: =Y38 -> 134.2270505 | Z39: =Y39*X39 -> 0.1476497556 | AB39: =B39 -> Ontario Electricity Support Program (OESP) | AD39: per kWh | AF39: =Z39-S39 -> 0 | AG39: =IF((S39)=0,"",(AF39/S39)) -> 0 | AI39: 0.0011 | AJ39: =AJ38 -> 134.2270505 | AK39: =AJ39*AI39 -> 0.1476497556 | AM39: =AK39-Z39 -> 0 | AN39: =IF((Z39)=0,"",(AM39/Z39)) -> 0 | AP39: 0.0011 | AQ39: =AQ38 -> 134.2270505 | AR39: =AQ39*AP39 -> 0.1476497556 | AT39: =AR39-AK39 -> 0 | AU39: =IF((AK39)=0,"",(AT39/AK39)) -> 0 | AW39: =AR39-H39 -> 0.1476497556 | AX39: =IF((AN39)=0,"",(AW39/AN39)) -> 
B40: Standard Supply Service Charge | D40: Monthly | F40: 0.25 | G40: 1 | H40: 0.25 | J40: 0.25 | K40: =$G40 -> 1 | L40: 0.25 | N40: 0 | O40: 0 | Q40: 0.25 | R40: =$G40 -> 1 | S40: 0.25 | U40: 0 | V40: 0 | X40: 0.25 | Y40: =$G40 -> 1 | Z40: 0.25 | AB40: Standard Supply Service Charge | AD40: Monthly | AF40: 0 | AG40: 0 | AI40: 0.25 | AJ40: =$G40 -> 1 | AK40: 0.25 | AM40: 0 | AN40: 0 | AP40: 0.25 | AQ40: =$G40 -> 1 | AR40: 0.25 | AT40: 0 | AU40: 0 | AW40: 0
B41: Debt Retirement Charge (DRC) | D41: per kWh | F41: 0.007 | G41: =$D$19 -> 128 | H41: 0.896 | J41: 0.007 | K41: =$G41 -> 128 | L41: 0.896 | N41: 0 | O41: 0 | Q41: 0.007 | R41: =$G41 -> 128 | S41: 0.896 | U41: 0 | V41: 0 | X41: 0.007 | Y41: =$G41 -> 128 | Z41: 0.896 | AB41: Debt Retirement Charge (DRC) | AD41: per kWh | AF41: 0 | AG41: 0 | AI41: 0.007 | AJ41: =$G41 -> 128 | AK41: 0.896 | AM41: 0 | AN41: 0 | AP41: 0.007 | AQ41: =$G41 -> 128 | AR41: 0.896 | AT41: 0 | AU41: 0 | AW41: 0
B42: TOU - Off Peak | D42: per kWh | F42: 0.075 | G42: =0.64*$D$19 -> 81.92 | H42: 6.144 | J42: 0.075 | K42: 81.92 | L42: 6.144 | N42: 0 | O42: 0 | Q42: 0.087 | R42: 81.92 | S42: 7.12704 | U42: 0.98304 | V42: 0.16 | X42: 0.087 | Y42: 81.92 | Z42: 7.12704 | AB42: TOU - Off Peak | AD42: per kWh | AF42: 0 | AG42: 0 | AI42: 0.087 | AJ42: 81.92 | AK42: 7.12704 | AM42: 0 | AN42: 0 | AP42: 0.087 | AQ42: 81.92 | AR42: 7.12704 | AT42: 0 | AU42: 0 | AW42: 0.98304
B43: TOU - Mid Peak | D43: per kWh | F43: 0.112 | G43: =0.18*$D$19 -> 23.04 | H43: 2.58048 | J43: 0.112 | K43: 23.04 | L43: 2.58048 | N43: 0 | O43: 0 | Q43: 0.132 | R43: 23.04 | S43: 3.04128 | U43: 0.4608 | V43: 0.1785714286 | X43: 0.132 | Y43: 23.04 | Z43: 3.04128 | AB43: TOU - Mid Peak | AD43: per kWh | AF43: 0 | AG43: 0 | AI43: 0.132 | AJ43: 23.04 | AK43: 3.04128 | AM43: 0 | AN43: 0 | AP43: 0.132 | AQ43: 23.04 | AR43: 3.04128 | AT43: 0 | AU43: 0 | AW43: 0.4608
B44: TOU - On Peak | D44: per kWh | F44: 0.135 | G44: =0.18*$D$19 -> 23.04 | H44: 3.1104 | J44: 0.135 | K44: 23.04 | L44: 3.1104 | N44: 0 | O44: 0 | Q44: 0.18 | R44: 23.04 | S44: 4.1472 | U44: 1.0368 | V44: 0.3333333333 | X44: 0.18 | Y44: 23.04 | Z44: 4.1472 | AB44: TOU - On Peak | AD44: per kWh | AF44: 0 | AG44: 0 | AI44: 0.18 | AJ44: 23.04 | AK44: 4.1472 | AM44: 0 | AN44: 0 | AP44: 0.18 | AQ44: 23.04 | AR44: 4.1472 | AT44: 0 | AU44: 0 | AW44: 1.0368
B45: Energy - RPP - Tier 1 | D45: per kWh | F45: 0.083 | G45: =IF(AND($A$1=1, D19>=600), 600, IF(AND($A$1=1, AND(D19<600, D19>=0)), D19, IF(AND($A$1=2, D19>=1000), 1000, IF(AND($A$1=2, AND(D19<1000, D19>=0)), D19)))) -> 128 | H45: =G45*F45 -> 10.624 | J45: 0.083 | K45: 128 | L45: =K45*J45 -> 10.624 | N45: 0 | O45: 0 | Q45: 0.083 | R45: 128 | S45: =R45*Q45 -> 10.624 | U45: 0 | V45: 0 | X45: 0.083 | Y45: 128 | Z45: =Y45*X45 -> 10.624 | AB45: Energy - RPP - Tier 1 | AD45: per kWh | AF45: 0 | AG45: 0 | AI45: 0.083 | AJ45: 128 | AK45: =AJ45*AI45 -> 10.624 | AM45: 0 | AN45: 0 | AP45: 0.083 | AQ45: 128 | AR45: =AQ45*AP45 -> 10.624 | AT45: 0 | AU45: 0 | AW45: 0
B46: Energy - RPP - Tier 2 | D46: per kWh | F46: 0.097 | G46: =IF(AND($A$1=1, D19>=600), D19-600, IF(AND($A$1=1, AND(D19<600, D19>=0)), 0, IF(AND($A$1=2, D19>=1000), D19-1000, IF(AND($A$1=2, AND(D19<1000, D19>=0)), 0)))) -> 0 | H46: =G46*F46 -> 0 | J46: 0.097 | K46: 0 | L46: =K46*J46 -> 0 | N46: 0 | Q46: 0.097 | R46: 0 | S46: =R46*Q46 -> 0 | U46: 0 | X46: 0.097 | Y46: 0 | Z46: =Y46*X46 -> 0 | AB46: Energy - RPP - Tier 2 | AD46: per kWh | AF46: 0 | AI46: 0.097 | AJ46: 0 | AK46: =AJ46*AI46 -> 0 | AM46: 0 | AP46: 0.097 | AQ46: 0 | AR46: =AQ46*AP46 -> 0 | AT46: 0 | AW46: 0
B48: Total Bill on TOU (before Taxes) | H48: =SUM(H37:H44,H36) -> 22.72547264 | L48: =SUM(L37:L44,L36) -> 22.72547264 | N48: =L48-H48 -> 0 | O48: =IF((H48)=0,"",(N48/H48)) -> 0 | S48: =SUM(S37:S44,S36) -> 27.08692663 | U48: =S48-L48 -> 4.361453994 | V48: =IF((L48)=0,"",(U48/L48)) -> 0.1919191765 | Z48: =SUM(Z37:Z44,Z36) -> 27.23906538 | AB48: Total Bill on TOU (before Taxes) | AF48: =Z48-S48 -> 0.1521387448 | AG48: =IF((S48)=0,"",(AF48/S48)) -> 0.005616685378 | AK48: =SUM(AK37:AK44,AK36) -> 27.64264827 | AM48: =AK48-Z48 -> 0.4035828957 | AN48: =IF((Z48)=0,"",(AM48/Z48)) -> 0.01481632685 | AR48: =SUM(AR37:AR44,AR36) -> 27.93484827 | AT48: =AR48-AK48 -> 0.2922 | AU48: =IF((AK48)=0,"",(AT48/AK48)) -> 0.01057062251 | AW48: 5.209375635 | AX48: =IFERROR(AW48/H48,1) -> 0.2292306839 | AY48: =IFERROR((AR48/H48)^(1/(2019-2014))-1,0) -> 0.04214147085
B49: HST | F49: 0.13 | H49: =H48*F49 -> 2.954311443 | J49: 0.13 | L49: =L48*J49 -> 2.954311443 | N49: 0 | O49: 0 | Q49: 0.13 | S49: =S48*Q49 -> 3.521300462 | U49: =S49-L49 -> 0.5669890192 | V49: =IF((L49)=0,"",(U49/L49)) -> 0.1919191765 | X49: 0.13 | Z49: =Z48*X49 -> 3.541078499 | AB49: HST | AF49: =Z49-S49 -> 0.01977803682 | AG49: =IF((S49)=0,"",(AF49/S49)) -> 0.005616685378 | AI49: 0.13 | AK49: =AK48*AI49 -> 3.593544276 | AM49: =AK49-Z49 -> 0.05246577643 | AN49: =IF((Z49)=0,"",(AM49/Z49)) -> 0.01481632685 | AP49: 0.13 | AR49: =AR48*AP49 -> 3.631530276 | AT49: =AR49-AK49 -> 0.037986 | AU49: =IF((AK49)=0,"",(AT49/AK49)) -> 0.01057062251 | AW49: 0.6772188325 | AX49: 0.2292306839 | AY49: 0.04214147085
B50: Total Bill (including HST) | H50: =H48+H49 -> 25.67978408 | L50: =L48+L49 -> 25.67978408 | N50: 0 | O50: 0 | S50: =S48+S49 -> 30.6082271 | U50: =S50-L50 -> 4.928443013 | V50: =IF((L50)=0,"",(U50/L50)) -> 0.1919191765 | Z50: =Z48+Z49 -> 30.78014388 | AB50: Total Bill (including HST) | AF50: =Z50-S50 -> 0.1719167816 | AG50: =IF((S50)=0,"",(AF50/S50)) -> 0.005616685378 | AK50: =AK48+AK49 -> 31.23619255 | AM50: =AK50-Z50 -> 0.4560486721 | AN50: =IF((Z50)=0,"",(AM50/Z50)) -> 0.01481632685 | AR50: =AR48+AR49 -> 31.56637855 | AT50: =AR50-AK50 -> 0.330186 | AU50: =IF((AK50)=0,"",(AT50/AK50)) -> 0.01057062251 | AW50: 5.886594467 | AX50: 0.2292306839 | AY50: 0.04214147085
B51: Ontario Clean Energy Benefit 1 | H51: =ROUND(-H50*10%,2) -> -2.57 | L51: =ROUND(-L50*10%,2) -> -2.57 | N51: 0 | O51: 0 | U51: =S51-L51 -> 2.57 | V51: =IF((L51)=0,"",(U51/L51)) -> -1 | AB51: Ontario Clean Energy Benefit 1 | AF51: =Z51-S51 -> 0 | AG51: =IF((S51)=0,"",(AF51/S51)) ->  | AM51: =AK51-Z51 -> 0 | AN51: =IF((Z51)=0,"",(AM51/Z51)) ->  | AT51: =AR51-AK51 -> 0 | AU51: =IF((AK51)=0,"",(AT51/AK51)) ->  | AW51: 2.57 | AX51: -1 | AY51: -1
B52: Total Bill on TOU (including OCEB) | H52: =H50+H51 -> 23.10978408 | L52: =L50+L51 -> 23.10978408 | N52: 0 | O52: =IF((H52)=0,"",(N52/H52)) -> 0 | S52: =S50+S51 -> 30.6082271 | U52: =S52-L52 -> 7.498443013 | V52: =IF((L52)=0,"",(U52/L52)) -> 0.3244704921 | Z52: =Z50+Z51 -> 30.78014388 | AB52: Total Bill on TOU (including OCEB) | AF52: =Z52-S52 -> 0.1719167816 | AG52: =IF((S52)=0,"",(AF52/S52)) -> 0.005616685378 | AK52: =AK50+AK51 -> 31.23619255 | AM52: =AK52-Z52 -> 0.4560486721 | AN52: =IF((Z52)=0,"",(AM52/Z52)) -> 0.01481632685 | AR52: =AR50+AR51 -> 31.56637855 | AT52: =AR52-AK52 -> 0.330186 | AU52: =IF((AK52)=0,"",(AT52/AK52)) -> 0.01057062251 | AW52: 8.456594467 | AX52: 0.3659313491 | AY52: 0.06435321052
B54: Total Bill on RPP (before Taxes) | H54: =SUM(H45:H46,H36,H37:H41) -> 21.51459264 | L54: =SUM(L45:L46,L36,L37:L41) -> 21.51459264 | N54: =L54-H54 -> 0 | O54: =IF((H54)=0,"",(N54/H54)) -> 0 | S54: =SUM(S45:S46,S36,S37:S41) -> 23.39540663 | U54: =S54-L54 -> 1.880813994 | V54: =IF((L54)=0,"",(U54/L54)) -> 0.08742038604 | Z54: =SUM(Z45:Z46,Z36,Z37:Z41) -> 23.54754538 | AB54: Total Bill on RPP (before Taxes) | AF54: =Z54-S54 -> 0.1521387448 | AG54: =IF((S54)=0,"",(AF54/S54)) -> 0.006502932269 | AK54: =SUM(AK45:AK46,AK36,AK37:AK41) -> 23.95112827 | AM54: =AK54-Z54 -> 0.4035828957 | AN54: =IF((Z54)=0,"",(AM54/Z54)) -> 0.01713906435 | AR54: =SUM(AR45:AR46,AR36,AR37:AR41) -> 24.24332827 | AT54: =AR54-AK54 -> 0.2922 | AU54: =IF((AK54)=0,"",(AT54/AK54)) -> 0.01219984281 | AW54: 2.728735635 | AX54: =IFERROR(AW54/H54,1) -> 0.1268318522 | AY54: =IFERROR((AR54/H54)^(1/(2019-2014))-1,0) -> 0.02416946378
B55: HST | F55: 0.13 | H55: =H54*F55 -> 2.796897043 | J55: 0.13 | L55: =L54*J55 -> 2.796897043 | N55: 0 | O55: 0 | Q55: 0.13 | S55: =S54*Q55 -> 3.041402862 | U55: =S55-L55 -> 0.2445058192 | V55: =IF((L55)=0,"",(U55/L55)) -> 0.08742038604 | X55: 0.13 | Z55: =Z54*X55 -> 3.061180899 | AB55: HST | AF55: =Z55-S55 -> 0.01977803682 | AG55: =IF((S55)=0,"",(AF55/S55)) -> 0.006502932269 | AI55: 0.13 | AK55: =AK54*AI55 -> 3.113646676 | AM55: =AK55-Z55 -> 0.05246577643 | AN55: =IF((Z55)=0,"",(AM55/Z55)) -> 0.01713906435 | AP55: 0.13 | AR55: =AR54*AP55 -> 3.151632676 | AT55: =AR55-AK55 -> 0.037986 | AU55: =IF((AK55)=0,"",(AT55/AK55)) -> 0.01219984281 | AW55: 0.3547356325 | AX55: 0.1268318522 | AY55: 0.02416946378
B56: Total Bill (including HST) | H56: =H54+H55 -> 24.31148968 | L56: =L54+L55 -> 24.31148968 | N56: 0 | O56: 0 | S56: =S54+S55 -> 26.4368095 | U56: =S56-L56 -> 2.125319813 | V56: =IF((L56)=0,"",(U56/L56)) -> 0.08742038604 | Z56: =Z54+Z55 -> 26.60872628 | AB56: Total Bill (including HST) | AF56: =Z56-S56 -> 0.1719167816 | AG56: =IF((S56)=0,"",(AF56/S56)) -> 0.006502932269 | AK56: =AK54+AK55 -> 27.06477495 | AM56: =AK56-Z56 -> 0.4560486721 | AN56: =IF((Z56)=0,"",(AM56/Z56)) -> 0.01713906435 | AR56: =AR54+AR55 -> 27.39496095 | AT56: =AR56-AK56 -> 0.330186 | AU56: =IF((AK56)=0,"",(AT56/AK56)) -> 0.01219984281 | AW56: 3.083471267 | AX56: 0.1268318522 | AY56: 0.02416946378
B57: Ontario Clean Energy Benefit 1 | H57: =ROUND(-H56*10%,2) -> -2.43 | L57: =ROUND(-L56*10%,2) -> -2.43 | N57: 0 | O57: 0 | S57: =ROUND(-S56*10%,2) -> -2.64 | U57: =S57-L57 -> -0.21 | V57: =IF((L57)=0,"",(U57/L57)) -> 0.08641975309 | Z57: =ROUND(-Z56*10%,2) -> -2.66 | AB57: Ontario Clean Energy Benefit 1 | AF57: =Z57-S57 -> -0.02 | AG57: =IF((S57)=0,"",(AF57/S57)) -> 0.007575757576 | AK57: =ROUND(-AK56*10%,2) -> -2.71 | AM57: =AK57-Z57 -> -0.05 | AN57: =IF((Z57)=0,"",(AM57/Z57)) -> 0.01879699248 | AR57: =ROUND(-AR56*10%,2) -> -2.74 | AT57: =AR57-AK57 -> -0.03 | AU57: =IF((AK57)=0,"",(AT57/AK57)) -> 0.0110701107 | AW57: -0.31 | AX57: 0.1275720165 | AY57: 0.02430397444
B58: Total Bill on RPP (including OCEB) | H58: =SUM(H56:H57) -> 21.88148968 | L58: =SUM(L56:L57) -> 21.88148968 | N58: 0 | O58: 0 | S58: =SUM(S56:S57) -> 23.7968095 | U58: =S58-L58 -> 1.915319813 | V58: =IF((L58)=0,"",(U58/L58)) -> 0.0875315091 | Z58: =SUM(Z56:Z57) -> 23.94872628 | AB58: Total Bill on RPP (including OCEB) | AF58: =Z58-S58 -> 0.1519167816 | AG58: =IF((S58)=0,"",(AF58/S58)) -> 0.006383913843 | AK58: =SUM(AK56:AK57) -> 24.35477495 | AM58: =AK58-Z58 -> 0.4060486721 | AN58: =IF((Z58)=0,"",(AM58/Z58)) -> 0.01695491724 | AR58: =SUM(AR56:AR57) -> 24.65496095 | AT58: =AR58-AK58 -> 0.300186 | AU58: =IF((AK58)=0,"",(AT58/AK58)) -> 0.01232555015 | AW58: 2.773471267 | AX58: 0.1267496549 | AY58: 0.02415452164
B61: Loss Factor (%) | F61: 0.043 | J61: 0.043 | Q61: 0.0486488321 | X61: 0.0486488321 | AB61: Loss Factor (%) | AI61: 0.0486488321 | AP61: 0.0486488321
B63: Distribution excluding Rate Riders | AB63: Distribution excluding Rate Riders
B64: Monthly Service Charge | D64: Monthly | F64: 4.34 | G64: =G23 -> 1 | H64: =G64*F64 -> 4.34 | J64: 4.34 | K64: =K23 -> 1 | L64: =K64*J64 -> 4.34 | N64: =L64-H64 -> 0 | O64: =IF((H64)=0,"",(N64/H64)) -> 0 | Q64: 5.2569 | R64: =R23 -> 1 | S64: =R64*Q64 -> 5.2569 | U64: =S64-L64 -> 0.9169 | V64: =IF((L64)=0,"",(U64/L64)) -> 0.2112672811 | X64: 5.3738 | Y64: =Y23 -> 1 | Z64: =Y64*X64 -> 5.3738 | AB64: Monthly Service Charge | AD64: Monthly | AF64: =Z64-S64 -> 0.1169 | AG64: =IF((S64)=0,"",(AF64/S64)) -> 0.02223744032 | AI64: 5.682 | AJ64: =AJ23 -> 1 | AK64: =AJ64*AI64 -> 5.682 | AM64: =AK64-Z64 -> 0.3082 | AN64: =IF((Z64)=0,"",(AM64/Z64)) -> 0.05735233913 | AP64: 5.8672 | AQ64: =AQ23 -> 1 | AR64: =AQ64*AP64 -> 5.8672 | AT64: =AR64-AK64 -> 0.1852 | AU64: =IF((AK64)=0,"",(AT64/AK64)) -> 0.03259415699 | AW64: =AR64-H64 -> 1.5272 | AX64: =IFERROR(AW64/H64,1) -> 0.3518894009 | AY64: =IFERROR((AR64/H64)^(1/(2019-2014))-1,0) -> 0.06215581875
B65: Distribution Volumetric Rate | D65: per kW | F65: 6.2114 | G65: =$D$20 -> 0.4 | H65: =G65*F65 -> 2.48456 | J65: 6.2114 | K65: =$D$20 -> 0.4 | L65: =K65*J65 -> 2.48456 | N65: =L65-H65 -> 0 | O65: =IF((H65)=0,"",(N65/H65)) -> 0 | Q65: 7.5088 | R65: =$D$20 -> 0.4 | S65: =R65*Q65 -> 3.00352 | U65: =S65-L65 -> 0.51896 | V65: =IF((L65)=0,"",(U65/L65)) -> 0.2088740059 | X65: 7.6712 | Y65: =$D$20 -> 0.4 | Z65: =Y65*X65 -> 3.06848 | AB65: Distribution Volumetric Rate | AD65: per kW | AF65: =Z65-S65 -> 0.06496 | AG65: =IF((S65)=0,"",(AF65/S65)) -> 0.02162795653 | AI65: 8.1169 | AJ65: =$D$20 -> 0.4 | AK65: =AJ65*AI65 -> 3.24676 | AM65: =AK65-Z65 -> 0.17828 | AN65: =IF((Z65)=0,"",(AM65/Z65)) -> 0.05810042757 | AP65: 8.3844 | AQ65: =$D$20 -> 0.4 | AR65: =AQ65*AP65 -> 3.35376 | AT65: =AR65-AK65 -> 0.107 | AU65: =IF((AK65)=0,"",(AT65/AK65)) -> 0.03295593145 | AW65: =AR65-H65 -> 0.8692 | AX65: =IFERROR(AW65/H65,1) -> 0.3498406156 | AY65: =IFERROR((AR65/H65)^(1/(2019-2014))-1,0) -> 0.06183368447
B66: "Regular" Distribution Rates only | H66: =SUM(H64:H65) -> 6.82456 | L66: =SUM(L64:L65) -> 6.82456 | N66: =L66-H66 -> 0 | O66: =IF((H66)=0,"",(N66/H66)) -> 0 | S66: =SUM(S64:S65) -> 8.26042 | U66: =S66-L66 -> 1.43586 | V66: =IF((L66)=0,"",(U66/L66)) -> 0.2103959816 | Z66: =SUM(Z64:Z65) -> 8.44228 | AB66: "Regular" Distribution Rates only | AF66: =Z66-S66 -> 0.18186 | AG66: =IF((S66)=0,"",(AF66/S66)) -> 0.0220158297 | AK66: =SUM(AK64:AK65) -> 8.92876 | AM66: =AK66-Z66 -> 0.48648 | AN66: =IF((Z66)=0,"",(AM66/Z66)) -> 0.05762424369 | AR66: =SUM(AR64:AR65) -> 9.22096 | AT66: =AR66-AK66 -> 0.2922 | AU66: =IF((AK66)=0,"",(AT66/AK66)) -> 0.03272570883 | AW66: 2.3964 | AX66: =IFERROR(AW66/H66,0) -> 0.3511435169 | AY66: 0.06203858728
A69: 1 Applicable to eligible customers only. Refer to the Ontario Clean Energy Benefit Act, 2010.
A71: Note that the "Charge $" columns provide breakdowns of the amounts that each bill component contributes to the total monthly bill at the referenced
A72: consumption level at existing and proposed rates.
A74: Applicants must provide bill impacts for residential at 800 kWh and GS<50kW at 2000 kWh. In addition, their filing must cover the range that is relevant
A75: to their service territory, class by class. A general guideline of consumption levels follows:
A77: Residential (kWh) - 100, 250, 500, 800, 1000, 1500, 2000
A78: GS<50kW (kWh) - 1000, 2000, 5000, 10000, 15000
A79: GS>50kW (kW) - 60, 100, 500, 1000
A80: Large User - range appropriate for utility
A81: Lighting Classes and USL - 150 kWh and 1 kW, range appropriate for utility.
B83: Note that cells with the highlighted color shown to the left indicate quantities that are loss adjusted. | AB83: Note that cells with the highlighted color shown to the left indicate quantities that are loss adjusted.
B90: Loss Factor Volume | D90: =ROUND(F90,1)&"/"&ROUND(J90,1) -> 5.5/5.5 | F90: 5.504 | J90: 5.504 | Q90: 6.227050509 | X90: 6.227050509 | AB90: Loss Factor Volume | AD90: =ROUND(AF90,1)&"/"&ROUND(AJ90,1) -> 0/0 | AI90: 6.227050509 | AP90: 6.227050509
D93: =ROUND(F90,1) -> 5.5 | AD93: =ROUND(AF90,1) -> 0
D94: =ROUND(J90,1) -> 5.5 | AD94: =ROUND(AJ90,1) -> 0
B96: kWHs incl Loss Factor | D96: =ROUND(F96,1)&"/"&ROUND(J96,1) -> 133.5/133.5 | F96: 133.504 | J96: 133.504 | Q96: 134.2270505 | X96: 134.2270505 | AB96: kWHs incl Loss Factor | AD96: =ROUND(AF96,1)&"/"&ROUND(AJ96,1) -> 0/0 | AI96: 134.2270505 | AP96: 134.2270505

Sheet App.2-W_Unmetered
A1: 1 | B1: File Number: | D1: =EBNUMBER ->  | AB1: File Number: | AD1: =EBNUMBER -> 
B2: Exhibit: | AB2: Exhibit:
B3: Tab: | AB3: Tab:
B4: Schedule: | AB4: Schedule:
B5: Page: | AB5: Page:
B7: Date: | AB7: Date:
B10: Appendix 2-W : Bill Impacts | Q10: Unmetered Scattered Load (i of ii) | AB10: Appendix 2-W : Bill Impacts | AN10: =B15&" (ii of ii)" -> Unmetered Scattered Load (ii of ii)
B11: Bill Impacts - These will need to be completed once source of rates are determined
B14: Customer Class: | AB14: Customer Class:
B15: Unmetered Scattered Load | AB15: Unmetered Scattered Load
B16: TOU / non-TOU: | D16: TOU | AB16: TOU / non-TOU: | AD16: TOU
D18: Consumption | AD18: Consumption
B19: kWh | D19: 750 | AB19: kWh | AD19: 750
F20: 2014 Rates | J20: 2015 Rates | N20: 2015 v 2014 | Q20: 2016 Proposed Rates | U20: 2016 v 2015 | X20: 2017 Proposed Rates | AF20: 2017 v 2016 | AI20: 2018 Proposed Interim Rates | AM20: 2018 v 2017 | AP20: 2019 Proposed Interim Rates | AT20: 2019 v 2018 | AW20: 2019 v 2014
D21: Charge Unit | F21: Rate | G21: Volume | H21: Charge | J21: Rate | K21: Volume | L21: Charge | N21: $ Change | O21: % Change | Q21: Rate | R21: Volume | S21: Charge | U21: $ Change | V21: % Change | X21: Rate | Y21: Volume | Z21: Charge | AD21: Charge Unit | AF21: $ Change | AG21: % Change | AI21: Rate | AJ21: Volume | AK21: Charge | AM21: $ Change | AN21: % Change | AP21: Rate | AQ21: Volume | AR21: Charge | AT21: $ Change | AU21: % Change | AW21: $ Change | AX21: % Change | AY21: % CAGR
F22: ($) | H22: ($) | J22: ($) | L22: ($) | Q22: ($) | S22: ($) | X22: ($) | Z22: ($) | AI22: ($) | AK22: ($) | AP22: ($) | AR22: ($)
B23: Monthly Service Charge | D23: Monthly | F23: 3.34 | G23: 1 | H23: =G23*F23 -> 3.34 | J23: 3.34 | K23: 1 | L23: =K23*J23 -> 3.34 | N23: =L23-H23 -> 0 | O23: =IF((H23)=0,"",(N23/H23)) -> 0 | Q23: 4.3575 | R23: 1 | S23: =R23*Q23 -> 4.3575 | U23: =S23-L23 -> 1.0175 | V23: =IF((L23)=0,"",(U23/L23)) -> 0.3046407186 | X23: 4.4526 | Y23: 1 | Z23: =Y23*X23 -> 4.4526 | AB23: Monthly Service Charge | AD23: Monthly | AF23: =Z23-S23 -> 0.0951 | AG23: =IF((S23)=0,"",(AF23/S23)) -> 0.02182444062 | AI23: 4.771 | AJ23: 1 | AK23: =AJ23*AI23 -> 4.771 | AM23: =AK23-Z23 -> 0.3184 | AN23: =IF((Z23)=0,"",(AM23/Z23)) -> 0.07150878139 | AP23: 4.9272 | AQ23: 1 | AR23: =AQ23*AP23 -> 4.9272 | AT23: =AR23-AK23 -> 0.1562 | AU23: =IF((AK23)=0,"",(AT23/AK23)) -> 0.03273946762 | AW23: =AR23-H23 -> 1.5872 | AX23: =IFERROR(AW23/H23,1) -> 0.4752095808
D24: per kWh | G24: =G25 -> 750 | H24: =G24*F24 -> 0 | K24: =K25 -> 750 | L24: =K24*J24 -> 0 | R24: =R25 -> 750 | S24: =R24*Q24 -> 0 | Y24: =Y25 -> 750 | Z24: =Y24*X24 -> 0 | AB24: =B24 -> 0 | AD24: per kWh | AJ24: =AJ25 -> 750 | AK24: =AJ24*AI24 -> 0 | AQ24: =AQ25 -> 750 | AR24: =AQ24*AP24 -> 0
B25: Distribution Volumetric Rate | D25: per kWh | F25: 0.0136 | G25: =$D$19 -> 750 | H25: =G25*F25 -> 10.2 | J25: 0.0136 | K25: =$G25 -> 750 | L25: =K25*J25 -> 10.2 | N25: =L25-H25 -> 0 | O25: =IF((H25)=0,"",(N25/H25)) -> 0 | Q25: 0.0178 | R25: =$G25 -> 750 | S25: =R25*Q25 -> 13.35 | U25: =S25-L25 -> 3.15 | V25: 0.3088235294 | X25: 0.0182 | Y25: =$G25 -> 750 | Z25: =Y25*X25 -> 13.65 | AB25: Distribution Volumetric Rate | AD25: per kWh | AF25: =Z25-S25 -> 0.3 | AG25: 0.02247191011 | AI25: 0.0195 | AJ25: =$G25 -> 750 | AK25: =AJ25*AI25 -> 14.625 | AM25: =AK25-Z25 -> 0.975 | AN25: 0.07142857143 | AP25: 0.0201 | AQ25: =$G25 -> 750 | AR25: =AQ25*AP25 -> 15.075 | AT25: =AR25-AK25 -> 0.45 | AU25: 0.03076923077 | AW25: =AR25-H25 -> 4.875 | AX25: =IFERROR(AW25/H25,1) -> 0.4779411765
B26: ='App.2-W_(Resi)'!B28 -> 2015 Oct-Dec Recovery | D26: Monthly | J26: 0 | K26: 1 | L26: =K26*J26 -> 0 | N26: =L26-H26 -> 0 | O26: =IF((H26)=0,"",(N26/H26)) ->  | Q26: 0.48 | R26: 1 | S26: =R26*Q26 -> 0.48 | U26: =S26-L26 -> 0.48 | V26: =IF((L26)=0,"",(U26/L26)) ->  | X26: 0 | Y26: 1 | Z26: =Y26*X26 -> 0 | AB26: ='App.2-W_(Resi)'!AB28 -> 2015 Oct-Dec Recovery | AD26: Monthly | AF26: =Z26-S26 -> -0.48 | AG26: =IF((S26)=0,"",(AF26/S26)) -> -1 | AI26: 0 | AJ26: 1 | AK26: 0 | AM26: 0 | AP26: 0 | AQ26: 1 | AR26: 0 | AT26: 0
B27: Sub-Total A (excluding pass through) | H27: =SUM(H23:H26) -> 13.54 | L27: =SUM(L23:L26) -> 13.54 | N27: 0 | O27: 0 | S27: =SUM(S23:S26) -> 18.1875 | U27: 4.6475 | V27: 0.3432422452 | Z27: =SUM(Z23:Z26) -> 18.1026 | AB27: Sub-Total A (excluding pass through) | AF27: -0.0849 | AG27: -0.004668041237 | AK27: =SUM(AK23:AK26) -> 19.396 | AM27: 1.2934 | AN27: 0.07144830024 | AR27: =SUM(AR23:AR26) -> 20.0022 | AT27: 0.6062 | AU27: 0.03125386678 | AW27: 6.4622 | AX27: =IFERROR(AW27/H27,0) -> 0.477267356 | AY27: =IFERROR((AR27/H27)^(1/(2019-2014))-1,0) -> 0.08116460705
B28: Deferral & Variance Accounts Disposition Rate Rider (2012) | D28: per kWh | F28: 0.0002 | G28: =$D$19 -> 750 | H28: =G28*F28 -> 0.15 | J28: 0.0002 | K28: =$G28 -> 750 | L28: =K28*J28 -> 0.15 | N28: =L28-H28 -> 0 | O28: =IF((H28)=0,"",(N28/H28)) -> 0 | Q28: 0 | R28: =$G28 -> 750 | S28: =R28*Q28 -> 0 | U28: -0.15 | V28: -1 | X28: 0 | Y28: =$G28 -> 750 | Z28: =Y28*X28 -> 0 | AB28: Deferral & Variance Accounts Disposition Rate Rider (2012) | AD28: per kWh | AF28: 0 | AI28: 0 | AJ28: =$G28 -> 750 | AK28: =AJ28*AI28 -> 0 | AM28: 0 | AP28: 0 | AQ28: =$G28 -> 750 | AR28: =AQ28*AP28 -> 0 | AT28: 0 | AW28: -0.15 | AX28: =IFERROR(AW28/H28,1) -> -1
B29: Deferral & Variance Accounts Disposition Rate Rider (2015) | D29: per kWh | G29: =$D$19 -> 750 | H29: =G29*F29 -> 0 | K29: =$G29 -> 750 | L29: =K29*J29 -> 0 | N29: =L29-H29 -> 0 | O29: =IF((H29)=0,"",(N29/H29)) ->  | Q29: 0.0006266869141 | R29: =$G29 -> 750 | S29: =R29*Q29 -> 0.4700151855 | U29: 0.4700151855 | X29: 0.0006266869141 | Y29: =$G29 -> 750 | Z29: =Y29*X29 -> 0.4700151855 | AB29: Deferral & Variance Accounts Disposition Rate Rider (2015) | AD29: per kWh | AF29: 0 | AG29: 0 | AI29: 0.0006266869141 | AJ29: =$G29 -> 750 | AK29: =AJ29*AI29 -> 0.4700151855 | AM29: 0 | AN29: 0 | AP29: 0.0006266869141 | AQ29: =$G29 -> 750 | AR29: =AQ29*AP29 -> 0.4700151855 | AT29: 0 | AU29: 0 | AW29: 0.4700151855 | AX29: 1
B30: Global Adjustment Disposition Rate Rider (2015) | D30: per kWh | G30: =$D$19 -> 750 | H30: 0 | K30: =$G30 -> 750 | L30: 0 | N30: 0 | Q30: 0.001343866791 | R30: =$G30 -> 750 | S30: 1.007900093 | U30: 1.007900093 | X30: 0.001343866791 | Y30: =$G30 -> 750 | Z30: 1.007900093 | AB30: Global Adjustment Disposition Rate Rider (2015) | AD30: per kWh | AF30: 0 | AG30: 0 | AI30: 0.001343866791 | AJ30: =$G30 -> 750 | AK30: 1.007900093 | AM30: 0 | AN30: 0 | AP30: 0.001343866791 | AQ30: =$G30 -> 750 | AR30: 1.007900093 | AT30: 0 | AU30: 0 | AW30: 1.007900093 | AX30: 1
B31: ='App.2-W_(Resi)'!B33 -> Deferral & Variance Accounts Disposition Rate Rider for Group 2 DVAs (2015) | D31: per kWh | G31: =$D$19 -> 750 | H31: =G31*F31 -> 0 | K31: =$G31 -> 750 | L31: =K31*J31 -> 0 | N31: =L31-H31 -> 0 | O31: =IF((H31)=0,"",(N31/H31)) ->  | Q31: 7.214283233e-05 | R31: =$G31 -> 750 | S31: =R31*Q31 -> 0.05410712425 | U31: =S31-L31 -> 0.05410712425 | V31: =IF((L31)=0,"",(U31/L31)) ->  | X31: 7.214283233e-05 | Y31: =$G31 -> 750 | Z31: =Y31*X31 -> 0.05410712425 | AB31: =B31 -> Deferral & Variance Accounts Disposition Rate Rider for Group 2 DVAs (2015) | AD31: per kWh | AF31: =Z31-S31 -> 0 | AG31: =IF((S31)=0,"",(AF31/S31)) -> 0 | AI31: 7.214283233e-05 | AJ31: =$G31 -> 750 | AK31: =AJ31*AI31 -> 0.05410712425 | AM31: =AK31-Z31 -> 0 | AN31: =IF((Z31)=0,"",(AM31/Z31)) -> 0 | AP31: 7.214283233e-05 | AQ31: =$G31 -> 750 | AR31: =AQ31*AP31 -> 0.05410712425 | AT31: =AR31-AK31 -> 0 | AU31: =IF((AK31)=0,"",(AT31/AK31)) -> 0 | AW31: =AR31-H31 -> 0.05410712425 | AX31: =IFERROR(AW31/H31,1) -> 1
B32: Low Voltage Service Charge | D32: per kWh | G32: =$D$19 -> 750 | H32: =G32*F32 -> 0 | K32: =$G32 -> 750 | L32: =K32*J32 -> 0 | N32: =L32-H32 -> 0 | R32: =$G32 -> 750 | S32: =R32*Q32 -> 0 | U32: 0 | Y32: =$G32 -> 750 | Z32: =Y32*X32 -> 0 | AB32: Low Voltage Service Charge | AD32: per kWh | AF32: 0 | AJ32: =$G32 -> 750 | AK32: =AJ32*AI32 -> 0 | AM32: 0 | AQ32: =$G32 -> 750 | AR32: =AQ32*AP32 -> 0 | AT32: 0 | AW32: 0 | AX32: 1
B33: Line Losses on Cost of Power | D33: per kWh | F33: 0.09246 | G33: =$D$19*(1+F62)-$D$19 -> 32.25 | H33: 2.981835 | J33: 0.09246 | K33: =$D$19*(1+J62)-$D$19 -> 32.25 | L33: 2.981835 | N33: 0 | O33: 0 | Q33: 0.09246 | R33: =$D$19*(1+Q62)-$D$19 -> 36.48662407 | S33: =R33*Q33 -> 3.373553262 | U33: 0.3917182619 | V33: 0.1313681883 | X33: 0.11184 | Y33: =$D$19*(1+X62)-$D$19 -> 36.48662407 | Z33: =Y33*X33 -> 4.080664036 | AB33: Line Losses on Cost of Power | AD33: per kWh | AF33: 0.7071107746 | AG33: 0.2096041531 | AI33: 0.09246 | AJ33: =$D$19*(1+AI62)-$D$19 -> 36.48662407 | AK33: =AJ33*AI33 -> 3.373553262 | AM33: -0.7071107746 | AN33: -0.1732832618 | AP33: 0.09246 | AQ33: =$D$19*(1+AP62)-$D$19 -> 36.48662407 | AR33: =AQ33*AP33 -> 3.373553262 | AT33: 0 | AU33: 0 | AW33: 0.3917182619 | AX33: 0.1313681883
B34: Sub-Total B - Distribution (includes Sub-Total A) | H34: =SUM(H28:H33)+H27 -> 16.671835 | L34: =SUM(L28:L33)+L27 -> 16.671835 | N34: =L34-H34 -> 0 | O34: =IF((H34)=0,"",(N34/H34)) -> 0 | S34: =SUM(S28:S33)+S27 -> 23.09307566 | U34: 6.421240665 | V34: 0.3851550033 | Z34: =SUM(Z28:Z33)+Z27 -> 23.71528644 | AB34: Sub-Total B - Distribution (includes Sub-Total A) | AF34: 0.6222107746 | AG34: 0.02694360784 | AK34: =SUM(AK28:AK33)+AK27 -> 24.30157566 | AM34: 0.5862892254 | AN34: 0.02472199638 | AR34: =SUM(AR28:AR33)+AR27 -> 24.90777566 | AT34: 0.6062 | AU34: 0.02494488458 | AW34: 8.235940665 | AX34: =IFERROR(AW34/H34,0) -> 0.4940032495 | AY34: =IFERROR((AR34/H34)^(1/(2019-2014))-1,0) -> 0.08360327369
B35: RTSR - Network | D35: per kWh | F35: 0.0068 | G35: =$D$19*(1+F62) -> 782.25 | H35: =G35*F35 -> 5.3193 | J35: 0.0068 | K35: =$D$19*(1+J62) -> 782.25 | L35: =K35*J35 -> 5.3193 | N35: 0 | O35: 0 | Q35: 0.007194088883 | R35: =$D$19*(1+Q62) -> 786.4866241 | S35: =R35*Q35 -> 5.658054679 | U35: 0.3387546785 | V35: 0.06368407094 | X35: 0.0069 | Y35: =$D$19*(1+X62) -> 786.4866241 | Z35: =Y35*X35 -> 5.426757706 | AB35: RTSR - Network | AD35: per kWh | AF35: -0.2312969724 | AG35: -0.04087923952 | AI35: 0.007194088883 | AJ35: =$D$19*(1+AI62) -> 786.4866241 | AK35: =AJ35*AI35 -> 5.658054679 | AM35: 0.2312969724 | AN35: 0.04262157718 | AP35: 0.007194088883 | AQ35: =$D$19*(1+AP62) -> 786.4866241 | AR35: =AQ35*AP35 -> 5.658054679 | AT35: 0 | AU35: 0 | AW35: 0.3387546785 | AX35: 0.06368407094
B36: RTSR - Line and Transformation Connection | D36: per kWh | F36: 0.0052 | G36: =G35 -> 782.25 | H36: =G36*F36 -> 4.0677 | J36: 0.0052 | K36: =K35 -> 782.25 | L36: =K36*J36 -> 4.0677 | N36: 0 | O36: 0 | Q36: 0.005650268073 | R36: =R35 -> 786.4866241 | S36: =R36*Q36 -> 4.443860262 | U36: 0.3761602622 | V36: 0.0924749274 | X36: 0.005650268073 | Y36: =Y35 -> 786.4866241 | Z36: =Y36*X36 -> 4.443860262 | AB36: RTSR - Line and Transformation Connection | AD36: per kWh | AF36: 0 | AG36: 0 | AI36: 0.005650268073 | AJ36: =AJ35 -> 786.4866241 | AK36: =AJ36*AI36 -> 4.443860262 | AM36: 0 | AN36: 0 | AP36: 0.005650268073 | AQ36: =AQ35 -> 786.4866241 | AR36: =AQ36*AP36 -> 4.443860262 | AT36: 0 | AU36: 0 | AW36: 0.3761602622 | AX36: 0.0924749274
B37: Sub-Total C - Delivery (including Sub-Total B) | H37: =SUM(H34:H36) -> 26.058835 | L37: =SUM(L34:L36) -> 26.058835 | N37: 0 | O37: =IF((H37)=0,"",(N37/H37)) -> 0 | S37: =SUM(S34:S36) -> 33.19499061 | U37: 7.136155605 | V37: 0.2738478372 | Z37: =SUM(Z34:Z36) -> 33.58590441 | AB37: Sub-Total C - Delivery (including Sub-Total B) | AF37: 0.3909138021 | AG37: 0.01177628898 | AK37: =SUM(AK34:AK36) -> 34.40349061 | AM37: 0.8175861979 | AN37: 0.02434313479 | AR37: =SUM(AR34:AR36) -> 35.00969061 | AT37: 0.6062 | AU37: 0.01762030507 | AW37: 8.950855605 | AX37: 0.343486407 | AY37: =IFERROR((AR37/H37)^(1/(2019-2014))-1,0) -> 0.06083210649
B38: Wholesale Market Service Charge (WMSC) | D38: per kWh | F38: 0.0044 | G38: =G36 -> 782.25 | H38: =G38*F38 -> 3.4419 | J38: 0.0044 | K38: =K35 -> 782.25 | L38: =K38*J38 -> 3.4419 | N38: 0 | O38: 0 | Q38: 0.0036 | R38: =R35 -> 786.4866241 | S38: =R38*Q38 -> 2.831351847 | U38: -0.6105481533 | V38: -0.1773869529 | X38: 0.0036 | Y38: =Y35 -> 786.4866241 | Z38: =Y38*X38 -> 2.831351847 | AB38: Wholesale Market Service Charge (WMSC) | AD38: per kWh | AF38: 0 | AG38: 0 | AI38: 0.0036 | AJ38: =AJ35 -> 786.4866241 | AK38: =AJ38*AI38 -> 2.831351847 | AM38: 0 | AN38: 0 | AP38: 0.0036 | AQ38: =AQ35 -> 786.4866241 | AR38: =AQ38*AP38 -> 2.831351847 | AT38: 0 | AU38: 0 | AW38: -0.6105481533 | AX38: =IF((AN38)=0,"",(AW38/AN38)) -> 
B39: Rural and Remote Rate Protection (RRRP) | D39: per kWh | F39: 0.0013 | G39: =G36 -> 782.25 | H39: 1.016925 | J39: 0.0013 | K39: =K35 -> 782.25 | L39: 1.016925 | N39: 0 | O39: 0 | Q39: 0.0013 | R39: =R35 -> 786.4866241 | S39: 1.022432611 | U39: 0.005507611296 | V39: 0.005415946403 | X39: 0.0021 | Y39: =Y35 -> 786.4866241 | Z39: 1.651621911 | AB39: Rural and Remote Rate Protection (RRRP) | AD39: per kWh | AF39: 0.6291892993 | AG39: 0.6153846154 | AI39: 0.0013 | AJ39: =AJ35 -> 786.4866241 | AK39: 1.022432611 | AM39: -0.6291892993 | AN39: -0.380952381 | AP39: 0.0013 | AQ39: =AQ35 -> 786.4866241 | AR39: 1.022432611 | AT39: 0 | AU39: 0 | AW39: 0.005507611296 | AX39: -0.01445747965
B40: ='App.2-W_Bill Impacts Sentinels'!B39 -> Ontario Electricity Support Program (OESP) | D40: per kWh | Q40: 0.0011 | R40: =R36 -> 786.4866241 | S40: =R40*Q40 -> 0.8651352865 | U40: =S40-L40 -> 0.8651352865 | V40: =IF((L40)=0,"",(U40/L40)) ->  | X40: 0.0011 | Y40: =Y36 -> 786.4866241 | Z40: =Y40*X40 -> 0.8651352865 | AB40: =B40 -> Ontario Electricity Support Program (OESP) | AD40: per kWh | AF40: =Z40-S40 -> 0 | AG40: =IF((S40)=0,"",(AF40/S40)) -> 0 | AI40: 0.0011 | AJ40: =AJ36 -> 786.4866241 | AK40: =AJ40*AI40 -> 0.8651352865 | AM40: =AK40-Z40 -> 0 | AN40: =IF((Z40)=0,"",(AM40/Z40)) -> 0 | AP40: 0.0011 | AQ40: =AQ36 -> 786.4866241 | AR40: =AQ40*AP40 -> 0.8651352865 | AT40: =AR40-AK40 -> 0 | AU40: =IF((AK40)=0,"",(AT40/AK40)) -> 0 | AW40: =AR40-H40 -> 0.8651352865 | AX40: =IF((AN40)=0,"",(AW40/AN40)) -> 
B41: Standard Supply Service Charge | D41: Monthly | F41: 0.25 | G41: 1 | H41: 0.25 | J41: 0.25 | K41: =$G41 -> 1 | L41: 0.25 | N41: 0 | O41: 0 | Q41: 0.25 | R41: =$G41 -> 1 | S41: 0.25 | U41: 0 | V41: 0 | X41: 0.25 | Y41: =$G41 -> 1 | Z41: 0.25 | AB41: Standard Supply Service Charge | AD41: Monthly | AF41: 0 | AG41: 0 | AI41: 0.25 | AJ41: =$G41 -> 1 | AK41: 0.25 | AM41: 0 | AN41: 0 | AP41: 0.25 | AQ41: =$G41 -> 1 | AR41: 0.25 | AT41: 0 | AU41: 0 | AW41: 0
B42: Debt Retirement Charge (DRC) | D42: per kWh | F42: 0.007 | G42: =$D$19 -> 750 | H42: 5.25 | J42: 0.007 | K42: =$G42 -> 750 | L42: 5.25 | N42: 0 | O42: 0 | Q42: 0.007 | R42: =$G42 -> 750 | S42: 5.25 | U42: 0 | V42: 0 | X42: 0.007 | Y42: =$G42 -> 750 | Z42: 5.25 | AB42: Debt Retirement Charge (DRC) | AD42: per kWh | AF42: 0 | AG42: 0 | AI42: 0.007 | AJ42: =$G42 -> 750 | AK42: 5.25 | AM42: 0 | AN42: 0 | AP42: 0.007 | AQ42: =$G42 -> 750 | AR42: 5.25 | AT42: 0 | AU42: 0 | AW42: 0
B43: TOU - Off Peak | D43: per kWh | F43: 0.075 | G43: =0.64*$D$19 -> 480 | H43: 36 | J43: 0.075 | K43: 480 | L43: 36 | N43: 0 | O43: 0 | Q43: 0.087 | R43: 480 | S43: 41.76 | U43: 5.76 | V43: 0.16 | X43: 0.087 | Y43: 480 | Z43: 41.76 | AB43: TOU - Off Peak | AD43: per kWh | AF43: 0 | AG43: 0 | AI43: 0.075 | AJ43: 480 | AK43: 36 | AM43: -5.76 | AN43: -0.1379310345 | AP43: 0.075 | AQ43: 480 | AR43: 36 | AT43: 0 | AU43: 0 | AW43: 0 | AX43: 0
B44: TOU - Mid Peak | D44: per kWh | F44: 0.112 | G44: =0.18*$D$19 -> 135 | H44: 15.12 | J44: 0.112 | K44: 135 | L44: 15.12 | N44: 0 | O44: 0 | Q44: 0.132 | R44: 135 | S44: 17.82 | U44: 2.7 | V44: 0.1785714286 | X44: 0.132 | Y44: 135 | Z44: 17.82 | AB44: TOU - Mid Peak | AD44: per kWh | AF44: 0 | AG44: 0 | AI44: 0.112 | AJ44: 135 | AK44: 15.12 | AM44: -2.7 | AN44: -0.1515151515 | AP44: 0.112 | AQ44: 135 | AR44: 15.12 | AT44: 0 | AU44: 0 | AW44: 0 | AX44: 0
B45: TOU - On Peak | D45: per kWh | F45: 0.135 | G45: =0.18*$D$19 -> 135 | H45: 18.225 | J45: 0.135 | K45: 135 | L45: 18.225 | N45: 0 | O45: 0 | Q45: 0.18 | R45: 135 | S45: 24.3 | U45: 6.075 | V45: 0.3333333333 | X45: 0.18 | Y45: 135 | Z45: 24.3 | AB45: TOU - On Peak | AD45: per kWh | AF45: 0 | AG45: 0 | AI45: 0.135 | AJ45: 135 | AK45: 18.225 | AM45: -6.075 | AN45: -0.25 | AP45: 0.135 | AQ45: 135 | AR45: 18.225 | AT45: 0 | AU45: 0 | AW45: 0 | AX45: 0
B46: Energy - RPP - Tier 1 | D46: per kWh | F46: 0.083 | G46: =IF(AND($A$1=1, D19>=600), 600, IF(AND($A$1=1, AND(D19<600, D19>=0)), D19, IF(AND($A$1=2, D19>=1000), 1000, IF(AND($A$1=2, AND(D19<1000, D19>=0)), D19)))) -> 600 | H46: =G46*F46 -> 49.8 | J46: 0.083 | K46: 600 | L46: =K46*J46 -> 49.8 | N46: 0 | O46: 0 | Q46: 0.103 | R46: 600 | S46: =R46*Q46 -> 61.8 | U46: 12 | V46: 0.2409638554 | X46: 0.103 | Y46: 600 | Z46: =Y46*X46 -> 61.8 | AB46: Energy - RPP - Tier 1 | AD46: per kWh | AF46: 0 | AG46: 0 | AI46: 0.083 | AJ46: 600 | AK46: =AJ46*AI46 -> 49.8 | AM46: -12 | AN46: -0.1941747573 | AP46: 0.083 | AQ46: 600 | AR46: =AQ46*AP46 -> 49.8 | AT46: 0 | AU46: 0 | AW46: 0 | AX46: 0
B47: Energy - RPP - Tier 2 | D47: per kWh | F47: 0.097 | G47: =IF(AND($A$1=1, D19>=600), D19-600, IF(AND($A$1=1, AND(D19<600, D19>=0)), 0, IF(AND($A$1=2, D19>=1000), D19-1000, IF(AND($A$1=2, AND(D19<1000, D19>=0)), 0)))) -> 150 | H47: =G47*F47 -> 14.55 | J47: 0.097 | K47: 150 | L47: =K47*J47 -> 14.55 | N47: 0 | O47: 0 | Q47: 0.121 | R47: 150 | S47: =R47*Q47 -> 18.15 | U47: 3.6 | V47: 0.2474226804 | X47: 0.121 | Y47: 150 | Z47: =Y47*X47 -> 18.15 | AB47: Energy - RPP - Tier 2 | AD47: per kWh | AF47: 0 | AG47: 0 | AI47: 0.097 | AJ47: 150 | AK47: =AJ47*AI47 -> 14.55 | AM47: -3.6 | AN47: -0.1983471074 | AP47: 0.097 | AQ47: 150 | AR47: =AQ47*AP47 -> 14.55 | AT47: 0 | AU47: 0 | AW47: 0 | AX47: 0
B49: Total Bill on TOU (before Taxes) | H49: =SUM(H38:H45,H37) -> 105.36266 | L49: =SUM(L38:L45,L37) -> 105.36266 | N49: =L49-H49 -> 0 | O49: =IF((H49)=0,"",(N49/H49)) -> 0 | S49: =SUM(S38:S45,S37) -> 127.2939103 | U49: =S49-L49 -> 21.93125035 | V49: =IF((L49)=0,"",(U49/L49)) -> 0.2081501203 | Z49: =SUM(Z38:Z45,Z37) -> 128.3140135 | AB49: Total Bill on TOU (before Taxes) | AF49: =Z49-S49 -> 1.020103101 | AG49: =IF((S49)=0,"",(AF49/S49)) -> 0.008013761998 | AK49: =SUM(AK38:AK45,AK37) -> 113.9674103 | AM49: =AK49-Z49 -> -14.3466031 | AN49: =IF((Z49)=0,"",(AM49/Z49)) -> -0.1118085446 | AR49: =SUM(AR38:AR45,AR37) -> 114.5736103 | AT49: =AR49-AK49 -> 0.6062 | AU49: =IF((AK49)=0,"",(AT49/AK49)) -> 0.005319064443 | AW49: 9.21095035 | AX49: =IFERROR(AW49/H49,1) -> 0.08742139151 | AY49: =IFERROR((AR49/H49)^(1/(2019-2014))-1,0) -> 0.01690310737
B50: HST | F50: 0.13 | H50: =H49*F50 -> 13.6971458 | J50: 0.13 | L50: =L49*J50 -> 13.6971458 | N50: 0 | O50: 0 | Q50: 0.13 | S50: =S49*Q50 -> 16.54820835 | U50: =S50-L50 -> 2.851062545 | V50: =IF((L50)=0,"",(U50/L50)) -> 0.2081501203 | X50: 0.13 | Z50: =Z49*X50 -> 16.68082175 | AB50: HST | AF50: =Z50-S50 -> 0.1326134032 | AG50: =IF((S50)=0,"",(AF50/S50)) -> 0.008013761998 | AI50: 0.13 | AK50: =AK49*AI50 -> 14.81576335 | AM50: =AK50-Z50 -> -1.865058403 | AN50: =IF((Z50)=0,"",(AM50/Z50)) -> -0.1118085446 | AP50: 0.13 | AR50: =AR49*AP50 -> 14.89456935 | AT50: =AR50-AK50 -> 0.078806 | AU50: =IF((AK50)=0,"",(AT50/AK50)) -> 0.005319064443 | AW50: 1.197423545 | AX50: 0.08742139151 | AY50: 0.01690310737
B51: Total Bill (including HST) | H51: =H49+H50 -> 119.0598058 | L51: =L49+L50 -> 119.0598058 | N51: 0 | O51: 0 | S51: =S49+S50 -> 143.8421187 | U51: =S51-L51 -> 24.7823129 | V51: =IF((L51)=0,"",(U51/L51)) -> 0.2081501203 | Z51: =Z49+Z50 -> 144.9948352 | AB51: Total Bill (including HST) | AF51: =Z51-S51 -> 1.152716505 | AG51: =IF((S51)=0,"",(AF51/S51)) -> 0.008013761998 | AK51: =AK49+AK50 -> 128.7831737 | AM51: =AK51-Z51 -> -16.2116615 | AN51: =IF((Z51)=0,"",(AM51/Z51)) -> -0.1118085446 | AR51: =AR49+AR50 -> 129.4681797 | AT51: =AR51-AK51 -> 0.685006 | AU51: =IF((AK51)=0,"",(AT51/AK51)) -> 0.005319064443 | AW51: 10.4083739 | AX51: 0.08742139151 | AY51: 0.01690310737
B52: Ontario Clean Energy Benefit 1 | H52: =ROUND(-H51*10%,2) -> -11.91 | L52: =ROUND(-L51*10%,2) -> -11.91 | N52: 0 | O52: 0 | U52: =S52-L52 -> 11.91 | V52: =IF((L52)=0,"",(U52/L52)) -> -1 | AB52: Ontario Clean Energy Benefit 1 | AF52: =Z52-S52 -> 0 | AG52: =IF((S52)=0,"",(AF52/S52)) ->  | AM52: =AK52-Z52 -> 0 | AN52: =IF((Z52)=0,"",(AM52/Z52)) ->  | AT52: =AR52-AK52 -> 0 | AU52: =IF((AK52)=0,"",(AT52/AK52)) ->  | AW52: 11.91 | AX52: -1 | AY52: -1
B53: Total Bill on TOU (including OCEB) | H53: =H51+H52 -> 107.1498058 | L53: =L51+L52 -> 107.1498058 | N53: 0 | O53: 0 | S53: =S51+S52 -> 143.8421187 | U53: =S53-L53 -> 36.6923129 | V53: =IF((L53)=0,"",(U53/L53)) -> 0.3424393784 | Z53: =Z51+Z52 -> 144.9948352 | AB53: Total Bill on TOU (including OCEB) | AF53: =Z53-S53 -> 1.152716505 | AG53: =IF((S53)=0,"",(AF53/S53)) -> 0.008013761998 | AK53: =AK51+AK52 -> 128.7831737 | AM53: =AK53-Z53 -> -16.2116615 | AN53: =IF((Z53)=0,"",(AM53/Z53)) -> -0.1118085446 | AR53: =AR51+AR52 -> 129.4681797 | AT53: =AR53-AK53 -> 0.685006 | AU53: =IF((AK53)=0,"",(AT53/AK53)) -> 0.005319064443 | AW53: 22.3183739 | AX53: 0.2082913145 | AY53: 0.03856654986
B55: Total Bill on RPP (before Taxes) | H55: =SUM(H46:H47,H37,H38:H42) -> 100.36766 | L55: =SUM(L46:L47,L37,L38:L42) -> 100.36766 | N55: =L55-H55 -> 0 | O55: =IF((H55)=0,"",(N55/H55)) -> 0 | S55: =SUM(S46:S47,S37,S38:S42) -> 123.3639103 | U55: =S55-L55 -> 22.99625035 | V55: =IF((L55)=0,"",(U55/L55)) -> 0.2291201205 | Z55: =SUM(Z46:Z47,Z37,Z38:Z42) -> 124.3840135 | AB55: Total Bill on RPP (before Taxes) | AF55: =Z55-S55 -> 1.020103101 | AG55: =IF((S55)=0,"",(AF55/S55)) -> 0.008269056149 | AK55: =SUM(AK46:AK47,AK37,AK38:AK42) -> 108.9724103 | AM55: =AK55-Z55 -> -15.4116031 | AN55: =IF((Z55)=0,"",(AM55/Z55)) -> -0.1239034075 | AR55: =SUM(AR46:AR47,AR37,AR38:AR42) -> 109.5786103 | AT55: =AR55-AK55 -> 0.6062 | AU55: =IF((AK55)=0,"",(AT55/AK55)) -> 0.005562875943 | AW55: 9.21095035 | AX55: =IFERROR(AW55/H55,1) -> 0.09177209422 | AY55: =IFERROR((AR55/H55)^(1/(2019-2014))-1,0) -> 0.01771552097
B56: HST | F56: 0.13 | H56: =H55*F56 -> 13.0477958 | J56: 0.13 | L56: =L55*J56 -> 13.0477958 | N56: 0 | O56: 0 | Q56: 0.13 | S56: =S55*Q56 -> 16.03730835 | U56: =S56-L56 -> 2.989512545 | V56: =IF((L56)=0,"",(U56/L56)) -> 0.2291201205 | X56: 0.13 | Z56: =Z55*X56 -> 16.16992175 | AB56: HST | AF56: =Z56-S56 -> 0.1326134032 | AG56: =IF((S56)=0,"",(AF56/S56)) -> 0.008269056149 | AI56: 0.13 | AK56: =AK55*AI56 -> 14.16641335 | AM56: =AK56-Z56 -> -2.003508403 | AN56: =IF((Z56)=0,"",(AM56/Z56)) -> -0.1239034075 | AP56: 0.13 | AR56: =AR55*AP56 -> 14.24521935 | AT56: =AR56-AK56 -> 0.078806 | AU56: =IF((AK56)=0,"",(AT56/AK56)) -> 0.005562875943 | AW56: 1.197423545 | AX56: 0.09177209422 | AY56: 0.01771552097
B57: Total Bill (including HST) | H57: =H55+H56 -> 113.4154558 | L57: =L55+L56 -> 113.4154558 | N57: 0 | O57: 0 | S57: =S55+S56 -> 139.4012187 | U57: =S57-L57 -> 25.9857629 | V57: =IF((L57)=0,"",(U57/L57)) -> 0.2291201205 | Z57: =Z55+Z56 -> 140.5539352 | AB57: Total Bill (including HST) | AF57: =Z57-S57 -> 1.152716505 | AG57: =IF((S57)=0,"",(AF57/S57)) -> 0.008269056149 | AK57: =AK55+AK56 -> 123.1388237 | AM57: =AK57-Z57 -> -17.4151115 | AN57: =IF((Z57)=0,"",(AM57/Z57)) -> -0.1239034075 | AR57: =AR55+AR56 -> 123.8238297 | AT57: =AR57-AK57 -> 0.685006 | AU57: =IF((AK57)=0,"",(AT57/AK57)) -> 0.005562875943 | AW57: 10.4083739 | AX57: 0.09177209422 | AY57: 0.01771552097
B58: Ontario Clean Energy Benefit 1 | H58: =ROUND(-H57*10%,2) -> -11.34 | L58: =ROUND(-L57*10%,2) -> -11.34 | N58: 0 | O58: 0 | S58: =ROUND(-S57*10%,2) -> -13.94 | U58: =S58-L58 -> -2.6 | V58: =IF((L58)=0,"",(U58/L58)) -> 0.2292768959 | Z58: =ROUND(-Z57*10%,2) -> -14.06 | AB58: Ontario Clean Energy Benefit 1 | AF58: =Z58-S58 -> -0.12 | AG58: =IF((S58)=0,"",(AF58/S58)) -> 0.008608321377 | AK58: =ROUND(-AK57*10%,2) -> -12.31 | AM58: =AK58-Z58 -> 1.75 | AN58: =IF((Z58)=0,"",(AM58/Z58)) -> -0.1244665718 | AR58: =ROUND(-AR57*10%,2) -> -12.38 | AT58: =AR58-AK58 -> -0.07 | AU58: =IF((AK58)=0,"",(AT58/AK58)) -> 0.005686433794 | AW58: -1.04 | AX58: 0.09171075838 | AY58: 0.01770408564
B59: Total Bill on RPP (including OCEB) | H59: =SUM(H57:H58) -> 102.0754558 | L59: =SUM(L57:L58) -> 102.0754558 | N59: 0 | O59: 0 | S59: =SUM(S57:S58) -> 125.4612187 | U59: =S59-L59 -> 23.3857629 | V59: =IF((L59)=0,"",(U59/L59)) -> 0.2291027036 | Z59: =SUM(Z57:Z58) -> 126.4939352 | AB59: Total Bill on RPP (including OCEB) | AF59: =Z59-S59 -> 1.032716505 | AG59: =IF((S59)=0,"",(AF59/S59)) -> 0.008231360378 | AK59: =SUM(AK57:AK58) -> 110.8288237 | AM59: =AK59-Z59 -> -15.6651115 | AN59: =IF((Z59)=0,"",(AM59/Z59)) -> -0.1238408109 | AR59: =SUM(AR57:AR58) -> 111.4438297 | AT59: =AR59-AK59 -> 0.615006 | AU59: =IF((AK59)=0,"",(AT59/AK59)) -> 0.005549152102 | AW59: 9.368373895 | AX59: 0.09177890828 | AY59: 0.01771679133
B62: Loss Factor (%) | F62: 0.043 | J62: 0.043 | Q62: 0.0486488321 | X62: 0.0486488321 | AB62: Loss Factor (%) | AI62: 0.0486488321 | AP62: 0.0486488321
B64: Distribution excluding Rate Riders | AB64: Distribution excluding Rate Riders
B65: Monthly Service Charge | D65: Monthly | F65: 3.34 | G65: =G23 -> 1 | H65: =G65*F65 -> 3.34 | J65: 3.34 | K65: =K23 -> 1 | L65: =K65*J65 -> 3.34 | N65: =L65-H65 -> 0 | O65: =IF((H65)=0,"",(N65/H65)) -> 0 | Q65: 4.3575 | R65: =R23 -> 1 | S65: =R65*Q65 -> 4.3575 | U65: =S65-L65 -> 1.0175 | V65: =IF((L65)=0,"",(U65/L65)) -> 0.3046407186 | X65: 4.4526 | Y65: =Y23 -> 1 | Z65: =Y65*X65 -> 4.4526 | AB65: Monthly Service Charge | AD65: Monthly | AF65: =Z65-S65 -> 0.0951 | AG65: =IF((S65)=0,"",(AF65/S65)) -> 0.02182444062 | AI65: 4.771 | AJ65: =AJ23 -> 1 | AK65: =AJ65*AI65 -> 4.771 | AM65: =AK65-Z65 -> 0.3184 | AN65: =IF((Z65)=0,"",(AM65/Z65)) -> 0.07150878139 | AP65: 4.9272 | AQ65: =AQ23 -> 1 | AR65: =AQ65*AP65 -> 4.9272 | AT65: =AR65-AK65 -> 0.1562 | AU65: =IF((AK65)=0,"",(AT65/AK65)) -> 0.03273946762 | AW65: =AR65-H65 -> 1.5872 | AX65: =IFERROR(AW65/H65,1) -> 0.4752095808 | AY65: =IFERROR((AR65/H65)^(1/(2019-2014))-1,0) -> 0.08086323515
B66: Distribution Volumetric Rate | D66: per kWh | F66: 0.0136 | G66: =$D$19 -> 750 | H66: =G66*F66 -> 10.2 | J66: 0.0136 | K66: =$D$19 -> 750 | L66: =K66*J66 -> 10.2 | N66: =L66-H66 -> 0 | O66: =IF((H66)=0,"",(N66/H66)) -> 0 | Q66: 0.0178 | R66: =$D$19 -> 750 | S66: =R66*Q66 -> 13.35 | U66: =S66-L66 -> 3.15 | V66: =IF((L66)=0,"",(U66/L66)) -> 0.3088235294 | X66: 0.0182 | Y66: =$D$19 -> 750 | Z66: =Y66*X66 -> 13.65 | AB66: Distribution Volumetric Rate | AD66: per kWh | AF66: =Z66-S66 -> 0.3 | AG66: =IF((S66)=0,"",(AF66/S66)) -> 0.02247191011 | AI66: 0.0195 | AJ66: =$D$19 -> 750 | AK66: =AJ66*AI66 -> 14.625 | AM66: =AK66-Z66 -> 0.975 | AN66: =IF((Z66)=0,"",(AM66/Z66)) -> 0.07142857143 | AP66: 0.0201 | AQ66: =$D$19 -> 750 | AR66: =AQ66*AP66 -> 15.075 | AT66: =AR66-AK66 -> 0.45 | AU66: =IF((AK66)=0,"",(AT66/AK66)) -> 0.03076923077 | AW66: =AR66-H66 -> 4.875 | AX66: =IFERROR(AW66/H66,1) -> 0.4779411765 | AY66: =IFERROR((AR66/H66)^(1/(2019-2014))-1,0) -> 0.08126321858
B67: "Regular" Distribution Rates only | H67: =SUM(H65:H66) -> 13.54 | L67: =SUM(L65:L66) -> 13.54 | N67: =L67-H67 -> 0 | O67: =IF((H67)=0,"",(N67/H67)) -> 0 | S67: =SUM(S65:S66) -> 17.7075 | U67: =S67-L67 -> 4.1675 | V67: =IF((L67)=0,"",(U67/L67)) -> 0.3077917282 | Z67: =SUM(Z65:Z66) -> 18.1026 | AB67: "Regular" Distribution Rates only | AF67: =Z67-S67 -> 0.3951 | AG67: =IF((S67)=0,"",(AF67/S67)) -> 0.02231257942 | AK67: =SUM(AK65:AK66) -> 19.396 | AM67: =AK67-Z67 -> 1.2934 | AN67: =IF((Z67)=0,"",(AM67/Z67)) -> 0.07144830024 | AR67: =SUM(AR65:AR66) -> 20.0022 | AT67: =AR67-AK67 -> 0.6062 | AU67: =IF((AK67)=0,"",(AT67/AK67)) -> 0.03125386678 | AW67: 6.4622 | AX67: =IFERROR(AW67/H67,0) -> 0.477267356 | AY67: 0.08116460705
A69: 1 Applicable to eligible customers only. Refer to the Ontario Clean Energy Benefit Act, 2010.
A71: Note that the "Charge $" columns provide breakdowns of the amounts that each bill component contributes to the total monthly bill at the referenced
A72: consumption level at existing and proposed rates.
A74: Applicants must provide bill impacts for residential at 800 kWh and GS<50kW at 2000 kWh. In addition, their filing must cover the range that is relevant
A75: to their service territory, class by class. A general guideline of consumption levels follows:
A77: Residential (kWh) - 100, 250, 500, 800, 1000, 1500, 2000
A78: GS<50kW (kWh) - 1000, 2000, 5000, 10000, 15000
A79: GS>50kW (kW) - 60, 100, 500, 1000
A80: Large User - range appropriate for utility
A81: Lighting Classes and USL - 150 kWh and 1 kW, range appropriate for utility.
B83: Note that cells with the highlighted color shown to the left indicate quantities that are loss adjusted. | AB83: Note that cells with the highlighted color shown to the left indicate quantities that are loss adjusted.
B90: Loss Factor Volume | D90: =ROUND(F90,1)&"/"&ROUND(J90,1) -> 32.3/32.3 | F90: 32.25 | J90: 32.25 | Q90: 36.48662407 | X90: 36.48662407 | AB90: Loss Factor Volume | AD90: =ROUND(AF90,1)&"/"&ROUND(AJ90,1) -> 0/0 | AI90: 36.48662407 | AP90: 36.48662407
D93: =ROUND(F90,1) -> 32.3 | AD93: =ROUND(AF90,1) -> 0
D94: =ROUND(J90,1) -> 32.3 | AD94: =ROUND(AJ90,1) -> 0
B96: kWHs incl Loss Factor | D96: =ROUND(F96,1)&"/"&ROUND(J96,1) -> 782.3/782.3 | F96: 782.25 | J96: 782.25 | Q96: 786.4866241 | X96: 786.4866241 | AB96: kWHs incl Loss Factor | AD96: =ROUND(AF96,1)&"/"&ROUND(AJ96,1) -> 0/0 | AI96: 786.4866241 | AP96: 786.4866241
